Workbook

Sheet Gantt (hidden)
B1: bouskoura232
AG7: =HideValues!D3*1 -> 2016-11-15 | AH7: =MAX(V22:V38) -> 2016-12-01 | AJ7: 1 | AK7: 2 | AL7: 3 | AN7: =IF(Tools!D11<>"",Tools!D11,"") -> Gibs | AO7: =IF(Tools!D12<>"",Tools!D12,"") -> Sara | AP7: =IF(Tools!D13<>"",Tools!D13,"") -> Mary | AQ7: =IF(Tools!D14<>"",Tools!D14,"") -> Jade | AR7: =IF(Tools!D15<>"",Tools!D15,"") -> Reda | AS7: =IF(Tools!D16<>"",Tools!D16,"") -> Mike | AT7: =IF(Tools!D17<>"",Tools!D17,"") -> Tony | AU7: =IF(Tools!D18<>"",Tools!D18,"") -> Leo | AV7: =IF(Tools!D19<>"",Tools!D19,"") ->  | AW7: =IF(Tools!D20<>"",Tools!D20,"") ->  | AX7: =IF(Tools!D21<>"",Tools!D21,"") ->  | AY7: =IF(Tools!D22<>"",Tools!D22,"") ->  | AZ7: =IF(Tools!D23<>"",Tools!D23,"") ->  | BA7: =IF(Tools!D24<>"",Tools!D24,"") ->  | BB7: =IF(Tools!D25<>"",Tools!D25,"") ->  | BC7: =IF(Tools!D26<>"",Tools!D26,"") ->  | BD7: =IF(Tools!D27<>"",Tools!D27,"") ->  | BE7: =IF(Tools!D28<>"",Tools!D28,"") ->  | BF7: =IF(Tools!D29<>"",Tools!D29,"") ->  | BG7: =IF(Tools!D30<>"",Tools!D30,"") ->  | BH7: =IF(Tools!D31<>"",Tools!D31,"") ->  | BI7: =IF(Tools!D32<>"",Tools!D32,"") ->  | BJ7: =IF(Tools!D33<>"",Tools!D33,"") ->  | BK7: =IF(Tools!D34<>"",Tools!D34,"") ->  | BL7: =IF(Tools!D35<>"",Tools!D35,"") ->  | BM7: =IF(Tools!D36<>"",Tools!D36,"") ->  | BN7: =IF(Tools!D37<>"",Tools!D37,"") ->  | BO7: =IF(Tools!D38<>"",Tools!D38,"") ->  | BP7: =IF(Tools!D39<>"",Tools!D39,"") ->  | BQ7: =IF(Tools!D40<>"",Tools!D40,"") ->  | BR7: =IF(Tools!D41<>"",Tools!D41,"") ->  | BS7: =IF(Tools!D42<>"",Tools!D42,"") ->  | BT7: =IF(Tools!D43<>"",Tools!D43,"") ->  | BU7: =IF(Tools!D44<>"",Tools!D44,"") ->  | BV7: =IF(Tools!D45<>"",Tools!D45,"") ->  | BW7: =IF(Tools!D46<>"",Tools!D46,"") ->  | BX7: =IF(Tools!D47<>"",Tools!D47,"") ->  | BY7: =IF(Tools!D48<>"",Tools!D48,"") ->  | BZ7: =IF(Tools!D49<>"",Tools!D49,"") ->  | CA7: =IF(Tools!D50<>"",Tools!D50,"") ->  | CB7: =IF(Tools!D51<>"",Tools!D51,"") ->  | CC7: =IF(Tools!D52<>"",Tools!D52,"") ->  | CD7: =IF(Tools!D53<>"",Tools!D53,"") ->  | CE7: =IF(Tools!D54<>"",Tools!D54,"") ->  | CF7: =IF(Tools!D55<>"",Tools!D55,"") ->  | CG7: =IF(Tools!D56<>"",Tools!D56,"") ->  | CH7: =IF(Tools!D57<>"",Tools!D57,"") ->  | CK7: =IF(HideValues!A83<>"",HideValues!A83,"") -> 1- Après précédente | CL7: =IF(HideValues!B83<>"",HideValues!B83,"") -> 2- Avec précédente | CM7: =IF(HideValues!C83<>"",HideValues!C83,"") -> 3- Saisie manuelle | CN7: =IF(HideValues!D83<>"",HideValues!D83,"") ->  | CO7: =IF(HideValues!E83<>"",HideValues!E83,"") -> Aide | CP7: =IF(HideValues!F83<>"",HideValues!F83,"") ->  | CQ7: =IF(HideValues!G83<>"",HideValues!G83,"") ->  | CR7: =IF(HideValues!H83<>"",HideValues!H83,"") ->  | CS7: =IF(HideValues!I83<>"",HideValues!I83,"") ->  | CT7: =IF(HideValues!J83<>"",HideValues!J83,"") -> 
AG8: =IF(HideValues!$B$48,NETWORKDAYS(AG9,AG9,Tools!$B$10:$B$55),1) -> 1 | AH8: =IF(HideValues!$B$48,NETWORKDAYS(AH9,AH9,Tools!$B$10:$B$55),1) -> 1 | AI8: =IF(HideValues!$B$48,NETWORKDAYS(AI9,AI9,Tools!$B$10:$B$55),1) -> 1 | AJ8: =IF(HideValues!$B$48,NETWORKDAYS(AJ9,AJ9,Tools!$B$10:$B$55),1) -> 1 | AK8: =IF(HideValues!$B$48,NETWORKDAYS(AK9,AK9,Tools!$B$10:$B$55),1) -> 0 | AL8: =IF(HideValues!$B$48,NETWORKDAYS(AL9,AL9,Tools!$B$10:$B$55),1) -> 0 | AM8: =IF(HideValues!$B$48,NETWORKDAYS(AM9,AM9,Tools!$B$10:$B$55),1) -> 1 | AN8: =IF(HideValues!$B$48,NETWORKDAYS(AN9,AN9,Tools!$B$10:$B$55),1) -> 1 | AO8: =IF(HideValues!$B$48,NETWORKDAYS(AO9,AO9,Tools!$B$10:$B$55),1) -> 1 | AP8: =IF(HideValues!$B$48,NETWORKDAYS(AP9,AP9,Tools!$B$10:$B$55),1) -> 1 | AQ8: =IF(HideValues!$B$48,NETWORKDAYS(AQ9,AQ9,Tools!$B$10:$B$55),1) -> 1 | AR8: =IF(HideValues!$B$48,NETWORKDAYS(AR9,AR9,Tools!$B$10:$B$55),1) -> 0 | AS8: =IF(HideValues!$B$48,NETWORKDAYS(AS9,AS9,Tools!$B$10:$B$55),1) -> 0 | AT8: =IF(HideValues!$B$48,NETWORKDAYS(AT9,AT9,Tools!$B$10:$B$55),1) -> 1 | AU8: =IF(HideValues!$B$48,NETWORKDAYS(AU9,AU9,Tools!$B$10:$B$55),1) -> 1 | AV8: =IF(HideValues!$B$48,NETWORKDAYS(AV9,AV9,Tools!$B$10:$B$55),1) -> 1 | AW8: =IF(HideValues!$B$48,NETWORKDAYS(AW9,AW9,Tools!$B$10:$B$55),1) -> 1 | AX8: =IF(HideValues!$B$48,NETWORKDAYS(AX9,AX9,Tools!$B$10:$B$55),1) -> 1 | AY8: =IF(HideValues!$B$48,NETWORKDAYS(AY9,AY9,Tools!$B$10:$B$55),1) -> 0 | AZ8: =IF(HideValues!$B$48,NETWORKDAYS(AZ9,AZ9,Tools!$B$10:$B$55),1) -> 0 | BA8: =IF(HideValues!$B$48,NETWORKDAYS(BA9,BA9,Tools!$B$10:$B$55),1) -> 1 | BB8: =IF(HideValues!$B$48,NETWORKDAYS(BB9,BB9,Tools!$B$10:$B$55),1) -> 1 | BC8: =IF(HideValues!$B$48,NETWORKDAYS(BC9,BC9,Tools!$B$10:$B$55),1) -> 1 | BD8: =IF(HideValues!$B$48,NETWORKDAYS(BD9,BD9,Tools!$B$10:$B$55),1) -> 1 | BE8: =IF(HideValues!$B$48,NETWORKDAYS(BE9,BE9,Tools!$B$10:$B$55),1) -> 1 | BF8: =IF(HideValues!$B$48,NETWORKDAYS(BF9,BF9,Tools!$B$10:$B$55),1) -> 0 | BG8: =IF(HideValues!$B$48,NETWORKDAYS(BG9,BG9,Tools!$B$10:$B$55),1) -> 0 | BH8: =IF(HideValues!$B$48,NETWORKDAYS(BH9,BH9,Tools!$B$10:$B$55),1) -> 1 | BI8: =IF(HideValues!$B$48,NETWORKDAYS(BI9,BI9,Tools!$B$10:$B$55),1) -> 1 | BJ8: =IF(HideValues!$B$48,NETWORKDAYS(BJ9,BJ9,Tools!$B$10:$B$55),1) -> 1 | BK8: =IF(HideValues!$B$48,NETWORKDAYS(BK9,BK9,Tools!$B$10:$B$55),1) -> 1 | BL8: =IF(HideValues!$B$48,NETWORKDAYS(BL9,BL9,Tools!$B$10:$B$55),1) -> 1 | BM8: =IF(HideValues!$B$48,NETWORKDAYS(BM9,BM9,Tools!$B$10:$B$55),1) -> 0 | BN8: =IF(HideValues!$B$48,NETWORKDAYS(BN9,BN9,Tools!$B$10:$B$55),1) -> 0 | BO8: =IF(HideValues!$B$48,NETWORKDAYS(BO9,BO9,Tools!$B$10:$B$55),1) -> 1 | BP8: =IF(HideValues!$B$48,NETWORKDAYS(BP9,BP9,Tools!$B$10:$B$55),1) -> 1 | BQ8: =IF(HideValues!$B$48,NETWORKDAYS(BQ9,BQ9,Tools!$B$10:$B$55),1) -> 1 | BR8: =IF(HideValues!$B$48,NETWORKDAYS(BR9,BR9,Tools!$B$10:$B$55),1) -> 1 | BS8: =IF(HideValues!$B$48,NETWORKDAYS(BS9,BS9,Tools!$B$10:$B$55),1) -> 1 | BT8: =IF(HideValues!$B$48,NETWORKDAYS(BT9,BT9,Tools!$B$10:$B$55),1) -> 0 | BU8: =IF(HideValues!$B$48,NETWORKDAYS(BU9,BU9,Tools!$B$10:$B$55),1) -> 0 | BV8: =IF(HideValues!$B$48,NETWORKDAYS(BV9,BV9,Tools!$B$10:$B$55),1) -> 1 | BW8: =IF(HideValues!$B$48,NETWORKDAYS(BW9,BW9,Tools!$B$10:$B$55),1) -> 1 | BX8: =IF(HideValues!$B$48,NETWORKDAYS(BX9,BX9,Tools!$B$10:$B$55),1) -> 1 | BY8: =IF(HideValues!$B$48,NETWORKDAYS(BY9,BY9,Tools!$B$10:$B$55),1) -> 1 | BZ8: =IF(HideValues!$B$48,NETWORKDAYS(BZ9,BZ9,Tools!$B$10:$B$55),1) -> 1 | CA8: =IF(HideValues!$B$48,NETWORKDAYS(CA9,CA9,Tools!$B$10:$B$55),1) -> 0 | CB8: =IF(HideValues!$B$48,NETWORKDAYS(CB9,CB9,Tools!$B$10:$B$55),1) -> 0 | CC8: =IF(HideValues!$B$48,NETWORKDAYS(CC9,CC9,Tools!$B$10:$B$55),1) -> 1 | CD8: =IF(HideValues!$B$48,NETWORKDAYS(CD9,CD9,Tools!$B$10:$B$55),1) -> 1 | CE8: =IF(HideValues!$B$48,NETWORKDAYS(CE9,CE9,Tools!$B$10:$B$55),1) -> 1 | CF8: =IF(HideValues!$B$48,NETWORKDAYS(CF9,CF9,Tools!$B$10:$B$55),1) -> 1 | CG8: =IF(HideValues!$B$48,NETWORKDAYS(CG9,CG9,Tools!$B$10:$B$55),1) -> 1 | CH8: =IF(HideValues!$B$48,NETWORKDAYS(CH9,CH9,Tools!$B$10:$B$55),1) -> 0 | CI8: =IF(HideValues!$B$48,NETWORKDAYS(CI9,CI9,Tools!$B$10:$B$55),1) -> 0 | CJ8: =IF(HideValues!$B$48,NETWORKDAYS(CJ9,CJ9,Tools!$B$10:$B$55),1) -> 1 | CK8: =IF(HideValues!$B$48,NETWORKDAYS(CK9,CK9,Tools!$B$10:$B$55),1) -> 1 | CL8: =IF(HideValues!$B$48,NETWORKDAYS(CL9,CL9,Tools!$B$10:$B$55),1) -> 1 | CM8: =IF(HideValues!$B$48,NETWORKDAYS(CM9,CM9,Tools!$B$10:$B$55),1) -> 1 | CN8: =IF(HideValues!$B$48,NETWORKDAYS(CN9,CN9,Tools!$B$10:$B$55),1) -> 1 | CO8: =IF(HideValues!$B$48,NETWORKDAYS(CO9,CO9,Tools!$B$10:$B$55),1) -> 0 | CP8: =IF(HideValues!$B$48,NETWORKDAYS(CP9,CP9,Tools!$B$10:$B$55),1) -> 0 | CQ8: =IF(HideValues!$B$48,NETWORKDAYS(CQ9,CQ9,Tools!$B$10:$B$55),1) -> 1 | CR8: =IF(HideValues!$B$48,NETWORKDAYS(CR9,CR9,Tools!$B$10:$B$55),1) -> 1 | CS8: =IF(HideValues!$B$48,NETWORKDAYS(CS9,CS9,Tools!$B$10:$B$55),1) -> 1 | CT8: =IF(HideValues!$B$48,NETWORKDAYS(CT9,CT9,Tools!$B$10:$B$55),1) -> 1 | CU8: =IF(HideValues!$B$48,NETWORKDAYS(CU9,CU9,Tools!$B$10:$B$55),1) -> 1 | CV8: =IF(HideValues!$B$48,NETWORKDAYS(CV9,CV9,Tools!$B$10:$B$55),1) -> 0 | CW8: =IF(HideValues!$B$48,NETWORKDAYS(CW9,CW9,Tools!$B$10:$B$55),1) -> 0 | CX8: =IF(HideValues!$B$48,NETWORKDAYS(CX9,CX9,Tools!$B$10:$B$55),1) -> 1 | CY8: =IF(HideValues!$B$48,NETWORKDAYS(CY9,CY9,Tools!$B$10:$B$55),1) -> 1 | CZ8: =IF(HideValues!$B$48,NETWORKDAYS(CZ9,CZ9,Tools!$B$10:$B$55),1) -> 1 | DA8: =IF(HideValues!$B$48,NETWORKDAYS(DA9,DA9,Tools!$B$10:$B$55),1) -> 1 | DB8: =IF(HideValues!$B$48,NETWORKDAYS(DB9,DB9,Tools!$B$10:$B$55),1) -> 1 | DC8: =IF(HideValues!$B$48,NETWORKDAYS(DC9,DC9,Tools!$B$10:$B$55),1) -> 0 | DD8: =IF(HideValues!$B$48,NETWORKDAYS(DD9,DD9,Tools!$B$10:$B$55),1) -> 0 | DE8: =IF(HideValues!$B$48,NETWORKDAYS(DE9,DE9,Tools!$B$10:$B$55),1) -> 1 | DF8: =IF(HideValues!$B$48,NETWORKDAYS(DF9,DF9,Tools!$B$10:$B$55),1) -> 1 | DG8: =IF(HideValues!$B$48,NETWORKDAYS(DG9,DG9,Tools!$B$10:$B$55),1) -> 1 | DH8: =IF(HideValues!$B$48,NETWORKDAYS(DH9,DH9,Tools!$B$10:$B$55),1) -> 1 | DI8: =IF(HideValues!$B$48,NETWORKDAYS(DI9,DI9,Tools!$B$10:$B$55),1) -> 1 | DJ8: =IF(HideValues!$B$48,NETWORKDAYS(DJ9,DJ9,Tools!$B$10:$B$55),1) -> 0 | DK8: =IF(HideValues!$B$48,NETWORKDAYS(DK9,DK9,Tools!$B$10:$B$55),1) -> 0 | DL8: =IF(HideValues!$B$48,NETWORKDAYS(DL9,DL9,Tools!$B$10:$B$55),1) -> 1 | DM8: =IF(HideValues!$B$48,NETWORKDAYS(DM9,DM9,Tools!$B$10:$B$55),1) -> 1 | DN8: =IF(HideValues!$B$48,NETWORKDAYS(DN9,DN9,Tools!$B$10:$B$55),1) -> 1 | DO8: =IF(HideValues!$B$48,NETWORKDAYS(DO9,DO9,Tools!$B$10:$B$55),1) -> 1 | DP8: =IF(HideValues!$B$48,NETWORKDAYS(DP9,DP9,Tools!$B$10:$B$55),1) -> 1 | DQ8: =IF(HideValues!$B$48,NETWORKDAYS(DQ9,DQ9,Tools!$B$10:$B$55),1) -> 0 | DR8: =IF(HideValues!$B$48,NETWORKDAYS(DR9,DR9,Tools!$B$10:$B$55),1) -> 0 | DS8: =IF(HideValues!$B$48,NETWORKDAYS(DS9,DS9,Tools!$B$10:$B$55),1) -> 1 | DT8: =IF(HideValues!$B$48,NETWORKDAYS(DT9,DT9,Tools!$B$10:$B$55),1) -> 1 | DU8: =IF(HideValues!$B$48,NETWORKDAYS(DU9,DU9,Tools!$B$10:$B$55),1) -> 1 | DV8: =IF(HideValues!$B$48,NETWORKDAYS(DV9,DV9,Tools!$B$10:$B$55),1) -> 1 | DW8: =IF(HideValues!$B$48,NETWORKDAYS(DW9,DW9,Tools!$B$10:$B$55),1) -> 1 | DX8: =IF(HideValues!$B$48,NETWORKDAYS(DX9,DX9,Tools!$B$10:$B$55),1) -> 0 | DY8: =IF(HideValues!$B$48,NETWORKDAYS(DY9,DY9,Tools!$B$10:$B$55),1) -> 0 | DZ8: =IF(HideValues!$B$48,NETWORKDAYS(DZ9,DZ9,Tools!$B$10:$B$55),1) -> 1 | EA8: =IF(HideValues!$B$48,NETWORKDAYS(EA9,EA9,Tools!$B$10:$B$55),1) -> 1 | EB8: =IF(HideValues!$B$48,NETWORKDAYS(EB9,EB9,Tools!$B$10:$B$55),1) -> 1 | EC8: =IF(HideValues!$B$48,NETWORKDAYS(EC9,EC9,Tools!$B$10:$B$55),1) -> 1 | ED8: =IF(HideValues!$B$48,NETWORKDAYS(ED9,ED9,Tools!$B$10:$B$55),1) -> 1 | EE8: =IF(HideValues!$B$48,NETWORKDAYS(EE9,EE9,Tools!$B$10:$B$55),1) -> 0 | EF8: =IF(HideValues!$B$48,NETWORKDAYS(EF9,EF9,Tools!$B$10:$B$55),1) -> 0 | EG8: =IF(HideValues!$B$48,NETWORKDAYS(EG9,EG9,Tools!$B$10:$B$55),1) -> 1 | EH8: =IF(HideValues!$B$48,NETWORKDAYS(EH9,EH9,Tools!$B$10:$B$55),1) -> 1 | EI8: =IF(HideValues!$B$48,NETWORKDAYS(EI9,EI9,Tools!$B$10:$B$55),1) -> 1 | EJ8: =IF(HideValues!$B$48,NETWORKDAYS(EJ9,EJ9,Tools!$B$10:$B$55),1) -> 1 | EK8: =IF(HideValues!$B$48,NETWORKDAYS(EK9,EK9,Tools!$B$10:$B$55),1) -> 1 | EL8: =IF(HideValues!$B$48,NETWORKDAYS(EL9,EL9,Tools!$B$10:$B$55),1) -> 0 | EM8: =IF(HideValues!$B$48,NETWORKDAYS(EM9,EM9,Tools!$B$10:$B$55),1) -> 0 | EN8: =IF(HideValues!$B$48,NETWORKDAYS(EN9,EN9,Tools!$B$10:$B$55),1) -> 1 | EO8: =IF(HideValues!$B$48,NETWORKDAYS(EO9,EO9,Tools!$B$10:$B$55),1) -> 1 | EP8: =IF(HideValues!$B$48,NETWORKDAYS(EP9,EP9,Tools!$B$10:$B$55),1) -> 1 | EQ8: =IF(HideValues!$B$48,NETWORKDAYS(EQ9,EQ9,Tools!$B$10:$B$55),1) -> 1 | ER8: =IF(HideValues!$B$48,NETWORKDAYS(ER9,ER9,Tools!$B$10:$B$55),1) -> 1 | ES8: =IF(HideValues!$B$48,NETWORKDAYS(ES9,ES9,Tools!$B$10:$B$55),1) -> 0 | ET8: =IF(HideValues!$B$48,NETWORKDAYS(ET9,ET9,Tools!$B$10:$B$55),1) -> 0 | EU8: =IF(HideValues!$B$48,NETWORKDAYS(EU9,EU9,Tools!$B$10:$B$55),1) -> 1 | EV8: =IF(HideValues!$B$48,NETWORKDAYS(EV9,EV9,Tools!$B$10:$B$55),1) -> 1 | EW8: =IF(HideValues!$B$48,NETWORKDAYS(EW9,EW9,Tools!$B$10:$B$55),1) -> 1 | EX8: =IF(HideValues!$B$48,NETWORKDAYS(EX9,EX9,Tools!$B$10:$B$55),1) -> 1 | EY8: =IF(HideValues!$B$48,NETWORKDAYS(EY9,EY9,Tools!$B$10:$B$55),1) -> 1 | EZ8: =IF(HideValues!$B$48,NETWORKDAYS(EZ9,EZ9,Tools!$B$10:$B$55),1) -> 0 | FA8: =IF(HideValues!$B$48,NETWORKDAYS(FA9,FA9,Tools!$B$10:$B$55),1) -> 0 | FB8: =IF(HideValues!$B$48,NETWORKDAYS(FB9,FB9,Tools!$B$10:$B$55),1) -> 1 | FC8: =IF(HideValues!$B$48,NETWORKDAYS(FC9,FC9,Tools!$B$10:$B$55),1) -> 1 | FD8: =IF(HideValues!$B$48,NETWORKDAYS(FD9,FD9,Tools!$B$10:$B$55),1) -> 1 | FE8: =IF(HideValues!$B$48,NETWORKDAYS(FE9,FE9,Tools!$B$10:$B$55),1) -> 1 | FF8: =IF(HideValues!$B$48,NETWORKDAYS(FF9,FF9,Tools!$B$10:$B$55),1) -> 1 | FG8: =IF(HideValues!$B$48,NETWORKDAYS(FG9,FG9,Tools!$B$10:$B$55),1) -> 0 | FH8: =IF(HideValues!$B$48,NETWORKDAYS(FH9,FH9,Tools!$B$10:$B$55),1) -> 0 | FI8: =IF(HideValues!$B$48,NETWORKDAYS(FI9,FI9,Tools!$B$10:$B$55),1) -> 1 | FJ8: =IF(HideValues!$B$48,NETWORKDAYS(FJ9,FJ9,Tools!$B$10:$B$55),1) -> 1 | FK8: =IF(HideValues!$B$48,NETWORKDAYS(FK9,FK9,Tools!$B$10:$B$55),1) -> 1 | FL8: =IF(HideValues!$B$48,NETWORKDAYS(FL9,FL9,Tools!$B$10:$B$55),1) -> 1 | FM8: =IF(HideValues!$B$48,NETWORKDAYS(FM9,FM9,Tools!$B$10:$B$55),1) -> 1 | FN8: =IF(HideValues!$B$48,NETWORKDAYS(FN9,FN9,Tools!$B$10:$B$55),1) -> 0 | FO8: =IF(HideValues!$B$48,NETWORKDAYS(FO9,FO9,Tools!$B$10:$B$55),1) -> 0 | FP8: =IF(HideValues!$B$48,NETWORKDAYS(FP9,FP9,Tools!$B$10:$B$55),1) -> 1 | FQ8: =IF(HideValues!$B$48,NETWORKDAYS(FQ9,FQ9,Tools!$B$10:$B$55),1) -> 1 | FR8: =IF(HideValues!$B$48,NETWORKDAYS(FR9,FR9,Tools!$B$10:$B$55),1) -> 1 | FS8: =IF(HideValues!$B$48,NETWORKDAYS(FS9,FS9,Tools!$B$10:$B$55),1) -> 1 | FT8: =IF(HideValues!$B$48,NETWORKDAYS(FT9,FT9,Tools!$B$10:$B$55),1) -> 1 | FU8: =IF(HideValues!$B$48,NETWORKDAYS(FU9,FU9,Tools!$B$10:$B$55),1) -> 0 | FV8: =IF(HideValues!$B$48,NETWORKDAYS(FV9,FV9,Tools!$B$10:$B$55),1) -> 0 | FW8: =IF(HideValues!$B$48,NETWORKDAYS(FW9,FW9,Tools!$B$10:$B$55),1) -> 1 | FX8: =IF(HideValues!$B$48,NETWORKDAYS(FX9,FX9,Tools!$B$10:$B$55),1) -> 1 | FY8: =IF(HideValues!$B$48,NETWORKDAYS(FY9,FY9,Tools!$B$10:$B$55),1) -> 1 | FZ8: =IF(HideValues!$B$48,NETWORKDAYS(FZ9,FZ9,Tools!$B$10:$B$55),1) -> 1 | GA8: =IF(HideValues!$B$48,NETWORKDAYS(GA9,GA9,Tools!$B$10:$B$55),1) -> 1 | GB8: =IF(HideValues!$B$48,NETWORKDAYS(GB9,GB9,Tools!$B$10:$B$55),1) -> 0 | GC8: =IF(HideValues!$B$48,NETWORKDAYS(GC9,GC9,Tools!$B$10:$B$55),1) -> 0 | GD8: =IF(HideValues!$B$48,NETWORKDAYS(GD9,GD9,Tools!$B$10:$B$55),1) -> 1 | GE8: =IF(HideValues!$B$48,NETWORKDAYS(GE9,GE9,Tools!$B$10:$B$55),1) -> 1 | GF8: =IF(HideValues!$B$48,NETWORKDAYS(GF9,GF9,Tools!$B$10:$B$55),1) -> 1 | GG8: =IF(HideValues!$B$48,NETWORKDAYS(GG9,GG9,Tools!$B$10:$B$55),1) -> 1 | GH8: =IF(HideValues!$B$48,NETWORKDAYS(GH9,GH9,Tools!$B$10:$B$55),1) -> 1 | GI8: =IF(HideValues!$B$48,NETWORKDAYS(GI9,GI9,Tools!$B$10:$B$55),1) -> 0 | GJ8: =IF(HideValues!$B$48,NETWORKDAYS(GJ9,GJ9,Tools!$B$10:$B$55),1) -> 0 | GK8: =IF(HideValues!$B$48,NETWORKDAYS(GK9,GK9,Tools!$B$10:$B$55),1) -> 1 | GL8: =IF(HideValues!$B$48,NETWORKDAYS(GL9,GL9,Tools!$B$10:$B$55),1) -> 1 | GM8: =IF(HideValues!$B$48,NETWORKDAYS(GM9,GM9,Tools!$B$10:$B$55),1) -> 1 | GN8: =IF(HideValues!$B$48,NETWORKDAYS(GN9,GN9,Tools!$B$10:$B$55),1) -> 1 | GO8: =IF(HideValues!$B$48,NETWORKDAYS(GO9,GO9,Tools!$B$10:$B$55),1) -> 1 | GP8: =IF(HideValues!$B$48,NETWORKDAYS(GP9,GP9,Tools!$B$10:$B$55),1) -> 0 | GQ8: =IF(HideValues!$B$48,NETWORKDAYS(GQ9,GQ9,Tools!$B$10:$B$55),1) -> 0 | GR8: =IF(HideValues!$B$48,NETWORKDAYS(GR9,GR9,Tools!$B$10:$B$55),1) -> 1 | GS8: =IF(HideValues!$B$48,NETWORKDAYS(GS9,GS9,Tools!$B$10:$B$55),1) -> 1 | GT8: =IF(HideValues!$B$48,NETWORKDAYS(GT9,GT9,Tools!$B$10:$B$55),1) -> 1 | GU8: =IF(HideValues!$B$48,NETWORKDAYS(GU9,GU9,Tools!$B$10:$B$55),1) -> 1 | GV8: =IF(HideValues!$B$48,NETWORKDAYS(GV9,GV9,Tools!$B$10:$B$55),1) -> 1 | GW8: =IF(HideValues!$B$48,NETWORKDAYS(GW9,GW9,Tools!$B$10:$B$55),1) -> 0 | GX8: =IF(HideValues!$B$48,NETWORKDAYS(GX9,GX9,Tools!$B$10:$B$55),1) -> 0 | GY8: =IF(HideValues!$B$48,NETWORKDAYS(GY9,GY9,Tools!$B$10:$B$55),1) -> 1 | GZ8: =IF(HideValues!$B$48,NETWORKDAYS(GZ9,GZ9,Tools!$B$10:$B$55),1) -> 1 | HA8: =IF(HideValues!$B$48,NETWORKDAYS(HA9,HA9,Tools!$B$10:$B$55),1) -> 1 | HB8: =IF(HideValues!$B$48,NETWORKDAYS(HB9,HB9,Tools!$B$10:$B$55),1) -> 1 | HC8: =IF(HideValues!$B$48,NETWORKDAYS(HC9,HC9,Tools!$B$10:$B$55),1) -> 1 | HD8: =IF(HideValues!$B$48,NETWORKDAYS(HD9,HD9,Tools!$B$10:$B$55),1) -> 0 | HE8: =IF(HideValues!$B$48,NETWORKDAYS(HE9,HE9,Tools!$B$10:$B$55),1) -> 0 | HF8: =IF(HideValues!$B$48,NETWORKDAYS(HF9,HF9,Tools!$B$10:$B$55),1) -> 1 | HG8: =IF(HideValues!$B$48,NETWORKDAYS(HG9,HG9,Tools!$B$10:$B$55),1) -> 1 | HH8: =IF(HideValues!$B$48,NETWORKDAYS(HH9,HH9,Tools!$B$10:$B$55),1) -> 1 | HI8: =IF(HideValues!$B$48,NETWORKDAYS(HI9,HI9,Tools!$B$10:$B$55),1) -> 1 | HJ8: =IF(HideValues!$B$48,NETWORKDAYS(HJ9,HJ9,Tools!$B$10:$B$55),1) -> 1 | HK8: =IF(HideValues!$B$48,NETWORKDAYS(HK9,HK9,Tools!$B$10:$B$55),1) -> 0 | HL8: =IF(HideValues!$B$48,NETWORKDAYS(HL9,HL9,Tools!$B$10:$B$55),1) -> 0 | HM8: =IF(HideValues!$B$48,NETWORKDAYS(HM9,HM9,Tools!$B$10:$B$55),1) -> 1 | HN8: =IF(HideValues!$B$48,NETWORKDAYS(HN9,HN9,Tools!$B$10:$B$55),1) -> 1 | HO8: =IF(HideValues!$B$48,NETWORKDAYS(HO9,HO9,Tools!$B$10:$B$55),1) -> 1 | HP8: =IF(HideValues!$B$48,NETWORKDAYS(HP9,HP9,Tools!$B$10:$B$55),1) -> 1 | HQ8: =IF(HideValues!$B$48,NETWORKDAYS(HQ9,HQ9,Tools!$B$10:$B$55),1) -> 1 | HR8: =IF(HideValues!$B$48,NETWORKDAYS(HR9,HR9,Tools!$B$10:$B$55),1) -> 0 | HS8: =IF(HideValues!$B$48,NETWORKDAYS(HS9,HS9,Tools!$B$10:$B$55),1) -> 0 | HT8: =IF(HideValues!$B$48,NETWORKDAYS(HT9,HT9,Tools!$B$10:$B$55),1) -> 1 | HU8: =IF(HideValues!$B$48,NETWORKDAYS(HU9,HU9,Tools!$B$10:$B$55),1) -> 1 | HV8: =IF(HideValues!$B$48,NETWORKDAYS(HV9,HV9,Tools!$B$10:$B$55),1) -> 1 | HW8: =IF(HideValues!$B$48,NETWORKDAYS(HW9,HW9,Tools!$B$10:$B$55),1) -> 1 | HX8: =IF(HideValues!$B$48,NETWORKDAYS(HX9,HX9,Tools!$B$10:$B$55),1) -> 1 | HY8: =IF(HideValues!$B$48,NETWORKDAYS(HY9,HY9,Tools!$B$10:$B$55),1) -> 0 | HZ8: =IF(HideValues!$B$48,NETWORKDAYS(HZ9,HZ9,Tools!$B$10:$B$55),1) -> 0 | IA8: =IF(HideValues!$B$48,NETWORKDAYS(IA9,IA9,Tools!$B$10:$B$55),1) -> 1 | IB8: =IF(HideValues!$B$48,NETWORKDAYS(IB9,IB9,Tools!$B$10:$B$55),1) -> 1 | IC8: =IF(HideValues!$B$48,NETWORKDAYS(IC9,IC9,Tools!$B$10:$B$55),1) -> 1 | ID8: =IF(HideValues!$B$48,NETWORKDAYS(ID9,ID9,Tools!$B$10:$B$55),1) -> 1 | IE8: =IF(HideValues!$B$48,NETWORKDAYS(IE9,IE9,Tools!$B$10:$B$55),1) -> 1 | IF8: =IF(HideValues!$B$48,NETWORKDAYS(IF9,IF9,Tools!$B$10:$B$55),1) -> 0 | IG8: =IF(HideValues!$B$48,NETWORKDAYS(IG9,IG9,Tools!$B$10:$B$55),1) -> 0 | IH8: =IF(HideValues!$B$48,NETWORKDAYS(IH9,IH9,Tools!$B$10:$B$55),1) -> 1 | II8: =IF(HideValues!$B$48,NETWORKDAYS(II9,II9,Tools!$B$10:$B$55),1) -> 1 | IJ8: =IF(HideValues!$B$48,NETWORKDAYS(IJ9,IJ9,Tools!$B$10:$B$55),1) -> 1 | IK8: =IF(HideValues!$B$48,NETWORKDAYS(IK9,IK9,Tools!$B$10:$B$55),1) -> 1 | IL8: =IF(HideValues!$B$48,NETWORKDAYS(IL9,IL9,Tools!$B$10:$B$55),1) -> 1 | IM8: =IF(HideValues!$B$48,NETWORKDAYS(IM9,IM9,Tools!$B$10:$B$55),1) -> 0 | IN8: =IF(HideValues!$B$48,NETWORKDAYS(IN9,IN9,Tools!$B$10:$B$55),1) -> 0 | IO8: =IF(HideValues!$B$48,NETWORKDAYS(IO9,IO9,Tools!$B$10:$B$55),1) -> 1 | IP8: =IF(HideValues!$B$48,NETWORKDAYS(IP9,IP9,Tools!$B$10:$B$55),1) -> 1 | IQ8: =IF(HideValues!$B$48,NETWORKDAYS(IQ9,IQ9,Tools!$B$10:$B$55),1) -> 1 | IR8: =IF(HideValues!$B$48,NETWORKDAYS(IR9,IR9,Tools!$B$10:$B$55),1) -> 1 | IS8: =IF(HideValues!$B$48,NETWORKDAYS(IS9,IS9,Tools!$B$10:$B$55),1) -> 1 | IT8: =IF(HideValues!$B$48,NETWORKDAYS(IT9,IT9,Tools!$B$10:$B$55),1) -> 0 | IU8: =IF(HideValues!$B$48,NETWORKDAYS(IU9,IU9,Tools!$B$10:$B$55),1) -> 0 | IV8: =IF(HideValues!$B$48,NETWORKDAYS(IV9,IV9,Tools!$B$10:$B$55),1) -> 1 | IW8: =IF(HideValues!$B$48,NETWORKDAYS(IW9,IW9,Tools!$B$10:$B$55),1) -> 1 | IX8: =IF(HideValues!$B$48,NETWORKDAYS(IX9,IX9,Tools!$B$10:$B$55),1) -> 1 | IY8: =IF(HideValues!$B$48,NETWORKDAYS(IY9,IY9,Tools!$B$10:$B$55),1) -> 1 | IZ8: =IF(HideValues!$B$48,NETWORKDAYS(IZ9,IZ9,Tools!$B$10:$B$55),1) -> 1 | JA8: =IF(HideValues!$B$48,NETWORKDAYS(JA9,JA9,Tools!$B$10:$B$55),1) -> 0 | JB8: =IF(HideValues!$B$48,NETWORKDAYS(JB9,JB9,Tools!$B$10:$B$55),1) -> 0 | JC8: =IF(HideValues!$B$48,NETWORKDAYS(JC9,JC9,Tools!$B$10:$B$55),1) -> 1 | JD8: =IF(HideValues!$B$48,NETWORKDAYS(JD9,JD9,Tools!$B$10:$B$55),1) -> 1 | JE8: =IF(HideValues!$B$48,NETWORKDAYS(JE9,JE9,Tools!$B$10:$B$55),1) -> 1 | JF8: =IF(HideValues!$B$48,NETWORKDAYS(JF9,JF9,Tools!$B$10:$B$55),1) -> 1 | JG8: =IF(HideValues!$B$48,NETWORKDAYS(JG9,JG9,Tools!$B$10:$B$55),1) -> 1 | JH8: =IF(HideValues!$B$48,NETWORKDAYS(JH9,JH9,Tools!$B$10:$B$55),1) -> 0 | JI8: =IF(HideValues!$B$48,NETWORKDAYS(JI9,JI9,Tools!$B$10:$B$55),1) -> 0 | JJ8: =IF(HideValues!$B$48,NETWORKDAYS(JJ9,JJ9,Tools!$B$10:$B$55),1) -> 1 | JK8: =IF(HideValues!$B$48,NETWORKDAYS(JK9,JK9,Tools!$B$10:$B$55),1) -> 1 | JL8: =IF(HideValues!$B$48,NETWORKDAYS(JL9,JL9,Tools!$B$10:$B$55),1) -> 1 | JM8: =IF(HideValues!$B$48,NETWORKDAYS(JM9,JM9,Tools!$B$10:$B$55),1) -> 1 | JN8: =IF(HideValues!$B$48,NETWORKDAYS(JN9,JN9,Tools!$B$10:$B$55),1) -> 1 | JO8: =IF(HideValues!$B$48,NETWORKDAYS(JO9,JO9,Tools!$B$10:$B$55),1) -> 0 | JP8: =IF(HideValues!$B$48,NETWORKDAYS(JP9,JP9,Tools!$B$10:$B$55),1) -> 0 | JQ8: =IF(HideValues!$B$48,NETWORKDAYS(JQ9,JQ9,Tools!$B$10:$B$55),1) -> 1 | JR8: =IF(HideValues!$B$48,NETWORKDAYS(JR9,JR9,Tools!$B$10:$B$55),1) -> 1 | JS8: =IF(HideValues!$B$48,NETWORKDAYS(JS9,JS9,Tools!$B$10:$B$55),1) -> 1 | JT8: =IF(HideValues!$B$48,NETWORKDAYS(JT9,JT9,Tools!$B$10:$B$55),1) -> 1 | JU8: =IF(HideValues!$B$48,NETWORKDAYS(JU9,JU9,Tools!$B$10:$B$55),1) -> 1 | JV8: =IF(HideValues!$B$48,NETWORKDAYS(JV9,JV9,Tools!$B$10:$B$55),1) -> 0 | JW8: =IF(HideValues!$B$48,NETWORKDAYS(JW9,JW9,Tools!$B$10:$B$55),1) -> 0 | JX8: =IF(HideValues!$B$48,NETWORKDAYS(JX9,JX9,Tools!$B$10:$B$55),1) -> 1 | JY8: =IF(HideValues!$B$48,NETWORKDAYS(JY9,JY9,Tools!$B$10:$B$55),1) -> 1 | JZ8: =IF(HideValues!$B$48,NETWORKDAYS(JZ9,JZ9,Tools!$B$10:$B$55),1) -> 1 | KA8: =IF(HideValues!$B$48,NETWORKDAYS(KA9,KA9,Tools!$B$10:$B$55),1) -> 1 | KB8: =IF(HideValues!$B$48,NETWORKDAYS(KB9,KB9,Tools!$B$10:$B$55),1) -> 1 | KC8: =IF(HideValues!$B$48,NETWORKDAYS(KC9,KC9,Tools!$B$10:$B$55),1) -> 0 | KD8: =IF(HideValues!$B$48,NETWORKDAYS(KD9,KD9,Tools!$B$10:$B$55),1) -> 0 | KE8: =IF(HideValues!$B$48,NETWORKDAYS(KE9,KE9,Tools!$B$10:$B$55),1) -> 1 | KF8: =IF(HideValues!$B$48,NETWORKDAYS(KF9,KF9,Tools!$B$10:$B$55),1) -> 1 | KG8: =IF(HideValues!$B$48,NETWORKDAYS(KG9,KG9,Tools!$B$10:$B$55),1) -> 1 | KH8: =IF(HideValues!$B$48,NETWORKDAYS(KH9,KH9,Tools!$B$10:$B$55),1) -> 1 | KI8: =IF(HideValues!$B$48,NETWORKDAYS(KI9,KI9,Tools!$B$10:$B$55),1) -> 1 | KJ8: =IF(HideValues!$B$48,NETWORKDAYS(KJ9,KJ9,Tools!$B$10:$B$55),1) -> 0 | KK8: =IF(HideValues!$B$48,NETWORKDAYS(KK9,KK9,Tools!$B$10:$B$55),1) -> 0 | KL8: =IF(HideValues!$B$48,NETWORKDAYS(KL9,KL9,Tools!$B$10:$B$55),1) -> 1 | KM8: =IF(HideValues!$B$48,NETWORKDAYS(KM9,KM9,Tools!$B$10:$B$55),1) -> 1 | KN8: =IF(HideValues!$B$48,NETWORKDAYS(KN9,KN9,Tools!$B$10:$B$55),1) -> 1 | KO8: =IF(HideValues!$B$48,NETWORKDAYS(KO9,KO9,Tools!$B$10:$B$55),1) -> 1 | KP8: =IF(HideValues!$B$48,NETWORKDAYS(KP9,KP9,Tools!$B$10:$B$55),1) -> 1 | KQ8: =IF(HideValues!$B$48,NETWORKDAYS(KQ9,KQ9,Tools!$B$10:$B$55),1) -> 0 | KR8: =IF(HideValues!$B$48,NETWORKDAYS(KR9,KR9,Tools!$B$10:$B$55),1) -> 0 | KS8: =IF(HideValues!$B$48,NETWORKDAYS(KS9,KS9,Tools!$B$10:$B$55),1) -> 1 | KT8: =IF(HideValues!$B$48,NETWORKDAYS(KT9,KT9,Tools!$B$10:$B$55),1) -> 1 | KU8: =IF(HideValues!$B$48,NETWORKDAYS(KU9,KU9,Tools!$B$10:$B$55),1) -> 1 | KV8: =IF(HideValues!$B$48,NETWORKDAYS(KV9,KV9,Tools!$B$10:$B$55),1) -> 1 | KW8: =IF(HideValues!$B$48,NETWORKDAYS(KW9,KW9,Tools!$B$10:$B$55),1) -> 1 | KX8: =IF(HideValues!$B$48,NETWORKDAYS(KX9,KX9,Tools!$B$10:$B$55),1) -> 0 | KY8: =IF(HideValues!$B$48,NETWORKDAYS(KY9,KY9,Tools!$B$10:$B$55),1) -> 0 | KZ8: =IF(HideValues!$B$48,NETWORKDAYS(KZ9,KZ9,Tools!$B$10:$B$55),1) -> 1 | LA8: =IF(HideValues!$B$48,NETWORKDAYS(LA9,LA9,Tools!$B$10:$B$55),1) -> 1 | LB8: =IF(HideValues!$B$48,NETWORKDAYS(LB9,LB9,Tools!$B$10:$B$55),1) -> 1 | LC8: =IF(HideValues!$B$48,NETWORKDAYS(LC9,LC9,Tools!$B$10:$B$55),1) -> 1 | LD8: =IF(HideValues!$B$48,NETWORKDAYS(LD9,LD9,Tools!$B$10:$B$55),1) -> 1 | LE8: =IF(HideValues!$B$48,NETWORKDAYS(LE9,LE9,Tools!$B$10:$B$55),1) -> 0 | LF8: =IF(HideValues!$B$48,NETWORKDAYS(LF9,LF9,Tools!$B$10:$B$55),1) -> 0 | LG8: =IF(HideValues!$B$48,NETWORKDAYS(LG9,LG9,Tools!$B$10:$B$55),1) -> 1 | LH8: =IF(HideValues!$B$48,NETWORKDAYS(LH9,LH9,Tools!$B$10:$B$55),1) -> 1 | LI8: =IF(HideValues!$B$48,NETWORKDAYS(LI9,LI9,Tools!$B$10:$B$55),1) -> 1 | LJ8: =IF(HideValues!$B$48,NETWORKDAYS(LJ9,LJ9,Tools!$B$10:$B$55),1) -> 1 | LK8: =IF(HideValues!$B$48,NETWORKDAYS(LK9,LK9,Tools!$B$10:$B$55),1) -> 1 | LL8: =IF(HideValues!$B$48,NETWORKDAYS(LL9,LL9,Tools!$B$10:$B$55),1) -> 0 | LM8: =IF(HideValues!$B$48,NETWORKDAYS(LM9,LM9,Tools!$B$10:$B$55),1) -> 0 | LN8: =IF(HideValues!$B$48,NETWORKDAYS(LN9,LN9,Tools!$B$10:$B$55),1) -> 1 | LO8: =IF(HideValues!$B$48,NETWORKDAYS(LO9,LO9,Tools!$B$10:$B$55),1) -> 1 | LP8: =IF(HideValues!$B$48,NETWORKDAYS(LP9,LP9,Tools!$B$10:$B$55),1) -> 1 | LQ8: =IF(HideValues!$B$48,NETWORKDAYS(LQ9,LQ9,Tools!$B$10:$B$55),1) -> 1 | LR8: =IF(HideValues!$B$48,NETWORKDAYS(LR9,LR9,Tools!$B$10:$B$55),1) -> 1 | LS8: =IF(HideValues!$B$48,NETWORKDAYS(LS9,LS9,Tools!$B$10:$B$55),1) -> 0 | LT8: =IF(HideValues!$B$48,NETWORKDAYS(LT9,LT9,Tools!$B$10:$B$55),1) -> 0 | LU8: =IF(HideValues!$B$48,NETWORKDAYS(LU9,LU9,Tools!$B$10:$B$55),1) -> 1 | LV8: =IF(HideValues!$B$48,NETWORKDAYS(LV9,LV9,Tools!$B$10:$B$55),1) -> 1 | LW8: =IF(HideValues!$B$48,NETWORKDAYS(LW9,LW9,Tools!$B$10:$B$55),1) -> 1 | LX8: =IF(HideValues!$B$48,NETWORKDAYS(LX9,LX9,Tools!$B$10:$B$55),1) -> 1 | LY8: =IF(HideValues!$B$48,NETWORKDAYS(LY9,LY9,Tools!$B$10:$B$55),1) -> 1 | LZ8: =IF(HideValues!$B$48,NETWORKDAYS(LZ9,LZ9,Tools!$B$10:$B$55),1) -> 0 | MA8: =IF(HideValues!$B$48,NETWORKDAYS(MA9,MA9,Tools!$B$10:$B$55),1) -> 0 | MB8: =IF(HideValues!$B$48,NETWORKDAYS(MB9,MB9,Tools!$B$10:$B$55),1) -> 1 | MC8: =IF(HideValues!$B$48,NETWORKDAYS(MC9,MC9,Tools!$B$10:$B$55),1) -> 1 | MD8: =IF(HideValues!$B$48,NETWORKDAYS(MD9,MD9,Tools!$B$10:$B$55),1) -> 1 | ME8: =IF(HideValues!$B$48,NETWORKDAYS(ME9,ME9,Tools!$B$10:$B$55),1) -> 1 | MF8: =IF(HideValues!$B$48,NETWORKDAYS(MF9,MF9,Tools!$B$10:$B$55),1) -> 1 | MG8: =IF(HideValues!$B$48,NETWORKDAYS(MG9,MG9,Tools!$B$10:$B$55),1) -> 0 | MH8: =IF(HideValues!$B$48,NETWORKDAYS(MH9,MH9,Tools!$B$10:$B$55),1) -> 0 | MI8: =IF(HideValues!$B$48,NETWORKDAYS(MI9,MI9,Tools!$B$10:$B$55),1) -> 1 | MJ8: =IF(HideValues!$B$48,NETWORKDAYS(MJ9,MJ9,Tools!$B$10:$B$55),1) -> 1 | MK8: =IF(HideValues!$B$48,NETWORKDAYS(MK9,MK9,Tools!$B$10:$B$55),1) -> 1 | ML8: =IF(HideValues!$B$48,NETWORKDAYS(ML9,ML9,Tools!$B$10:$B$55),1) -> 1 | MM8: =IF(HideValues!$B$48,NETWORKDAYS(MM9,MM9,Tools!$B$10:$B$55),1) -> 1 | MN8: =IF(HideValues!$B$48,NETWORKDAYS(MN9,MN9,Tools!$B$10:$B$55),1) -> 0 | MO8: =IF(HideValues!$B$48,NETWORKDAYS(MO9,MO9,Tools!$B$10:$B$55),1) -> 0 | MP8: =IF(HideValues!$B$48,NETWORKDAYS(MP9,MP9,Tools!$B$10:$B$55),1) -> 1 | MQ8: =IF(HideValues!$B$48,NETWORKDAYS(MQ9,MQ9,Tools!$B$10:$B$55),1) -> 1 | MR8: =IF(HideValues!$B$48,NETWORKDAYS(MR9,MR9,Tools!$B$10:$B$55),1) -> 1 | MS8: =IF(HideValues!$B$48,NETWORKDAYS(MS9,MS9,Tools!$B$10:$B$55),1) -> 1 | MT8: =IF(HideValues!$B$48,NETWORKDAYS(MT9,MT9,Tools!$B$10:$B$55),1) -> 1 | MU8: =IF(HideValues!$B$48,NETWORKDAYS(MU9,MU9,Tools!$B$10:$B$55),1) -> 0 | MV8: =IF(HideValues!$B$48,NETWORKDAYS(MV9,MV9,Tools!$B$10:$B$55),1) -> 0 | MW8: =IF(HideValues!$B$48,NETWORKDAYS(MW9,MW9,Tools!$B$10:$B$55),1) -> 1 | MX8: =IF(HideValues!$B$48,NETWORKDAYS(MX9,MX9,Tools!$B$10:$B$55),1) -> 1 | MY8: =IF(HideValues!$B$48,NETWORKDAYS(MY9,MY9,Tools!$B$10:$B$55),1) -> 1 | MZ8: =IF(HideValues!$B$48,NETWORKDAYS(MZ9,MZ9,Tools!$B$10:$B$55),1) -> 1 | NA8: =IF(HideValues!$B$48,NETWORKDAYS(NA9,NA9,Tools!$B$10:$B$55),1) -> 1 | NB8: =IF(HideValues!$B$48,NETWORKDAYS(NB9,NB9,Tools!$B$10:$B$55),1) -> 0 | NC8: =IF(HideValues!$B$48,NETWORKDAYS(NC9,NC9,Tools!$B$10:$B$55),1) -> 0 | ND8: =IF(HideValues!$B$48,NETWORKDAYS(ND9,ND9,Tools!$B$10:$B$55),1) -> 1 | NE8: =IF(HideValues!$B$48,NETWORKDAYS(NE9,NE9,Tools!$B$10:$B$55),1) -> 1 | NF8: =IF(HideValues!$B$48,NETWORKDAYS(NF9,NF9,Tools!$B$10:$B$55),1) -> 1 | NG8: =IF(HideValues!$B$48,NETWORKDAYS(NG9,NG9,Tools!$B$10:$B$55),1) -> 1 | NH8: =IF(HideValues!$B$48,NETWORKDAYS(NH9,NH9,Tools!$B$10:$B$55),1) -> 1 | NI8: =IF(HideValues!$B$48,NETWORKDAYS(NI9,NI9,Tools!$B$10:$B$55),1) -> 0 | NJ8: =IF(HideValues!$B$48,NETWORKDAYS(NJ9,NJ9,Tools!$B$10:$B$55),1) -> 0 | NK8: =IF(HideValues!$B$48,NETWORKDAYS(NK9,NK9,Tools!$B$10:$B$55),1) -> 1 | NL8: =IF(HideValues!$B$48,NETWORKDAYS(NL9,NL9,Tools!$B$10:$B$55),1) -> 1 | NM8: =IF(HideValues!$B$48,NETWORKDAYS(NM9,NM9,Tools!$B$10:$B$55),1) -> 1 | NN8: =IF(HideValues!$B$48,NETWORKDAYS(NN9,NN9,Tools!$B$10:$B$55),1) -> 1 | NO8: =IF(HideValues!$B$48,NETWORKDAYS(NO9,NO9,Tools!$B$10:$B$55),1) -> 1 | NP8: =IF(HideValues!$B$48,NETWORKDAYS(NP9,NP9,Tools!$B$10:$B$55),1) -> 0 | NQ8: =IF(HideValues!$B$48,NETWORKDAYS(NQ9,NQ9,Tools!$B$10:$B$55),1) -> 0 | NR8: =IF(HideValues!$B$48,NETWORKDAYS(NR9,NR9,Tools!$B$10:$B$55),1) -> 1 | NS8: =IF(HideValues!$B$48,NETWORKDAYS(NS9,NS9,Tools!$B$10:$B$55),1) -> 1 | NT8: =IF(HideValues!$B$48,NETWORKDAYS(NT9,NT9,Tools!$B$10:$B$55),1) -> 1 | NU8: =IF(HideValues!$B$48,NETWORKDAYS(NU9,NU9,Tools!$B$10:$B$55),1) -> 1 | NV8: =IF(HideValues!$B$48,NETWORKDAYS(NV9,NV9,Tools!$B$10:$B$55),1) -> 1 | NW8: =IF(HideValues!$B$48,NETWORKDAYS(NW9,NW9,Tools!$B$10:$B$55),1) -> 0 | NX8: =IF(HideValues!$B$48,NETWORKDAYS(NX9,NX9,Tools!$B$10:$B$55),1) -> 0 | NY8: =IF(HideValues!$B$48,NETWORKDAYS(NY9,NY9,Tools!$B$10:$B$55),1) -> 1 | NZ8: =IF(HideValues!$B$48,NETWORKDAYS(NZ9,NZ9,Tools!$B$10:$B$55),1) -> 1 | OA8: =IF(HideValues!$B$48,NETWORKDAYS(OA9,OA9,Tools!$B$10:$B$55),1) -> 1 | OB8: =IF(HideValues!$B$48,NETWORKDAYS(OB9,OB9,Tools!$B$10:$B$55),1) -> 1 | OC8: =IF(HideValues!$B$48,NETWORKDAYS(OC9,OC9,Tools!$B$10:$B$55),1) -> 1 | OD8: =IF(HideValues!$B$48,NETWORKDAYS(OD9,OD9,Tools!$B$10:$B$55),1) -> 0 | OE8: =IF(HideValues!$B$48,NETWORKDAYS(OE9,OE9,Tools!$B$10:$B$55),1) -> 0 | OF8: =IF(HideValues!$B$48,NETWORKDAYS(OF9,OF9,Tools!$B$10:$B$55),1) -> 1 | OG8: =IF(HideValues!$B$48,NETWORKDAYS(OG9,OG9,Tools!$B$10:$B$55),1) -> 1 | OH8: =IF(HideValues!$B$48,NETWORKDAYS(OH9,OH9,Tools!$B$10:$B$55),1) -> 1 | OI8: =IF(HideValues!$B$48,NETWORKDAYS(OI9,OI9,Tools!$B$10:$B$55),1) -> 1 | OJ8: =IF(HideValues!$B$48,NETWORKDAYS(OJ9,OJ9,Tools!$B$10:$B$55),1) -> 1 | OK8: =IF(HideValues!$B$48,NETWORKDAYS(OK9,OK9,Tools!$B$10:$B$55),1) -> 0 | OL8: =IF(HideValues!$B$48,NETWORKDAYS(OL9,OL9,Tools!$B$10:$B$55),1) -> 0 | OM8: =IF(HideValues!$B$48,NETWORKDAYS(OM9,OM9,Tools!$B$10:$B$55),1) -> 1 | ON8: =IF(HideValues!$B$48,NETWORKDAYS(ON9,ON9,Tools!$B$10:$B$55),1) -> 1 | OO8: =IF(HideValues!$B$48,NETWORKDAYS(OO9,OO9,Tools!$B$10:$B$55),1) -> 1 | OP8: =IF(HideValues!$B$48,NETWORKDAYS(OP9,OP9,Tools!$B$10:$B$55),1) -> 1 | OQ8: =IF(HideValues!$B$48,NETWORKDAYS(OQ9,OQ9,Tools!$B$10:$B$55),1) -> 1 | OR8: =IF(HideValues!$B$48,NETWORKDAYS(OR9,OR9,Tools!$B$10:$B$55),1) -> 0 | OS8: =IF(HideValues!$B$48,NETWORKDAYS(OS9,OS9,Tools!$B$10:$B$55),1) -> 0 | OT8: =IF(HideValues!$B$48,NETWORKDAYS(OT9,OT9,Tools!$B$10:$B$55),1) -> 1 | OU8: =IF(HideValues!$B$48,NETWORKDAYS(OU9,OU9,Tools!$B$10:$B$55),1) -> 1 | OV8: =IF(HideValues!$B$48,NETWORKDAYS(OV9,OV9,Tools!$B$10:$B$55),1) -> 1 | OW8: =IF(HideValues!$B$48,NETWORKDAYS(OW9,OW9,Tools!$B$10:$B$55),1) -> 1 | OX8: =IF(HideValues!$B$48,NETWORKDAYS(OX9,OX9,Tools!$B$10:$B$55),1) -> 1 | OY8: =IF(HideValues!$B$48,NETWORKDAYS(OY9,OY9,Tools!$B$10:$B$55),1) -> 0 | OZ8: =IF(HideValues!$B$48,NETWORKDAYS(OZ9,OZ9,Tools!$B$10:$B$55),1) -> 0 | PA8: =IF(HideValues!$B$48,NETWORKDAYS(PA9,PA9,Tools!$B$10:$B$55),1) -> 1 | PB8: =IF(HideValues!$B$48,NETWORKDAYS(PB9,PB9,Tools!$B$10:$B$55),1) -> 1 | PC8: =IF(HideValues!$B$48,NETWORKDAYS(PC9,PC9,Tools!$B$10:$B$55),1) -> 1 | PD8: =IF(HideValues!$B$48,NETWORKDAYS(PD9,PD9,Tools!$B$10:$B$55),1) -> 1 | PE8: =IF(HideValues!$B$48,NETWORKDAYS(PE9,PE9,Tools!$B$10:$B$55),1) -> 1 | PF8: =IF(HideValues!$B$48,NETWORKDAYS(PF9,PF9,Tools!$B$10:$B$55),1) -> 0 | PG8: =IF(HideValues!$B$48,NETWORKDAYS(PG9,PG9,Tools!$B$10:$B$55),1) -> 0 | PH8: =IF(HideValues!$B$48,NETWORKDAYS(PH9,PH9,Tools!$B$10:$B$55),1) -> 1 | PI8: =IF(HideValues!$B$48,NETWORKDAYS(PI9,PI9,Tools!$B$10:$B$55),1) -> 1 | PJ8: =IF(HideValues!$B$48,NETWORKDAYS(PJ9,PJ9,Tools!$B$10:$B$55),1) -> 1 | PK8: =IF(HideValues!$B$48,NETWORKDAYS(PK9,PK9,Tools!$B$10:$B$55),1) -> 1 | PL8: =IF(HideValues!$B$48,NETWORKDAYS(PL9,PL9,Tools!$B$10:$B$55),1) -> 1 | PM8: =IF(HideValues!$B$48,NETWORKDAYS(PM9,PM9,Tools!$B$10:$B$55),1) -> 0 | PN8: =IF(HideValues!$B$48,NETWORKDAYS(PN9,PN9,Tools!$B$10:$B$55),1) -> 0 | PO8: =IF(HideValues!$B$48,NETWORKDAYS(PO9,PO9,Tools!$B$10:$B$55),1) -> 1 | PP8: =IF(HideValues!$B$48,NETWORKDAYS(PP9,PP9,Tools!$B$10:$B$55),1) -> 1 | PQ8: =IF(HideValues!$B$48,NETWORKDAYS(PQ9,PQ9,Tools!$B$10:$B$55),1) -> 1 | PR8: =IF(HideValues!$B$48,NETWORKDAYS(PR9,PR9,Tools!$B$10:$B$55),1) -> 1 | PS8: =IF(HideValues!$B$48,NETWORKDAYS(PS9,PS9,Tools!$B$10:$B$55),1) -> 1 | PT8: =IF(HideValues!$B$48,NETWORKDAYS(PT9,PT9,Tools!$B$10:$B$55),1) -> 0 | PU8: =IF(HideValues!$B$48,NETWORKDAYS(PU9,PU9,Tools!$B$10:$B$55),1) -> 0 | PV8: =IF(HideValues!$B$48,NETWORKDAYS(PV9,PV9,Tools!$B$10:$B$55),1) -> 1 | PW8: =IF(HideValues!$B$48,NETWORKDAYS(PW9,PW9,Tools!$B$10:$B$55),1) -> 1 | PX8: =IF(HideValues!$B$48,NETWORKDAYS(PX9,PX9,Tools!$B$10:$B$55),1) -> 1 | PY8: =IF(HideValues!$B$48,NETWORKDAYS(PY9,PY9,Tools!$B$10:$B$55),1) -> 1 | PZ8: =IF(HideValues!$B$48,NETWORKDAYS(PZ9,PZ9,Tools!$B$10:$B$55),1) -> 1 | QA8: =IF(HideValues!$B$48,NETWORKDAYS(QA9,QA9,Tools!$B$10:$B$55),1) -> 0 | QB8: =IF(HideValues!$B$48,NETWORKDAYS(QB9,QB9,Tools!$B$10:$B$55),1) -> 0 | QC8: =IF(HideValues!$B$48,NETWORKDAYS(QC9,QC9,Tools!$B$10:$B$55),1) -> 1 | QD8: =IF(HideValues!$B$48,NETWORKDAYS(QD9,QD9,Tools!$B$10:$B$55),1) -> 1 | QE8: =IF(HideValues!$B$48,NETWORKDAYS(QE9,QE9,Tools!$B$10:$B$55),1) -> 1 | QF8: =IF(HideValues!$B$48,NETWORKDAYS(QF9,QF9,Tools!$B$10:$B$55),1) -> 1 | QG8: =IF(HideValues!$B$48,NETWORKDAYS(QG9,QG9,Tools!$B$10:$B$55),1) -> 1 | QH8: =IF(HideValues!$B$48,NETWORKDAYS(QH9,QH9,Tools!$B$10:$B$55),1) -> 0 | QI8: =IF(HideValues!$B$48,NETWORKDAYS(QI9,QI9,Tools!$B$10:$B$55),1) -> 0 | QJ8: =IF(HideValues!$B$48,NETWORKDAYS(QJ9,QJ9,Tools!$B$10:$B$55),1) -> 1 | QK8: =IF(HideValues!$B$48,NETWORKDAYS(QK9,QK9,Tools!$B$10:$B$55),1) -> 1 | QL8: =IF(HideValues!$B$48,NETWORKDAYS(QL9,QL9,Tools!$B$10:$B$55),1) -> 1 | QM8: =IF(HideValues!$B$48,NETWORKDAYS(QM9,QM9,Tools!$B$10:$B$55),1) -> 1 | QN8: =IF(HideValues!$B$48,NETWORKDAYS(QN9,QN9,Tools!$B$10:$B$55),1) -> 1 | QO8: =IF(HideValues!$B$48,NETWORKDAYS(QO9,QO9,Tools!$B$10:$B$55),1) -> 0 | QP8: =IF(HideValues!$B$48,NETWORKDAYS(QP9,QP9,Tools!$B$10:$B$55),1) -> 0 | QQ8: =IF(HideValues!$B$48,NETWORKDAYS(QQ9,QQ9,Tools!$B$10:$B$55),1) -> 1 | QR8: =IF(HideValues!$B$48,NETWORKDAYS(QR9,QR9,Tools!$B$10:$B$55),1) -> 1 | QS8: =IF(HideValues!$B$48,NETWORKDAYS(QS9,QS9,Tools!$B$10:$B$55),1) -> 1 | QT8: =IF(HideValues!$B$48,NETWORKDAYS(QT9,QT9,Tools!$B$10:$B$55),1) -> 1 | QU8: =IF(HideValues!$B$48,NETWORKDAYS(QU9,QU9,Tools!$B$10:$B$55),1) -> 1 | QV8: =IF(HideValues!$B$48,NETWORKDAYS(QV9,QV9,Tools!$B$10:$B$55),1) -> 0 | QW8: =IF(HideValues!$B$48,NETWORKDAYS(QW9,QW9,Tools!$B$10:$B$55),1) -> 0 | QX8: =IF(HideValues!$B$48,NETWORKDAYS(QX9,QX9,Tools!$B$10:$B$55),1) -> 1 | QY8: =IF(HideValues!$B$48,NETWORKDAYS(QY9,QY9,Tools!$B$10:$B$55),1) -> 1 | QZ8: =IF(HideValues!$B$48,NETWORKDAYS(QZ9,QZ9,Tools!$B$10:$B$55),1) -> 1 | RA8: =IF(HideValues!$B$48,NETWORKDAYS(RA9,RA9,Tools!$B$10:$B$55),1) -> 1 | RB8: =IF(HideValues!$B$48,NETWORKDAYS(RB9,RB9,Tools!$B$10:$B$55),1) -> 1 | RC8: =IF(HideValues!$B$48,NETWORKDAYS(RC9,RC9,Tools!$B$10:$B$55),1) -> 0 | RD8: =IF(HideValues!$B$48,NETWORKDAYS(RD9,RD9,Tools!$B$10:$B$55),1) -> 0 | RE8: =IF(HideValues!$B$48,NETWORKDAYS(RE9,RE9,Tools!$B$10:$B$55),1) -> 1 | RF8: =IF(HideValues!$B$48,NETWORKDAYS(RF9,RF9,Tools!$B$10:$B$55),1) -> 1 | RG8: =IF(HideValues!$B$48,NETWORKDAYS(RG9,RG9,Tools!$B$10:$B$55),1) -> 1 | RH8: =IF(HideValues!$B$48,NETWORKDAYS(RH9,RH9,Tools!$B$10:$B$55),1) -> 1 | RI8: =IF(HideValues!$B$48,NETWORKDAYS(RI9,RI9,Tools!$B$10:$B$55),1) -> 1 | RJ8: =IF(HideValues!$B$48,NETWORKDAYS(RJ9,RJ9,Tools!$B$10:$B$55),1) -> 0 | RK8: =IF(HideValues!$B$48,NETWORKDAYS(RK9,RK9,Tools!$B$10:$B$55),1) -> 0 | RL8: =IF(HideValues!$B$48,NETWORKDAYS(RL9,RL9,Tools!$B$10:$B$55),1) -> 1 | RM8: =IF(HideValues!$B$48,NETWORKDAYS(RM9,RM9,Tools!$B$10:$B$55),1) -> 1 | RN8: =IF(HideValues!$B$48,NETWORKDAYS(RN9,RN9,Tools!$B$10:$B$55),1) -> 1 | RO8: =IF(HideValues!$B$48,NETWORKDAYS(RO9,RO9,Tools!$B$10:$B$55),1) -> 1 | RP8: =IF(HideValues!$B$48,NETWORKDAYS(RP9,RP9,Tools!$B$10:$B$55),1) -> 1 | RQ8: =IF(HideValues!$B$48,NETWORKDAYS(RQ9,RQ9,Tools!$B$10:$B$55),1) -> 0 | RR8: =IF(HideValues!$B$48,NETWORKDAYS(RR9,RR9,Tools!$B$10:$B$55),1) -> 0 | RS8: =IF(HideValues!$B$48,NETWORKDAYS(RS9,RS9,Tools!$B$10:$B$55),1) -> 1 | RT8: =IF(HideValues!$B$48,NETWORKDAYS(RT9,RT9,Tools!$B$10:$B$55),1) -> 1 | RU8: =IF(HideValues!$B$48,NETWORKDAYS(RU9,RU9,Tools!$B$10:$B$55),1) -> 1 | RV8: =IF(HideValues!$B$48,NETWORKDAYS(RV9,RV9,Tools!$B$10:$B$55),1) -> 1 | RW8: =IF(HideValues!$B$48,NETWORKDAYS(RW9,RW9,Tools!$B$10:$B$55),1) -> 1 | RX8: =IF(HideValues!$B$48,NETWORKDAYS(RX9,RX9,Tools!$B$10:$B$55),1) -> 0 | RY8: =IF(HideValues!$B$48,NETWORKDAYS(RY9,RY9,Tools!$B$10:$B$55),1) -> 0 | RZ8: =IF(HideValues!$B$48,NETWORKDAYS(RZ9,RZ9,Tools!$B$10:$B$55),1) -> 1 | SA8: =IF(HideValues!$B$48,NETWORKDAYS(SA9,SA9,Tools!$B$10:$B$55),1) -> 1 | SB8: =IF(HideValues!$B$48,NETWORKDAYS(SB9,SB9,Tools!$B$10:$B$55),1) -> 1 | SC8: =IF(HideValues!$B$48,NETWORKDAYS(SC9,SC9,Tools!$B$10:$B$55),1) -> 1 | SD8: =IF(HideValues!$B$48,NETWORKDAYS(SD9,SD9,Tools!$B$10:$B$55),1) -> 1 | SE8: =IF(HideValues!$B$48,NETWORKDAYS(SE9,SE9,Tools!$B$10:$B$55),1) -> 0 | SF8: =IF(HideValues!$B$48,NETWORKDAYS(SF9,SF9,Tools!$B$10:$B$55),1) -> 0 | SG8: =IF(HideValues!$B$48,NETWORKDAYS(SG9,SG9,Tools!$B$10:$B$55),1) -> 1 | SH8: =IF(HideValues!$B$48,NETWORKDAYS(SH9,SH9,Tools!$B$10:$B$55),1) -> 1 | SI8: =IF(HideValues!$B$48,NETWORKDAYS(SI9,SI9,Tools!$B$10:$B$55),1) -> 1 | SJ8: =IF(HideValues!$B$48,NETWORKDAYS(SJ9,SJ9,Tools!$B$10:$B$55),1) -> 1 | SK8: =IF(HideValues!$B$48,NETWORKDAYS(SK9,SK9,Tools!$B$10:$B$55),1) -> 1 | SL8: =IF(HideValues!$B$48,NETWORKDAYS(SL9,SL9,Tools!$B$10:$B$55),1) -> 0 | SM8: =IF(HideValues!$B$48,NETWORKDAYS(SM9,SM9,Tools!$B$10:$B$55),1) -> 0 | SN8: =IF(HideValues!$B$48,NETWORKDAYS(SN9,SN9,Tools!$B$10:$B$55),1) -> 1 | SO8: =IF(HideValues!$B$48,NETWORKDAYS(SO9,SO9,Tools!$B$10:$B$55),1) -> 1 | SP8: =IF(HideValues!$B$48,NETWORKDAYS(SP9,SP9,Tools!$B$10:$B$55),1) -> 1 | SQ8: =IF(HideValues!$B$48,NETWORKDAYS(SQ9,SQ9,Tools!$B$10:$B$55),1) -> 1 | SR8: =IF(HideValues!$B$48,NETWORKDAYS(SR9,SR9,Tools!$B$10:$B$55),1) -> 1 | SS8: =IF(HideValues!$B$48,NETWORKDAYS(SS9,SS9,Tools!$B$10:$B$55),1) -> 0 | ST8: =IF(HideValues!$B$48,NETWORKDAYS(ST9,ST9,Tools!$B$10:$B$55),1) -> 0 | SU8: =IF(HideValues!$B$48,NETWORKDAYS(SU9,SU9,Tools!$B$10:$B$55),1) -> 1 | SV8: =IF(HideValues!$B$48,NETWORKDAYS(SV9,SV9,Tools!$B$10:$B$55),1) -> 1 | SW8: =IF(HideValues!$B$48,NETWORKDAYS(SW9,SW9,Tools!$B$10:$B$55),1) -> 1 | SX8: =IF(HideValues!$B$48,NETWORKDAYS(SX9,SX9,Tools!$B$10:$B$55),1) -> 1 | SY8: =IF(HideValues!$B$48,NETWORKDAYS(SY9,SY9,Tools!$B$10:$B$55),1) -> 1 | SZ8: =IF(HideValues!$B$48,NETWORKDAYS(SZ9,SZ9,Tools!$B$10:$B$55),1) -> 0 | TA8: =IF(HideValues!$B$48,NETWORKDAYS(TA9,TA9,Tools!$B$10:$B$55),1) -> 0 | TB8: =IF(HideValues!$B$48,NETWORKDAYS(TB9,TB9,Tools!$B$10:$B$55),1) -> 1 | TC8: =IF(HideValues!$B$48,NETWORKDAYS(TC9,TC9,Tools!$B$10:$B$55),1) -> 1 | TD8: =IF(HideValues!$B$48,NETWORKDAYS(TD9,TD9,Tools!$B$10:$B$55),1) -> 1 | TE8: =IF(HideValues!$B$48,NETWORKDAYS(TE9,TE9,Tools!$B$10:$B$55),1) -> 1 | TF8: =IF(HideValues!$B$48,NETWORKDAYS(TF9,TF9,Tools!$B$10:$B$55),1) -> 1 | TG8: =IF(HideValues!$B$48,NETWORKDAYS(TG9,TG9,Tools!$B$10:$B$55),1) -> 0 | TH8: =IF(HideValues!$B$48,NETWORKDAYS(TH9,TH9,Tools!$B$10:$B$55),1) -> 0 | TI8: =IF(HideValues!$B$48,NETWORKDAYS(TI9,TI9,Tools!$B$10:$B$55),1) -> 1 | TJ8: =IF(HideValues!$B$48,NETWORKDAYS(TJ9,TJ9,Tools!$B$10:$B$55),1) -> 1 | TK8: =IF(HideValues!$B$48,NETWORKDAYS(TK9,TK9,Tools!$B$10:$B$55),1) -> 1 | TL8: =IF(HideValues!$B$48,NETWORKDAYS(TL9,TL9,Tools!$B$10:$B$55),1) -> 1 | TM8: =IF(HideValues!$B$48,NETWORKDAYS(TM9,TM9,Tools!$B$10:$B$55),1) -> 1 | TN8: =IF(HideValues!$B$48,NETWORKDAYS(TN9,TN9,Tools!$B$10:$B$55),1) -> 0 | TO8: =IF(HideValues!$B$48,NETWORKDAYS(TO9,TO9,Tools!$B$10:$B$55),1) -> 0 | TP8: =IF(HideValues!$B$48,NETWORKDAYS(TP9,TP9,Tools!$B$10:$B$55),1) -> 1 | TQ8: =IF(HideValues!$B$48,NETWORKDAYS(TQ9,TQ9,Tools!$B$10:$B$55),1) -> 1 | TR8: =IF(HideValues!$B$48,NETWORKDAYS(TR9,TR9,Tools!$B$10:$B$55),1) -> 1 | TS8: =IF(HideValues!$B$48,NETWORKDAYS(TS9,TS9,Tools!$B$10:$B$55),1) -> 1 | TT8: =IF(HideValues!$B$48,NETWORKDAYS(TT9,TT9,Tools!$B$10:$B$55),1) -> 1 | TU8: =IF(HideValues!$B$48,NETWORKDAYS(TU9,TU9,Tools!$B$10:$B$55),1) -> 0 | TV8: =IF(HideValues!$B$48,NETWORKDAYS(TV9,TV9,Tools!$B$10:$B$55),1) -> 0 | TW8: =IF(HideValues!$B$48,NETWORKDAYS(TW9,TW9,Tools!$B$10:$B$55),1) -> 1 | TX8: =IF(HideValues!$B$48,NETWORKDAYS(TX9,TX9,Tools!$B$10:$B$55),1) -> 1 | TY8: =IF(HideValues!$B$48,NETWORKDAYS(TY9,TY9,Tools!$B$10:$B$55),1) -> 1 | TZ8: =IF(HideValues!$B$48,NETWORKDAYS(TZ9,TZ9,Tools!$B$10:$B$55),1) -> 1 | UA8: =IF(HideValues!$B$48,NETWORKDAYS(UA9,UA9,Tools!$B$10:$B$55),1) -> 1 | UB8: =IF(HideValues!$B$48,NETWORKDAYS(UB9,UB9,Tools!$B$10:$B$55),1) -> 0 | UC8: =IF(HideValues!$B$48,NETWORKDAYS(UC9,UC9,Tools!$B$10:$B$55),1) -> 0 | UD8: =IF(HideValues!$B$48,NETWORKDAYS(UD9,UD9,Tools!$B$10:$B$55),1) -> 1 | UE8: =IF(HideValues!$B$48,NETWORKDAYS(UE9,UE9,Tools!$B$10:$B$55),1) -> 1 | UF8: =IF(HideValues!$B$48,NETWORKDAYS(UF9,UF9,Tools!$B$10:$B$55),1) -> 1 | UG8: =IF(HideValues!$B$48,NETWORKDAYS(UG9,UG9,Tools!$B$10:$B$55),1) -> 1 | UH8: =IF(HideValues!$B$48,NETWORKDAYS(UH9,UH9,Tools!$B$10:$B$55),1) -> 1 | UI8: =IF(HideValues!$B$48,NETWORKDAYS(UI9,UI9,Tools!$B$10:$B$55),1) -> 0 | UJ8: =IF(HideValues!$B$48,NETWORKDAYS(UJ9,UJ9,Tools!$B$10:$B$55),1) -> 0 | UK8: =IF(HideValues!$B$48,NETWORKDAYS(UK9,UK9,Tools!$B$10:$B$55),1) -> 1 | UL8: =IF(HideValues!$B$48,NETWORKDAYS(UL9,UL9,Tools!$B$10:$B$55),1) -> 1 | UM8: =IF(HideValues!$B$48,NETWORKDAYS(UM9,UM9,Tools!$B$10:$B$55),1) -> 1 | UN8: =IF(HideValues!$B$48,NETWORKDAYS(UN9,UN9,Tools!$B$10:$B$55),1) -> 1 | UO8: =IF(HideValues!$B$48,NETWORKDAYS(UO9,UO9,Tools!$B$10:$B$55),1) -> 1 | UP8: =IF(HideValues!$B$48,NETWORKDAYS(UP9,UP9,Tools!$B$10:$B$55),1) -> 0 | UQ8: =IF(HideValues!$B$48,NETWORKDAYS(UQ9,UQ9,Tools!$B$10:$B$55),1) -> 0 | UR8: =IF(HideValues!$B$48,NETWORKDAYS(UR9,UR9,Tools!$B$10:$B$55),1) -> 1 | US8: =IF(HideValues!$B$48,NETWORKDAYS(US9,US9,Tools!$B$10:$B$55),1) -> 1 | UT8: =IF(HideValues!$B$48,NETWORKDAYS(UT9,UT9,Tools!$B$10:$B$55),1) -> 1 | UU8: =IF(HideValues!$B$48,NETWORKDAYS(UU9,UU9,Tools!$B$10:$B$55),1) -> 1 | UV8: =IF(HideValues!$B$48,NETWORKDAYS(UV9,UV9,Tools!$B$10:$B$55),1) -> 1 | UW8: =IF(HideValues!$B$48,NETWORKDAYS(UW9,UW9,Tools!$B$10:$B$55),1) -> 0 | UX8: =IF(HideValues!$B$48,NETWORKDAYS(UX9,UX9,Tools!$B$10:$B$55),1) -> 0 | UY8: =IF(HideValues!$B$48,NETWORKDAYS(UY9,UY9,Tools!$B$10:$B$55),1) -> 1 | UZ8: =IF(HideValues!$B$48,NETWORKDAYS(UZ9,UZ9,Tools!$B$10:$B$55),1) -> 1 | VA8: =IF(HideValues!$B$48,NETWORKDAYS(VA9,VA9,Tools!$B$10:$B$55),1) -> 1 | VB8: =IF(HideValues!$B$48,NETWORKDAYS(VB9,VB9,Tools!$B$10:$B$55),1) -> 1 | VC8: =IF(HideValues!$B$48,NETWORKDAYS(VC9,VC9,Tools!$B$10:$B$55),1) -> 1 | VD8: =IF(HideValues!$B$48,NETWORKDAYS(VD9,VD9,Tools!$B$10:$B$55),1) -> 0 | VE8: =IF(HideValues!$B$48,NETWORKDAYS(VE9,VE9,Tools!$B$10:$B$55),1) -> 0 | VF8: =IF(HideValues!$B$48,NETWORKDAYS(VF9,VF9,Tools!$B$10:$B$55),1) -> 1
AG9: =HideValues!D4 -> 2016-11-08 | AH9: =AG9+1 -> 2016-11-09 | AI9: 2016-11-10 | AJ9: 2016-11-11 | AK9: 2016-11-12 | AL9: 2016-11-13 | AM9: 2016-11-14 | AN9: 2016-11-15 | AO9: =AN9+1 -> 2016-11-16 | AP9: 2016-11-17 | AQ9: =AP9+1 -> 2016-11-18 | AR9: 2016-11-19 | AS9: 2016-11-20 | AT9: 2016-11-21 | AU9: 2016-11-22 | AV9: 2016-11-23 | AW9: 2016-11-24 | AX9: 2016-11-25 | AY9: 2016-11-26 | AZ9: 2016-11-27 | BA9: 2016-11-28 | BB9: =BA9+1 -> 2016-11-29 | BC9: =BB9+1 -> 2016-11-30 | BD9: 2016-12-01 | BE9: 2016-12-02 | BF9: 2016-12-03 | BG9: 2016-12-04 | BH9: 2016-12-05 | BI9: 2016-12-06 | BJ9: 2016-12-07 | BK9: 2016-12-08 | BL9: 2016-12-09 | BM9: 2016-12-10 | BN9: 2016-12-11 | BO9: 2016-12-12 | BP9: 2016-12-13 | BQ9: 2016-12-14 | BR9: 2016-12-15 | BS9: 2016-12-16 | BT9: 2016-12-17 | BU9: 2016-12-18 | BV9: 2016-12-19 | BW9: 2016-12-20 | BX9: 2016-12-21 | BY9: 2016-12-22 | BZ9: 2016-12-23 | CA9: 2016-12-24 | CB9: 2016-12-25 | CC9: 2016-12-26 | CD9: 2016-12-27 | CE9: 2016-12-28 | CF9: 2016-12-29 | CG9: 2016-12-30 | CH9: 2016-12-31 | CI9: 2017-01-01 | CJ9: 2017-01-02 | CK9: 2017-01-03 | CL9: 2017-01-04 | CM9: 2017-01-05 | CN9: 2017-01-06 | CO9: 2017-01-07 | CP9: 2017-01-08 | CQ9: 2017-01-09 | CR9: 2017-01-10 | CS9: 2017-01-11 | CT9: 2017-01-12 | CU9: =CT9+1 -> 2017-01-13 | CV9: 2017-01-14 | CW9: 2017-01-15 | CX9: 2017-01-16 | CY9: 2017-01-17 | CZ9: 2017-01-18 | DA9: 2017-01-19 | DB9: 2017-01-20 | DC9: 2017-01-21 | DD9: 2017-01-22 | DE9: 2017-01-23 | DF9: 2017-01-24 | DG9: 2017-01-25 | DH9: 2017-01-26 | DI9: 2017-01-27 | DJ9: 2017-01-28 | DK9: 2017-01-29 | DL9: 2017-01-30 | DM9: 2017-01-31 | DN9: 2017-02-01 | DO9: 2017-02-02 | DP9: 2017-02-03 | DQ9: 2017-02-04 | DR9: 2017-02-05 | DS9: 2017-02-06 | DT9: 2017-02-07 | DU9: 2017-02-08 | DV9: 2017-02-09 | DW9: 2017-02-10 | DX9: =DW9+1 -> 2017-02-11 | DY9: 2017-02-12 | DZ9: 2017-02-13 | EA9: 2017-02-14 | EB9: 2017-02-15 | EC9: 2017-02-16 | ED9: 2017-02-17 | EE9: 2017-02-18 | EF9: 2017-02-19 | EG9: 2017-02-20 | EH9: 2017-02-21 | EI9: 2017-02-22 | EJ9: 2017-02-23 | EK9: 2017-02-24 | EL9: 2017-02-25 | EM9: 2017-02-26 | EN9: 2017-02-27 | EO9: 2017-02-28 | EP9: 2017-03-01 | EQ9: 2017-03-02 | ER9: 2017-03-03 | ES9: 2017-03-04 | ET9: 2017-03-05 | EU9: 2017-03-06 | EV9: 2017-03-07 | EW9: 2017-03-08 | EX9: 2017-03-09 | EY9: 2017-03-10 | EZ9: 2017-03-11 | FA9: 2017-03-12 | FB9: 2017-03-13 | FC9: 2017-03-14 | FD9: 2017-03-15 | FE9: 2017-03-16 | FF9: 2017-03-17 | FG9: 2017-03-18 | FH9: 2017-03-19 | FI9: 2017-03-20 | FJ9: 2017-03-21 | FK9: 2017-03-22 | FL9: 2017-03-23 | FM9: 2017-03-24 | FN9: 2017-03-25 | FO9: 2017-03-26 | FP9: 2017-03-27 | FQ9: 2017-03-28 | FR9: 2017-03-29 | FS9: 2017-03-30 | FT9: 2017-03-31 | FU9: 2017-04-01 | FV9: 2017-04-02 | FW9: 2017-04-03 | FX9: 2017-04-04 | FY9: 2017-04-05 | FZ9: 2017-04-06 | GA9: 2017-04-07 | GB9: 2017-04-08 | GC9: 2017-04-09 | GD9: 2017-04-10 | GE9: 2017-04-11 | GF9: 2017-04-12 | GG9: 2017-04-13 | GH9: 2017-04-14 | GI9: 2017-04-15 | GJ9: =GI9+1 -> 2017-04-16 | GK9: 2017-04-17 | GL9: 2017-04-18 | GM9: 2017-04-19 | GN9: 2017-04-20 | GO9: 2017-04-21 | GP9: 2017-04-22 | GQ9: 2017-04-23 | GR9: 2017-04-24 | GS9: 2017-04-25 | GT9: 2017-04-26 | GU9: 2017-04-27 | GV9: 2017-04-28 | GW9: 2017-04-29 | GX9: 2017-04-30 | GY9: 2017-05-01 | GZ9: 2017-05-02 | HA9: 2017-05-03 | HB9: 2017-05-04 | HC9: 2017-05-05 | HD9: 2017-05-06 | HE9: 2017-05-07 | HF9: 2017-05-08 | HG9: 2017-05-09 | HH9: 2017-05-10 | HI9: 2017-05-11 | HJ9: 2017-05-12 | HK9: 2017-05-13 | HL9: 2017-05-14 | HM9: 2017-05-15 | HN9: 2017-05-16 | HO9: 2017-05-17 | HP9: 2017-05-18 | HQ9: 2017-05-19 | HR9: 2017-05-20 | HS9: 2017-05-21 | HT9: 2017-05-22 | HU9: 2017-05-23 | HV9: 2017-05-24 | HW9: 2017-05-25 | HX9: 2017-05-26 | HY9: 2017-05-27 | HZ9: 2017-05-28 | IA9: 2017-05-29 | IB9: 2017-05-30 | IC9: 2017-05-31 | ID9: 2017-06-01 | IE9: 2017-06-02 | IF9: 2017-06-03 | IG9: 2017-06-04 | IH9: 2017-06-05 | II9: 2017-06-06 | IJ9: 2017-06-07 | IK9: 2017-06-08 | IL9: 2017-06-09 | IM9: 2017-06-10 | IN9: 2017-06-11 | IO9: 2017-06-12 | IP9: 2017-06-13 | IQ9: 2017-06-14 | IR9: 2017-06-15 | IS9: 2017-06-16 | IT9: 2017-06-17 | IU9: 2017-06-18 | IV9: =IU9+1 -> 2017-06-19 | IW9: 2017-06-20 | IX9: 2017-06-21 | IY9: 2017-06-22 | IZ9: 2017-06-23 | JA9: 2017-06-24 | JB9: 2017-06-25 | JC9: 2017-06-26 | JD9: 2017-06-27 | JE9: 2017-06-28 | JF9: 2017-06-29 | JG9: 2017-06-30 | JH9: 2017-07-01 | JI9: 2017-07-02 | JJ9: 2017-07-03 | JK9: 2017-07-04 | JL9: 2017-07-05 | JM9: 2017-07-06 | JN9: 2017-07-07 | JO9: 2017-07-08 | JP9: 2017-07-09 | JQ9: 2017-07-10 | JR9: 2017-07-11 | JS9: 2017-07-12 | JT9: 2017-07-13 | JU9: 2017-07-14 | JV9: 2017-07-15 | JW9: 2017-07-16 | JX9: 2017-07-17 | JY9: 2017-07-18 | JZ9: 2017-07-19 | KA9: 2017-07-20 | KB9: 2017-07-21 | KC9: 2017-07-22 | KD9: 2017-07-23 | KE9: 2017-07-24 | KF9: 2017-07-25 | KG9: 2017-07-26 | KH9: 2017-07-27 | KI9: 2017-07-28 | KJ9: 2017-07-29 | KK9: 2017-07-30 | KL9: 2017-07-31 | KM9: 2017-08-01 | KN9: 2017-08-02 | KO9: 2017-08-03 | KP9: 2017-08-04 | KQ9: 2017-08-05 | KR9: 2017-08-06 | KS9: 2017-08-07 | KT9: 2017-08-08 | KU9: 2017-08-09 | KV9: 2017-08-10 | KW9: 2017-08-11 | KX9: 2017-08-12 | KY9: 2017-08-13 | KZ9: 2017-08-14 | LA9: 2017-08-15 | LB9: 2017-08-16 | LC9: 2017-08-17 | LD9: 2017-08-18 | LE9: 2017-08-19 | LF9: 2017-08-20 | LG9: 2017-08-21 | LH9: =LG9+1 -> 2017-08-22 | LI9: 2017-08-23 | LJ9: 2017-08-24 | LK9: 2017-08-25 | LL9: 2017-08-26 | LM9: 2017-08-27 | LN9: 2017-08-28 | LO9: 2017-08-29 | LP9: 2017-08-30 | LQ9: 2017-08-31 | LR9: 2017-09-01 | LS9: 2017-09-02 | LT9: 2017-09-03 | LU9: 2017-09-04 | LV9: 2017-09-05 | LW9: 2017-09-06 | LX9: 2017-09-07 | LY9: 2017-09-08 | LZ9: 2017-09-09 | MA9: 2017-09-10 | MB9: 2017-09-11 | MC9: 2017-09-12 | MD9: 2017-09-13 | ME9: 2017-09-14 | MF9: 2017-09-15 | MG9: 2017-09-16 | MH9: 2017-09-17 | MI9: 2017-09-18 | MJ9: 2017-09-19 | MK9: 2017-09-20 | ML9: 2017-09-21 | MM9: 2017-09-22 | MN9: 2017-09-23 | MO9: 2017-09-24 | MP9: 2017-09-25 | MQ9: 2017-09-26 | MR9: 2017-09-27 | MS9: 2017-09-28 | MT9: 2017-09-29 | MU9: 2017-09-30 | MV9: 2017-10-01 | MW9: 2017-10-02 | MX9: 2017-10-03 | MY9: 2017-10-04 | MZ9: 2017-10-05 | NA9: 2017-10-06 | NB9: 2017-10-07 | NC9: 2017-10-08 | ND9: 2017-10-09 | NE9: 2017-10-10 | NF9: 2017-10-11 | NG9: 2017-10-12 | NH9: 2017-10-13 | NI9: 2017-10-14 | NJ9: 2017-10-15 | NK9: 2017-10-16 | NL9: 2017-10-17 | NM9: 2017-10-18 | NN9: 2017-10-19 | NO9: 2017-10-20 | NP9: 2017-10-21 | NQ9: 2017-10-22 | NR9: 2017-10-23 | NS9: 2017-10-24 | NT9: =NS9+1 -> 2017-10-25 | NU9: 2017-10-26 | NV9: 2017-10-27 | NW9: 2017-10-28 | NX9: 2017-10-29 | NY9: 2017-10-30 | NZ9: 2017-10-31 | OA9: 2017-11-01 | OB9: 2017-11-02 | OC9: 2017-11-03 | OD9: 2017-11-04 | OE9: 2017-11-05 | OF9: 2017-11-06 | OG9: 2017-11-07 | OH9: 2017-11-08 | OI9: 2017-11-09 | OJ9: 2017-11-10 | OK9: 2017-11-11 | OL9: 2017-11-12 | OM9: 2017-11-13 | ON9: 2017-11-14 | OO9: 2017-11-15 | OP9: 2017-11-16 | OQ9: 2017-11-17 | OR9: 2017-11-18 | OS9: 2017-11-19 | OT9: 2017-11-20 | OU9: 2017-11-21 | OV9: 2017-11-22 | OW9: 2017-11-23 | OX9: 2017-11-24 | OY9: 2017-11-25 | OZ9: 2017-11-26 | PA9: 2017-11-27 | PB9: 2017-11-28 | PC9: 2017-11-29 | PD9: 2017-11-30 | PE9: 2017-12-01 | PF9: 2017-12-02 | PG9: 2017-12-03 | PH9: 2017-12-04 | PI9: 2017-12-05 | PJ9: 2017-12-06 | PK9: 2017-12-07 | PL9: 2017-12-08 | PM9: 2017-12-09 | PN9: 2017-12-10 | PO9: 2017-12-11 | PP9: 2017-12-12 | PQ9: 2017-12-13 | PR9: 2017-12-14 | PS9: 2017-12-15 | PT9: 2017-12-16 | PU9: 2017-12-17 | PV9: 2017-12-18 | PW9: 2017-12-19 | PX9: 2017-12-20 | PY9: 2017-12-21 | PZ9: 2017-12-22 | QA9: 2017-12-23 | QB9: 2017-12-24 | QC9: 2017-12-25 | QD9: 2017-12-26 | QE9: 2017-12-27 | QF9: =QE9+1 -> 2017-12-28 | QG9: 2017-12-29 | QH9: 2017-12-30 | QI9: 2017-12-31 | QJ9: 2018-01-01 | QK9: 2018-01-02 | QL9: 2018-01-03 | QM9: 2018-01-04 | QN9: 2018-01-05 | QO9: 2018-01-06 | QP9: 2018-01-07 | QQ9: 2018-01-08 | QR9: 2018-01-09 | QS9: 2018-01-10 | QT9: 2018-01-11 | QU9: 2018-01-12 | QV9: 2018-01-13 | QW9: 2018-01-14 | QX9: 2018-01-15 | QY9: 2018-01-16 | QZ9: 2018-01-17 | RA9: 2018-01-18 | RB9: 2018-01-19 | RC9: 2018-01-20 | RD9: 2018-01-21 | RE9: 2018-01-22 | RF9: 2018-01-23 | RG9: 2018-01-24 | RH9: 2018-01-25 | RI9: 2018-01-26 | RJ9: 2018-01-27 | RK9: 2018-01-28 | RL9: 2018-01-29 | RM9: 2018-01-30 | RN9: 2018-01-31 | RO9: 2018-02-01 | RP9: 2018-02-02 | RQ9: 2018-02-03 | RR9: 2018-02-04 | RS9: 2018-02-05 | RT9: 2018-02-06 | RU9: 2018-02-07 | RV9: 2018-02-08 | RW9: 2018-02-09 | RX9: 2018-02-10 | RY9: 2018-02-11 | RZ9: 2018-02-12 | SA9: 2018-02-13 | SB9: 2018-02-14 | SC9: 2018-02-15 | SD9: 2018-02-16 | SE9: 2018-02-17 | SF9: 2018-02-18 | SG9: 2018-02-19 | SH9: 2018-02-20 | SI9: 2018-02-21 | SJ9: 2018-02-22 | SK9: 2018-02-23 | SL9: 2018-02-24 | SM9: 2018-02-25 | SN9: 2018-02-26 | SO9: 2018-02-27 | SP9: 2018-02-28 | SQ9: 2018-03-01 | SR9: =SQ9+1 -> 2018-03-02 | SS9: 2018-03-03 | ST9: 2018-03-04 | SU9: 2018-03-05 | SV9: 2018-03-06 | SW9: 2018-03-07 | SX9: 2018-03-08 | SY9: 2018-03-09 | SZ9: 2018-03-10 | TA9: 2018-03-11 | TB9: 2018-03-12 | TC9: 2018-03-13 | TD9: 2018-03-14 | TE9: 2018-03-15 | TF9: 2018-03-16 | TG9: 2018-03-17 | TH9: 2018-03-18 | TI9: 2018-03-19 | TJ9: 2018-03-20 | TK9: 2018-03-21 | TL9: 2018-03-22 | TM9: 2018-03-23 | TN9: 2018-03-24 | TO9: 2018-03-25 | TP9: 2018-03-26 | TQ9: 2018-03-27 | TR9: 2018-03-28 | TS9: 2018-03-29 | TT9: 2018-03-30 | TU9: 2018-03-31 | TV9: 2018-04-01 | TW9: 2018-04-02 | TX9: 2018-04-03 | TY9: 2018-04-04 | TZ9: 2018-04-05 | UA9: 2018-04-06 | UB9: 2018-04-07 | UC9: 2018-04-08 | UD9: 2018-04-09 | UE9: 2018-04-10 | UF9: 2018-04-11 | UG9: 2018-04-12 | UH9: 2018-04-13 | UI9: 2018-04-14 | UJ9: 2018-04-15 | UK9: 2018-04-16 | UL9: 2018-04-17 | UM9: 2018-04-18 | UN9: 2018-04-19 | UO9: 2018-04-20 | UP9: 2018-04-21 | UQ9: 2018-04-22 | UR9: 2018-04-23 | US9: 2018-04-24 | UT9: 2018-04-25 | UU9: 2018-04-26 | UV9: 2018-04-27 | UW9: 2018-04-28 | UX9: 2018-04-29 | UY9: 2018-04-30 | UZ9: 2018-05-01 | VA9: 2018-05-02 | VB9: 2018-05-03 | VC9: 2018-05-04 | VD9: 2018-05-05 | VE9: 2018-05-06 | VF9: 2018-05-07
AG10: =IF(DAY(AG18)=1,AG18,IF(AG9=HideValues!$D$3,"TODAY","")) ->  | AH10: =IF(DAY(AH18)=1,AH18,IF(AH9=HideValues!$D$3,"TODAY","")) ->  | AI10: =IF(DAY(AI18)=1,AI18,IF(AI9=HideValues!$D$3,"TODAY","")) ->  | AJ10: =IF(DAY(AJ18)=1,AJ18,IF(AJ9=HideValues!$D$3,"TODAY","")) ->  | AK10: =IF(DAY(AK18)=1,AK18,IF(AK9=HideValues!$D$3,"TODAY","")) ->  | AL10: =IF(DAY(AL18)=1,AL18,IF(AL9=HideValues!$D$3,"TODAY","")) ->  | AM10: =IF(DAY(AM18)=1,AM18,IF(AM9=HideValues!$D$3,"TODAY","")) ->  | AN10: =IF(DAY(AN18)=1,AN18,IF(AN9=HideValues!$D$3,"TODAY","")) -> TODAY | AO10: =IF(DAY(AO18)=1,AO18,IF(AO9=HideValues!$D$3,"TODAY","")) ->  | AP10: =IF(DAY(AP18)=1,AP18,IF(AP9=HideValues!$D$3,"TODAY","")) ->  | AQ10: =IF(DAY(AQ18)=1,AQ18,IF(AQ9=HideValues!$D$3,"TODAY","")) ->  | AR10: =IF(DAY(AR18)=1,AR18,IF(AR9=HideValues!$D$3,"TODAY","")) ->  | AS10: =IF(DAY(AS18)=1,AS18,IF(AS9=HideValues!$D$3,"TODAY","")) ->  | AT10: =IF(DAY(AT18)=1,AT18,IF(AT9=HideValues!$D$3,"TODAY","")) ->  | AU10: =IF(DAY(AU18)=1,AU18,IF(AU9=HideValues!$D$3,"TODAY","")) ->  | AV10: =IF(DAY(AV18)=1,AV18,IF(AV9=HideValues!$D$3,"TODAY","")) ->  | AW10: =IF(DAY(AW18)=1,AW18,IF(AW9=HideValues!$D$3,"TODAY","")) ->  | AX10: =IF(DAY(AX18)=1,AX18,IF(AX9=HideValues!$D$3,"TODAY","")) ->  | AY10: =IF(DAY(AY18)=1,AY18,IF(AY9=HideValues!$D$3,"TODAY","")) ->  | AZ10: =IF(DAY(AZ18)=1,AZ18,IF(AZ9=HideValues!$D$3,"TODAY","")) ->  | BA10: =IF(DAY(BA18)=1,BA18,IF(BA9=HideValues!$D$3,"TODAY","")) ->  | BB10: =IF(DAY(BB18)=1,BB18,IF(BB9=HideValues!$D$3,"TODAY","")) ->  | BC10: =IF(DAY(BC18)=1,BC18,IF(BC9=HideValues!$D$3,"TODAY","")) ->  | BD10: =IF(DAY(BD18)=1,BD18,IF(BD9=HideValues!$D$3,"TODAY","")) -> 2016-12-01 | BE10: =IF(DAY(BE18)=1,BE18,IF(BE9=HideValues!$D$3,"TODAY","")) ->  | BF10: =IF(DAY(BF18)=1,BF18,IF(BF9=HideValues!$D$3,"TODAY","")) ->  | BG10: =IF(DAY(BG18)=1,BG18,IF(BG9=HideValues!$D$3,"TODAY","")) ->  | BH10: =IF(DAY(BH18)=1,BH18,IF(BH9=HideValues!$D$3,"TODAY","")) ->  | BI10: =IF(DAY(BI18)=1,BI18,IF(BI9=HideValues!$D$3,"TODAY","")) ->  | BJ10: =IF(DAY(BJ18)=1,BJ18,IF(BJ9=HideValues!$D$3,"TODAY","")) ->  | BK10: =IF(DAY(BK18)=1,BK18,IF(BK9=HideValues!$D$3,"TODAY","")) ->  | BL10: =IF(DAY(BL18)=1,BL18,IF(BL9=HideValues!$D$3,"TODAY","")) ->  | BM10: =IF(DAY(BM18)=1,BM18,IF(BM9=HideValues!$D$3,"TODAY","")) ->  | BN10: =IF(DAY(BN18)=1,BN18,IF(BN9=HideValues!$D$3,"TODAY","")) ->  | BO10: =IF(DAY(BO18)=1,BO18,IF(BO9=HideValues!$D$3,"TODAY","")) ->  | BP10: =IF(DAY(BP18)=1,BP18,IF(BP9=HideValues!$D$3,"TODAY","")) ->  | BQ10: =IF(DAY(BQ18)=1,BQ18,IF(BQ9=HideValues!$D$3,"TODAY","")) ->  | BR10: =IF(DAY(BR18)=1,BR18,IF(BR9=HideValues!$D$3,"TODAY","")) ->  | BS10: =IF(DAY(BS18)=1,BS18,IF(BS9=HideValues!$D$3,"TODAY","")) ->  | BT10: =IF(DAY(BT18)=1,BT18,IF(BT9=HideValues!$D$3,"TODAY","")) ->  | BU10: =IF(DAY(BU18)=1,BU18,IF(BU9=HideValues!$D$3,"TODAY","")) ->  | BV10: =IF(DAY(BV18)=1,BV18,IF(BV9=HideValues!$D$3,"TODAY","")) ->  | BW10: =IF(DAY(BW18)=1,BW18,IF(BW9=HideValues!$D$3,"TODAY","")) ->  | BX10: =IF(DAY(BX18)=1,BX18,IF(BX9=HideValues!$D$3,"TODAY","")) ->  | BY10: =IF(DAY(BY18)=1,BY18,IF(BY9=HideValues!$D$3,"TODAY","")) ->  | BZ10: =IF(DAY(BZ18)=1,BZ18,IF(BZ9=HideValues!$D$3,"TODAY","")) ->  | CA10: =IF(DAY(CA18)=1,CA18,IF(CA9=HideValues!$D$3,"TODAY","")) ->  | CB10: =IF(DAY(CB18)=1,CB18,IF(CB9=HideValues!$D$3,"TODAY","")) ->  | CC10: =IF(DAY(CC18)=1,CC18,IF(CC9=HideValues!$D$3,"TODAY","")) ->  | CD10: =IF(DAY(CD18)=1,CD18,IF(CD9=HideValues!$D$3,"TODAY","")) ->  | CE10: =IF(DAY(CE18)=1,CE18,IF(CE9=HideValues!$D$3,"TODAY","")) ->  | CF10: =IF(DAY(CF18)=1,CF18,IF(CF9=HideValues!$D$3,"TODAY","")) ->  | CG10: =IF(DAY(CG18)=1,CG18,IF(CG9=HideValues!$D$3,"TODAY","")) ->  | CH10: =IF(DAY(CH18)=1,CH18,IF(CH9=HideValues!$D$3,"TODAY","")) ->  | CI10: =IF(DAY(CI18)=1,CI18,IF(CI9=HideValues!$D$3,"TODAY","")) -> 2017-01-01 | CJ10: =IF(DAY(CJ18)=1,CJ18,IF(CJ9=HideValues!$D$3,"TODAY","")) ->  | CK10: =IF(DAY(CK18)=1,CK18,IF(CK9=HideValues!$D$3,"TODAY","")) ->  | CL10: =IF(DAY(CL18)=1,CL18,IF(CL9=HideValues!$D$3,"TODAY","")) ->  | CM10: =IF(DAY(CM18)=1,CM18,IF(CM9=HideValues!$D$3,"TODAY","")) ->  | CN10: =IF(DAY(CN18)=1,CN18,IF(CN9=HideValues!$D$3,"TODAY","")) ->  | CO10: =IF(DAY(CO18)=1,CO18,IF(CO9=HideValues!$D$3,"TODAY","")) ->  | CP10: =IF(DAY(CP18)=1,CP18,IF(CP9=HideValues!$D$3,"TODAY","")) ->  | CQ10: =IF(DAY(CQ18)=1,CQ18,IF(CQ9=HideValues!$D$3,"TODAY","")) ->  | CR10: =IF(DAY(CR18)=1,CR18,IF(CR9=HideValues!$D$3,"TODAY","")) ->  | CS10: =IF(DAY(CS18)=1,CS18,IF(CS9=HideValues!$D$3,"TODAY","")) ->  | CT10: =IF(DAY(CT18)=1,CT18,IF(CT9=HideValues!$D$3,"TODAY","")) ->  | CU10: =IF(DAY(CU18)=1,CU18,IF(CU9=HideValues!$D$3,"TODAY","")) ->  | CV10: =IF(DAY(CV18)=1,CV18,IF(CV9=HideValues!$D$3,"TODAY","")) ->  | CW10: =IF(DAY(CW18)=1,CW18,IF(CW9=HideValues!$D$3,"TODAY","")) ->  | CX10: =IF(DAY(CX18)=1,CX18,IF(CX9=HideValues!$D$3,"TODAY","")) ->  | CY10: =IF(DAY(CY18)=1,CY18,IF(CY9=HideValues!$D$3,"TODAY","")) ->  | CZ10: =IF(DAY(CZ18)=1,CZ18,IF(CZ9=HideValues!$D$3,"TODAY","")) ->  | DA10: =IF(DAY(DA18)=1,DA18,IF(DA9=HideValues!$D$3,"TODAY","")) ->  | DB10: =IF(DAY(DB18)=1,DB18,IF(DB9=HideValues!$D$3,"TODAY","")) ->  | DC10: =IF(DAY(DC18)=1,DC18,IF(DC9=HideValues!$D$3,"TODAY","")) ->  | DD10: =IF(DAY(DD18)=1,DD18,IF(DD9=HideValues!$D$3,"TODAY","")) ->  | DE10: =IF(DAY(DE18)=1,DE18,IF(DE9=HideValues!$D$3,"TODAY","")) ->  | DF10: =IF(DAY(DF18)=1,DF18,IF(DF9=HideValues!$D$3,"TODAY","")) ->  | DG10: =IF(DAY(DG18)=1,DG18,IF(DG9=HideValues!$D$3,"TODAY","")) ->  | DH10: =IF(DAY(DH18)=1,DH18,IF(DH9=HideValues!$D$3,"TODAY","")) ->  | DI10: =IF(DAY(DI18)=1,DI18,IF(DI9=HideValues!$D$3,"TODAY","")) ->  | DJ10: =IF(DAY(DJ18)=1,DJ18,IF(DJ9=HideValues!$D$3,"TODAY","")) ->  | DK10: =IF(DAY(DK18)=1,DK18,IF(DK9=HideValues!$D$3,"TODAY","")) ->  | DL10: =IF(DAY(DL18)=1,DL18,IF(DL9=HideValues!$D$3,"TODAY","")) ->  | DM10: =IF(DAY(DM18)=1,DM18,IF(DM9=HideValues!$D$3,"TODAY","")) ->  | DN10: =IF(DAY(DN18)=1,DN18,IF(DN9=HideValues!$D$3,"TODAY","")) -> 2017-02-01 | DO10: =IF(DAY(DO18)=1,DO18,IF(DO9=HideValues!$D$3,"TODAY","")) ->  | DP10: =IF(DAY(DP18)=1,DP18,IF(DP9=HideValues!$D$3,"TODAY","")) ->  | DQ10: =IF(DAY(DQ18)=1,DQ18,IF(DQ9=HideValues!$D$3,"TODAY","")) ->  | DR10: =IF(DAY(DR18)=1,DR18,IF(DR9=HideValues!$D$3,"TODAY","")) ->  | DS10: =IF(DAY(DS18)=1,DS18,IF(DS9=HideValues!$D$3,"TODAY","")) ->  | DT10: =IF(DAY(DT18)=1,DT18,IF(DT9=HideValues!$D$3,"TODAY","")) ->  | DU10: =IF(DAY(DU18)=1,DU18,IF(DU9=HideValues!$D$3,"TODAY","")) ->  | DV10: =IF(DAY(DV18)=1,DV18,IF(DV9=HideValues!$D$3,"TODAY","")) ->  | DW10: =IF(DAY(DW18)=1,DW18,IF(DW9=HideValues!$D$3,"TODAY","")) ->  | DX10: =IF(DAY(DX18)=1,DX18,IF(DX9=HideValues!$D$3,"TODAY","")) ->  | DY10: =IF(DAY(DY18)=1,DY18,IF(DY9=HideValues!$D$3,"TODAY","")) ->  | DZ10: =IF(DAY(DZ18)=1,DZ18,IF(DZ9=HideValues!$D$3,"TODAY","")) ->  | EA10: =IF(DAY(EA18)=1,EA18,IF(EA9=HideValues!$D$3,"TODAY","")) ->  | EB10: =IF(DAY(EB18)=1,EB18,IF(EB9=HideValues!$D$3,"TODAY","")) ->  | EC10: =IF(DAY(EC18)=1,EC18,IF(EC9=HideValues!$D$3,"TODAY","")) ->  | ED10: =IF(DAY(ED18)=1,ED18,IF(ED9=HideValues!$D$3,"TODAY","")) ->  | EE10: =IF(DAY(EE18)=1,EE18,IF(EE9=HideValues!$D$3,"TODAY","")) ->  | EF10: =IF(DAY(EF18)=1,EF18,IF(EF9=HideValues!$D$3,"TODAY","")) ->  | EG10: =IF(DAY(EG18)=1,EG18,IF(EG9=HideValues!$D$3,"TODAY","")) ->  | EH10: =IF(DAY(EH18)=1,EH18,IF(EH9=HideValues!$D$3,"TODAY","")) ->  | EI10: =IF(DAY(EI18)=1,EI18,IF(EI9=HideValues!$D$3,"TODAY","")) ->  | EJ10: =IF(DAY(EJ18)=1,EJ18,IF(EJ9=HideValues!$D$3,"TODAY","")) ->  | EK10: =IF(DAY(EK18)=1,EK18,IF(EK9=HideValues!$D$3,"TODAY","")) ->  | EL10: =IF(DAY(EL18)=1,EL18,IF(EL9=HideValues!$D$3,"TODAY","")) ->  | EM10: =IF(DAY(EM18)=1,EM18,IF(EM9=HideValues!$D$3,"TODAY","")) ->  | EN10: =IF(DAY(EN18)=1,EN18,IF(EN9=HideValues!$D$3,"TODAY","")) ->  | EO10: =IF(DAY(EO18)=1,EO18,IF(EO9=HideValues!$D$3,"TODAY","")) ->  | EP10: =IF(DAY(EP18)=1,EP18,IF(EP9=HideValues!$D$3,"TODAY","")) -> 2017-03-01 | EQ10: =IF(DAY(EQ18)=1,EQ18,IF(EQ9=HideValues!$D$3,"TODAY","")) ->  | ER10: =IF(DAY(ER18)=1,ER18,IF(ER9=HideValues!$D$3,"TODAY","")) ->  | ES10: =IF(DAY(ES18)=1,ES18,IF(ES9=HideValues!$D$3,"TODAY","")) ->  | ET10: =IF(DAY(ET18)=1,ET18,IF(ET9=HideValues!$D$3,"TODAY","")) ->  | EU10: =IF(DAY(EU18)=1,EU18,IF(EU9=HideValues!$D$3,"TODAY","")) ->  | EV10: =IF(DAY(EV18)=1,EV18,IF(EV9=HideValues!$D$3,"TODAY","")) ->  | EW10: =IF(DAY(EW18)=1,EW18,IF(EW9=HideValues!$D$3,"TODAY","")) ->  | EX10: =IF(DAY(EX18)=1,EX18,IF(EX9=HideValues!$D$3,"TODAY","")) ->  | EY10: =IF(DAY(EY18)=1,EY18,IF(EY9=HideValues!$D$3,"TODAY","")) ->  | EZ10: =IF(DAY(EZ18)=1,EZ18,IF(EZ9=HideValues!$D$3,"TODAY","")) ->  | FA10: =IF(DAY(FA18)=1,FA18,IF(FA9=HideValues!$D$3,"TODAY","")) ->  | FB10: =IF(DAY(FB18)=1,FB18,IF(FB9=HideValues!$D$3,"TODAY","")) ->  | FC10: =IF(DAY(FC18)=1,FC18,IF(FC9=HideValues!$D$3,"TODAY","")) ->  | FD10: =IF(DAY(FD18)=1,FD18,IF(FD9=HideValues!$D$3,"TODAY","")) ->  | FE10: =IF(DAY(FE18)=1,FE18,IF(FE9=HideValues!$D$3,"TODAY","")) ->  | FF10: =IF(DAY(FF18)=1,FF18,IF(FF9=HideValues!$D$3,"TODAY","")) ->  | FG10: =IF(DAY(FG18)=1,FG18,IF(FG9=HideValues!$D$3,"TODAY","")) ->  | FH10: =IF(DAY(FH18)=1,FH18,IF(FH9=HideValues!$D$3,"TODAY","")) ->  | FI10: =IF(DAY(FI18)=1,FI18,IF(FI9=HideValues!$D$3,"TODAY","")) ->  | FJ10: =IF(DAY(FJ18)=1,FJ18,IF(FJ9=HideValues!$D$3,"TODAY","")) ->  | FK10: =IF(DAY(FK18)=1,FK18,IF(FK9=HideValues!$D$3,"TODAY","")) ->  | FL10: =IF(DAY(FL18)=1,FL18,IF(FL9=HideValues!$D$3,"TODAY","")) ->  | FM10: =IF(DAY(FM18)=1,FM18,IF(FM9=HideValues!$D$3,"TODAY","")) ->  | FN10: =IF(DAY(FN18)=1,FN18,IF(FN9=HideValues!$D$3,"TODAY","")) ->  | FO10: =IF(DAY(FO18)=1,FO18,IF(FO9=HideValues!$D$3,"TODAY","")) ->  | FP10: =IF(DAY(FP18)=1,FP18,IF(FP9=HideValues!$D$3,"TODAY","")) ->  | FQ10: =IF(DAY(FQ18)=1,FQ18,IF(FQ9=HideValues!$D$3,"TODAY","")) ->  | FR10: =IF(DAY(FR18)=1,FR18,IF(FR9=HideValues!$D$3,"TODAY","")) ->  | FS10: =IF(DAY(FS18)=1,FS18,IF(FS9=HideValues!$D$3,"TODAY","")) ->  | FT10: =IF(DAY(FT18)=1,FT18,IF(FT9=HideValues!$D$3,"TODAY","")) ->  | FU10: =IF(DAY(FU18)=1,FU18,IF(FU9=HideValues!$D$3,"TODAY","")) -> 2017-04-01 | FV10: =IF(DAY(FV18)=1,FV18,IF(FV9=HideValues!$D$3,"TODAY","")) ->  | FW10: =IF(DAY(FW18)=1,FW18,IF(FW9=HideValues!$D$3,"TODAY","")) ->  | FX10: =IF(DAY(FX18)=1,FX18,IF(FX9=HideValues!$D$3,"TODAY","")) ->  | FY10: =IF(DAY(FY18)=1,FY18,IF(FY9=HideValues!$D$3,"TODAY","")) ->  | FZ10: =IF(DAY(FZ18)=1,FZ18,IF(FZ9=HideValues!$D$3,"TODAY","")) ->  | GA10: =IF(DAY(GA18)=1,GA18,IF(GA9=HideValues!$D$3,"TODAY","")) ->  | GB10: =IF(DAY(GB18)=1,GB18,IF(GB9=HideValues!$D$3,"TODAY","")) ->  | GC10: =IF(DAY(GC18)=1,GC18,IF(GC9=HideValues!$D$3,"TODAY","")) ->  | GD10: =IF(DAY(GD18)=1,GD18,IF(GD9=HideValues!$D$3,"TODAY","")) ->  | GE10: =IF(DAY(GE18)=1,GE18,IF(GE9=HideValues!$D$3,"TODAY","")) ->  | GF10: =IF(DAY(GF18)=1,GF18,IF(GF9=HideValues!$D$3,"TODAY","")) ->  | GG10: =IF(DAY(GG18)=1,GG18,IF(GG9=HideValues!$D$3,"TODAY","")) ->  | GH10: =IF(DAY(GH18)=1,GH18,IF(GH9=HideValues!$D$3,"TODAY","")) ->  | GI10: =IF(DAY(GI18)=1,GI18,IF(GI9=HideValues!$D$3,"TODAY","")) ->  | GJ10: =IF(DAY(GJ18)=1,GJ18,IF(GJ9=HideValues!$D$3,"TODAY","")) ->  | GK10: =IF(DAY(GK18)=1,GK18,IF(GK9=HideValues!$D$3,"TODAY","")) ->  | GL10: =IF(DAY(GL18)=1,GL18,IF(GL9=HideValues!$D$3,"TODAY","")) ->  | GM10: =IF(DAY(GM18)=1,GM18,IF(GM9=HideValues!$D$3,"TODAY","")) ->  | GN10: =IF(DAY(GN18)=1,GN18,IF(GN9=HideValues!$D$3,"TODAY","")) ->  | GO10: =IF(DAY(GO18)=1,GO18,IF(GO9=HideValues!$D$3,"TODAY","")) ->  | GP10: =IF(DAY(GP18)=1,GP18,IF(GP9=HideValues!$D$3,"TODAY","")) ->  | GQ10: =IF(DAY(GQ18)=1,GQ18,IF(GQ9=HideValues!$D$3,"TODAY","")) ->  | GR10: =IF(DAY(GR18)=1,GR18,IF(GR9=HideValues!$D$3,"TODAY","")) ->  | GS10: =IF(DAY(GS18)=1,GS18,IF(GS9=HideValues!$D$3,"TODAY","")) ->  | GT10: =IF(DAY(GT18)=1,GT18,IF(GT9=HideValues!$D$3,"TODAY","")) ->  | GU10: =IF(DAY(GU18)=1,GU18,IF(GU9=HideValues!$D$3,"TODAY","")) ->  | GV10: =IF(DAY(GV18)=1,GV18,IF(GV9=HideValues!$D$3,"TODAY","")) ->  | GW10: =IF(DAY(GW18)=1,GW18,IF(GW9=HideValues!$D$3,"TODAY","")) ->  | GX10: =IF(DAY(GX18)=1,GX18,IF(GX9=HideValues!$D$3,"TODAY","")) ->  | GY10: =IF(DAY(GY18)=1,GY18,IF(GY9=HideValues!$D$3,"TODAY","")) -> 2017-05-01 | GZ10: =IF(DAY(GZ18)=1,GZ18,IF(GZ9=HideValues!$D$3,"TODAY","")) ->  | HA10: =IF(DAY(HA18)=1,HA18,IF(HA9=HideValues!$D$3,"TODAY","")) ->  | HB10: =IF(DAY(HB18)=1,HB18,IF(HB9=HideValues!$D$3,"TODAY","")) ->  | HC10: =IF(DAY(HC18)=1,HC18,IF(HC9=HideValues!$D$3,"TODAY","")) ->  | HD10: =IF(DAY(HD18)=1,HD18,IF(HD9=HideValues!$D$3,"TODAY","")) ->  | HE10: =IF(DAY(HE18)=1,HE18,IF(HE9=HideValues!$D$3,"TODAY","")) ->  | HF10: =IF(DAY(HF18)=1,HF18,IF(HF9=HideValues!$D$3,"TODAY","")) ->  | HG10: =IF(DAY(HG18)=1,HG18,IF(HG9=HideValues!$D$3,"TODAY","")) ->  | HH10: =IF(DAY(HH18)=1,HH18,IF(HH9=HideValues!$D$3,"TODAY","")) ->  | HI10: =IF(DAY(HI18)=1,HI18,IF(HI9=HideValues!$D$3,"TODAY","")) ->  | HJ10: =IF(DAY(HJ18)=1,HJ18,IF(HJ9=HideValues!$D$3,"TODAY","")) ->  | HK10: =IF(DAY(HK18)=1,HK18,IF(HK9=HideValues!$D$3,"TODAY","")) ->  | HL10: =IF(DAY(HL18)=1,HL18,IF(HL9=HideValues!$D$3,"TODAY","")) ->  | HM10: =IF(DAY(HM18)=1,HM18,IF(HM9=HideValues!$D$3,"TODAY","")) ->  | HN10: =IF(DAY(HN18)=1,HN18,IF(HN9=HideValues!$D$3,"TODAY","")) ->  | HO10: =IF(DAY(HO18)=1,HO18,IF(HO9=HideValues!$D$3,"TODAY","")) ->  | HP10: =IF(DAY(HP18)=1,HP18,IF(HP9=HideValues!$D$3,"TODAY","")) ->  | HQ10: =IF(DAY(HQ18)=1,HQ18,IF(HQ9=HideValues!$D$3,"TODAY","")) ->  | HR10: =IF(DAY(HR18)=1,HR18,IF(HR9=HideValues!$D$3,"TODAY","")) ->  | HS10: =IF(DAY(HS18)=1,HS18,IF(HS9=HideValues!$D$3,"TODAY","")) ->  | HT10: =IF(DAY(HT18)=1,HT18,IF(HT9=HideValues!$D$3,"TODAY","")) ->  | HU10: =IF(DAY(HU18)=1,HU18,IF(HU9=HideValues!$D$3,"TODAY","")) ->  | HV10: =IF(DAY(HV18)=1,HV18,IF(HV9=HideValues!$D$3,"TODAY","")) ->  | HW10: =IF(DAY(HW18)=1,HW18,IF(HW9=HideValues!$D$3,"TODAY","")) ->  | HX10: =IF(DAY(HX18)=1,HX18,IF(HX9=HideValues!$D$3,"TODAY","")) ->  | HY10: =IF(DAY(HY18)=1,HY18,IF(HY9=HideValues!$D$3,"TODAY","")) ->  | HZ10: =IF(DAY(HZ18)=1,HZ18,IF(HZ9=HideValues!$D$3,"TODAY","")) ->  | IA10: =IF(DAY(IA18)=1,IA18,IF(IA9=HideValues!$D$3,"TODAY","")) ->  | IB10: =IF(DAY(IB18)=1,IB18,IF(IB9=HideValues!$D$3,"TODAY","")) ->  | IC10: =IF(DAY(IC18)=1,IC18,IF(IC9=HideValues!$D$3,"TODAY","")) ->  | ID10: =IF(DAY(ID18)=1,ID18,IF(ID9=HideValues!$D$3,"TODAY","")) -> 2017-06-01 | IE10: =IF(DAY(IE18)=1,IE18,IF(IE9=HideValues!$D$3,"TODAY","")) ->  | IF10: =IF(DAY(IF18)=1,IF18,IF(IF9=HideValues!$D$3,"TODAY","")) ->  | IG10: =IF(DAY(IG18)=1,IG18,IF(IG9=HideValues!$D$3,"TODAY","")) ->  | IH10: =IF(DAY(IH18)=1,IH18,IF(IH9=HideValues!$D$3,"TODAY","")) ->  | II10: =IF(DAY(II18)=1,II18,IF(II9=HideValues!$D$3,"TODAY","")) ->  | IJ10: =IF(DAY(IJ18)=1,IJ18,IF(IJ9=HideValues!$D$3,"TODAY","")) ->  | IK10: =IF(DAY(IK18)=1,IK18,IF(IK9=HideValues!$D$3,"TODAY","")) ->  | IL10: =IF(DAY(IL18)=1,IL18,IF(IL9=HideValues!$D$3,"TODAY","")) ->  | IM10: =IF(DAY(IM18)=1,IM18,IF(IM9=HideValues!$D$3,"TODAY","")) ->  | IN10: =IF(DAY(IN18)=1,IN18,IF(IN9=HideValues!$D$3,"TODAY","")) ->  | IO10: =IF(DAY(IO18)=1,IO18,IF(IO9=HideValues!$D$3,"TODAY","")) ->  | IP10: =IF(DAY(IP18)=1,IP18,IF(IP9=HideValues!$D$3,"TODAY","")) ->  | IQ10: =IF(DAY(IQ18)=1,IQ18,IF(IQ9=HideValues!$D$3,"TODAY","")) ->  | IR10: =IF(DAY(IR18)=1,IR18,IF(IR9=HideValues!$D$3,"TODAY","")) ->  | IS10: =IF(DAY(IS18)=1,IS18,IF(IS9=HideValues!$D$3,"TODAY","")) ->  | IT10: =IF(DAY(IT18)=1,IT18,IF(IT9=HideValues!$D$3,"TODAY","")) ->  | IU10: =IF(DAY(IU18)=1,IU18,IF(IU9=HideValues!$D$3,"TODAY","")) ->  | IV10: =IF(DAY(IV18)=1,IV18,IF(IV9=HideValues!$D$3,"TODAY","")) ->  | IW10: =IF(DAY(IW18)=1,IW18,IF(IW9=HideValues!$D$3,"TODAY","")) ->  | IX10: =IF(DAY(IX18)=1,IX18,IF(IX9=HideValues!$D$3,"TODAY","")) ->  | IY10: =IF(DAY(IY18)=1,IY18,IF(IY9=HideValues!$D$3,"TODAY","")) ->  | IZ10: =IF(DAY(IZ18)=1,IZ18,IF(IZ9=HideValues!$D$3,"TODAY","")) ->  | JA10: =IF(DAY(JA18)=1,JA18,IF(JA9=HideValues!$D$3,"TODAY","")) ->  | JB10: =IF(DAY(JB18)=1,JB18,IF(JB9=HideValues!$D$3,"TODAY","")) ->  | JC10: =IF(DAY(JC18)=1,JC18,IF(JC9=HideValues!$D$3,"TODAY","")) ->  | JD10: =IF(DAY(JD18)=1,JD18,IF(JD9=HideValues!$D$3,"TODAY","")) ->  | JE10: =IF(DAY(JE18)=1,JE18,IF(JE9=HideValues!$D$3,"TODAY","")) ->  | JF10: =IF(DAY(JF18)=1,JF18,IF(JF9=HideValues!$D$3,"TODAY","")) ->  | JG10: =IF(DAY(JG18)=1,JG18,IF(JG9=HideValues!$D$3,"TODAY","")) ->  | JH10: =IF(DAY(JH18)=1,JH18,IF(JH9=HideValues!$D$3,"TODAY","")) -> 2017-07-01 | JI10: =IF(DAY(JI18)=1,JI18,IF(JI9=HideValues!$D$3,"TODAY","")) ->  | JJ10: =IF(DAY(JJ18)=1,JJ18,IF(JJ9=HideValues!$D$3,"TODAY","")) ->  | JK10: =IF(DAY(JK18)=1,JK18,IF(JK9=HideValues!$D$3,"TODAY","")) ->  | JL10: =IF(DAY(JL18)=1,JL18,IF(JL9=HideValues!$D$3,"TODAY","")) ->  | JM10: =IF(DAY(JM18)=1,JM18,IF(JM9=HideValues!$D$3,"TODAY","")) ->  | JN10: =IF(DAY(JN18)=1,JN18,IF(JN9=HideValues!$D$3,"TODAY","")) ->  | JO10: =IF(DAY(JO18)=1,JO18,IF(JO9=HideValues!$D$3,"TODAY","")) ->  | JP10: =IF(DAY(JP18)=1,JP18,IF(JP9=HideValues!$D$3,"TODAY","")) ->  | JQ10: =IF(DAY(JQ18)=1,JQ18,IF(JQ9=HideValues!$D$3,"TODAY","")) ->  | JR10: =IF(DAY(JR18)=1,JR18,IF(JR9=HideValues!$D$3,"TODAY","")) ->  | JS10: =IF(DAY(JS18)=1,JS18,IF(JS9=HideValues!$D$3,"TODAY","")) ->  | JT10: =IF(DAY(JT18)=1,JT18,IF(JT9=HideValues!$D$3,"TODAY","")) ->  | JU10: =IF(DAY(JU18)=1,JU18,IF(JU9=HideValues!$D$3,"TODAY","")) ->  | JV10: =IF(DAY(JV18)=1,JV18,IF(JV9=HideValues!$D$3,"TODAY","")) ->  | JW10: =IF(DAY(JW18)=1,JW18,IF(JW9=HideValues!$D$3,"TODAY","")) ->  | JX10: =IF(DAY(JX18)=1,JX18,IF(JX9=HideValues!$D$3,"TODAY","")) ->  | JY10: =IF(DAY(JY18)=1,JY18,IF(JY9=HideValues!$D$3,"TODAY","")) ->  | JZ10: =IF(DAY(JZ18)=1,JZ18,IF(JZ9=HideValues!$D$3,"TODAY","")) ->  | KA10: =IF(DAY(KA18)=1,KA18,IF(KA9=HideValues!$D$3,"TODAY","")) ->  | KB10: =IF(DAY(KB18)=1,KB18,IF(KB9=HideValues!$D$3,"TODAY","")) ->  | KC10: =IF(DAY(KC18)=1,KC18,IF(KC9=HideValues!$D$3,"TODAY","")) ->  | KD10: =IF(DAY(KD18)=1,KD18,IF(KD9=HideValues!$D$3,"TODAY","")) ->  | KE10: =IF(DAY(KE18)=1,KE18,IF(KE9=HideValues!$D$3,"TODAY","")) ->  | KF10: =IF(DAY(KF18)=1,KF18,IF(KF9=HideValues!$D$3,"TODAY","")) ->  | KG10: =IF(DAY(KG18)=1,KG18,IF(KG9=HideValues!$D$3,"TODAY","")) ->  | KH10: =IF(DAY(KH18)=1,KH18,IF(KH9=HideValues!$D$3,"TODAY","")) ->  | KI10: =IF(DAY(KI18)=1,KI18,IF(KI9=HideValues!$D$3,"TODAY","")) ->  | KJ10: =IF(DAY(KJ18)=1,KJ18,IF(KJ9=HideValues!$D$3,"TODAY","")) ->  | KK10: =IF(DAY(KK18)=1,KK18,IF(KK9=HideValues!$D$3,"TODAY","")) ->  | KL10: =IF(DAY(KL18)=1,KL18,IF(KL9=HideValues!$D$3,"TODAY","")) ->  | KM10: =IF(DAY(KM18)=1,KM18,IF(KM9=HideValues!$D$3,"TODAY","")) -> 2017-08-01 | KN10: =IF(DAY(KN18)=1,KN18,IF(KN9=HideValues!$D$3,"TODAY","")) ->  | KO10: =IF(DAY(KO18)=1,KO18,IF(KO9=HideValues!$D$3,"TODAY","")) ->  | KP10: =IF(DAY(KP18)=1,KP18,IF(KP9=HideValues!$D$3,"TODAY","")) ->  | KQ10: =IF(DAY(KQ18)=1,KQ18,IF(KQ9=HideValues!$D$3,"TODAY","")) ->  | KR10: =IF(DAY(KR18)=1,KR18,IF(KR9=HideValues!$D$3,"TODAY","")) ->  | KS10: =IF(DAY(KS18)=1,KS18,IF(KS9=HideValues!$D$3,"TODAY","")) ->  | KT10: =IF(DAY(KT18)=1,KT18,IF(KT9=HideValues!$D$3,"TODAY","")) ->  | KU10: =IF(DAY(KU18)=1,KU18,IF(KU9=HideValues!$D$3,"TODAY","")) ->  | KV10: =IF(DAY(KV18)=1,KV18,IF(KV9=HideValues!$D$3,"TODAY","")) ->  | KW10: =IF(DAY(KW18)=1,KW18,IF(KW9=HideValues!$D$3,"TODAY","")) ->  | KX10: =IF(DAY(KX18)=1,KX18,IF(KX9=HideValues!$D$3,"TODAY","")) ->  | KY10: =IF(DAY(KY18)=1,KY18,IF(KY9=HideValues!$D$3,"TODAY","")) ->  | KZ10: =IF(DAY(KZ18)=1,KZ18,IF(KZ9=HideValues!$D$3,"TODAY","")) ->  | LA10: =IF(DAY(LA18)=1,LA18,IF(LA9=HideValues!$D$3,"TODAY","")) ->  | LB10: =IF(DAY(LB18)=1,LB18,IF(LB9=HideValues!$D$3,"TODAY","")) ->  | LC10: =IF(DAY(LC18)=1,LC18,IF(LC9=HideValues!$D$3,"TODAY","")) ->  | LD10: =IF(DAY(LD18)=1,LD18,IF(LD9=HideValues!$D$3,"TODAY","")) ->  | LE10: =IF(DAY(LE18)=1,LE18,IF(LE9=HideValues!$D$3,"TODAY","")) ->  | LF10: =IF(DAY(LF18)=1,LF18,IF(LF9=HideValues!$D$3,"TODAY","")) ->  | LG10: =IF(DAY(LG18)=1,LG18,IF(LG9=HideValues!$D$3,"TODAY","")) ->  | LH10: =IF(DAY(LH18)=1,LH18,IF(LH9=HideValues!$D$3,"TODAY","")) ->  | LI10: =IF(DAY(LI18)=1,LI18,IF(LI9=HideValues!$D$3,"TODAY","")) ->  | LJ10: =IF(DAY(LJ18)=1,LJ18,IF(LJ9=HideValues!$D$3,"TODAY","")) ->  | LK10: =IF(DAY(LK18)=1,LK18,IF(LK9=HideValues!$D$3,"TODAY","")) ->  | LL10: =IF(DAY(LL18)=1,LL18,IF(LL9=HideValues!$D$3,"TODAY","")) ->  | LM10: =IF(DAY(LM18)=1,LM18,IF(LM9=HideValues!$D$3,"TODAY","")) ->  | LN10: =IF(DAY(LN18)=1,LN18,IF(LN9=HideValues!$D$3,"TODAY","")) ->  | LO10: =IF(DAY(LO18)=1,LO18,IF(LO9=HideValues!$D$3,"TODAY","")) ->  | LP10: =IF(DAY(LP18)=1,LP18,IF(LP9=HideValues!$D$3,"TODAY","")) ->  | LQ10: =IF(DAY(LQ18)=1,LQ18,IF(LQ9=HideValues!$D$3,"TODAY","")) ->  | LR10: =IF(DAY(LR18)=1,LR18,IF(LR9=HideValues!$D$3,"TODAY","")) -> 2017-09-01 | LS10: =IF(DAY(LS18)=1,LS18,IF(LS9=HideValues!$D$3,"TODAY","")) ->  | LT10: =IF(DAY(LT18)=1,LT18,IF(LT9=HideValues!$D$3,"TODAY","")) ->  | LU10: =IF(DAY(LU18)=1,LU18,IF(LU9=HideValues!$D$3,"TODAY","")) ->  | LV10: =IF(DAY(LV18)=1,LV18,IF(LV9=HideValues!$D$3,"TODAY","")) ->  | LW10: =IF(DAY(LW18)=1,LW18,IF(LW9=HideValues!$D$3,"TODAY","")) ->  | LX10: =IF(DAY(LX18)=1,LX18,IF(LX9=HideValues!$D$3,"TODAY","")) ->  | LY10: =IF(DAY(LY18)=1,LY18,IF(LY9=HideValues!$D$3,"TODAY","")) ->  | LZ10: =IF(DAY(LZ18)=1,LZ18,IF(LZ9=HideValues!$D$3,"TODAY","")) ->  | MA10: =IF(DAY(MA18)=1,MA18,IF(MA9=HideValues!$D$3,"TODAY","")) ->  | MB10: =IF(DAY(MB18)=1,MB18,IF(MB9=HideValues!$D$3,"TODAY","")) ->  | MC10: =IF(DAY(MC18)=1,MC18,IF(MC9=HideValues!$D$3,"TODAY","")) ->  | MD10: =IF(DAY(MD18)=1,MD18,IF(MD9=HideValues!$D$3,"TODAY","")) ->  | ME10: =IF(DAY(ME18)=1,ME18,IF(ME9=HideValues!$D$3,"TODAY","")) ->  | MF10: =IF(DAY(MF18)=1,MF18,IF(MF9=HideValues!$D$3,"TODAY","")) ->  | MG10: =IF(DAY(MG18)=1,MG18,IF(MG9=HideValues!$D$3,"TODAY","")) ->  | MH10: =IF(DAY(MH18)=1,MH18,IF(MH9=HideValues!$D$3,"TODAY","")) ->  | MI10: =IF(DAY(MI18)=1,MI18,IF(MI9=HideValues!$D$3,"TODAY","")) ->  | MJ10: =IF(DAY(MJ18)=1,MJ18,IF(MJ9=HideValues!$D$3,"TODAY","")) ->  | MK10: =IF(DAY(MK18)=1,MK18,IF(MK9=HideValues!$D$3,"TODAY","")) ->  | ML10: =IF(DAY(ML18)=1,ML18,IF(ML9=HideValues!$D$3,"TODAY","")) ->  | MM10: =IF(DAY(MM18)=1,MM18,IF(MM9=HideValues!$D$3,"TODAY","")) ->  | MN10: =IF(DAY(MN18)=1,MN18,IF(MN9=HideValues!$D$3,"TODAY","")) ->  | MO10: =IF(DAY(MO18)=1,MO18,IF(MO9=HideValues!$D$3,"TODAY","")) ->  | MP10: =IF(DAY(MP18)=1,MP18,IF(MP9=HideValues!$D$3,"TODAY","")) ->  | MQ10: =IF(DAY(MQ18)=1,MQ18,IF(MQ9=HideValues!$D$3,"TODAY","")) ->  | MR10: =IF(DAY(MR18)=1,MR18,IF(MR9=HideValues!$D$3,"TODAY","")) ->  | MS10: =IF(DAY(MS18)=1,MS18,IF(MS9=HideValues!$D$3,"TODAY","")) ->  | MT10: =IF(DAY(MT18)=1,MT18,IF(MT9=HideValues!$D$3,"TODAY","")) ->  | MU10: =IF(DAY(MU18)=1,MU18,IF(MU9=HideValues!$D$3,"TODAY","")) ->  | MV10: =IF(DAY(MV18)=1,MV18,IF(MV9=HideValues!$D$3,"TODAY","")) -> 2017-10-01 | MW10: =IF(DAY(MW18)=1,MW18,IF(MW9=HideValues!$D$3,"TODAY","")) ->  | MX10: =IF(DAY(MX18)=1,MX18,IF(MX9=HideValues!$D$3,"TODAY","")) ->  | MY10: =IF(DAY(MY18)=1,MY18,IF(MY9=HideValues!$D$3,"TODAY","")) ->  | MZ10: =IF(DAY(MZ18)=1,MZ18,IF(MZ9=HideValues!$D$3,"TODAY","")) ->  | NA10: =IF(DAY(NA18)=1,NA18,IF(NA9=HideValues!$D$3,"TODAY","")) ->  | NB10: =IF(DAY(NB18)=1,NB18,IF(NB9=HideValues!$D$3,"TODAY","")) ->  | NC10: =IF(DAY(NC18)=1,NC18,IF(NC9=HideValues!$D$3,"TODAY","")) ->  | ND10: =IF(DAY(ND18)=1,ND18,IF(ND9=HideValues!$D$3,"TODAY","")) ->  | NE10: =IF(DAY(NE18)=1,NE18,IF(NE9=HideValues!$D$3,"TODAY","")) ->  | NF10: =IF(DAY(NF18)=1,NF18,IF(NF9=HideValues!$D$3,"TODAY","")) ->  | NG10: =IF(DAY(NG18)=1,NG18,IF(NG9=HideValues!$D$3,"TODAY","")) ->  | NH10: =IF(DAY(NH18)=1,NH18,IF(NH9=HideValues!$D$3,"TODAY","")) ->  | NI10: =IF(DAY(NI18)=1,NI18,IF(NI9=HideValues!$D$3,"TODAY","")) ->  | NJ10: =IF(DAY(NJ18)=1,NJ18,IF(NJ9=HideValues!$D$3,"TODAY","")) ->  | NK10: =IF(DAY(NK18)=1,NK18,IF(NK9=HideValues!$D$3,"TODAY","")) ->  | NL10: =IF(DAY(NL18)=1,NL18,IF(NL9=HideValues!$D$3,"TODAY","")) ->  | NM10: =IF(DAY(NM18)=1,NM18,IF(NM9=HideValues!$D$3,"TODAY","")) ->  | NN10: =IF(DAY(NN18)=1,NN18,IF(NN9=HideValues!$D$3,"TODAY","")) ->  | NO10: =IF(DAY(NO18)=1,NO18,IF(NO9=HideValues!$D$3,"TODAY","")) ->  | NP10: =IF(DAY(NP18)=1,NP18,IF(NP9=HideValues!$D$3,"TODAY","")) ->  | NQ10: =IF(DAY(NQ18)=1,NQ18,IF(NQ9=HideValues!$D$3,"TODAY","")) ->  | NR10: =IF(DAY(NR18)=1,NR18,IF(NR9=HideValues!$D$3,"TODAY","")) ->  | NS10: =IF(DAY(NS18)=1,NS18,IF(NS9=HideValues!$D$3,"TODAY","")) ->  | NT10: =IF(DAY(NT18)=1,NT18,IF(NT9=HideValues!$D$3,"TODAY","")) ->  | NU10: =IF(DAY(NU18)=1,NU18,IF(NU9=HideValues!$D$3,"TODAY","")) ->  | NV10: =IF(DAY(NV18)=1,NV18,IF(NV9=HideValues!$D$3,"TODAY","")) ->  | NW10: =IF(DAY(NW18)=1,NW18,IF(NW9=HideValues!$D$3,"TODAY","")) ->  | NX10: =IF(DAY(NX18)=1,NX18,IF(NX9=HideValues!$D$3,"TODAY","")) ->  | NY10: =IF(DAY(NY18)=1,NY18,IF(NY9=HideValues!$D$3,"TODAY","")) ->  | NZ10: =IF(DAY(NZ18)=1,NZ18,IF(NZ9=HideValues!$D$3,"TODAY","")) ->  | OA10: =IF(DAY(OA18)=1,OA18,IF(OA9=HideValues!$D$3,"TODAY","")) -> 2017-11-01 | OB10: =IF(DAY(OB18)=1,OB18,IF(OB9=HideValues!$D$3,"TODAY","")) ->  | OC10: =IF(DAY(OC18)=1,OC18,IF(OC9=HideValues!$D$3,"TODAY","")) ->  | OD10: =IF(DAY(OD18)=1,OD18,IF(OD9=HideValues!$D$3,"TODAY","")) ->  | OE10: =IF(DAY(OE18)=1,OE18,IF(OE9=HideValues!$D$3,"TODAY","")) ->  | OF10: =IF(DAY(OF18)=1,OF18,IF(OF9=HideValues!$D$3,"TODAY","")) ->  | OG10: =IF(DAY(OG18)=1,OG18,IF(OG9=HideValues!$D$3,"TODAY","")) ->  | OH10: =IF(DAY(OH18)=1,OH18,IF(OH9=HideValues!$D$3,"TODAY","")) ->  | OI10: =IF(DAY(OI18)=1,OI18,IF(OI9=HideValues!$D$3,"TODAY","")) ->  | OJ10: =IF(DAY(OJ18)=1,OJ18,IF(OJ9=HideValues!$D$3,"TODAY","")) ->  | OK10: =IF(DAY(OK18)=1,OK18,IF(OK9=HideValues!$D$3,"TODAY","")) ->  | OL10: =IF(DAY(OL18)=1,OL18,IF(OL9=HideValues!$D$3,"TODAY","")) ->  | OM10: =IF(DAY(OM18)=1,OM18,IF(OM9=HideValues!$D$3,"TODAY","")) ->  | ON10: =IF(DAY(ON18)=1,ON18,IF(ON9=HideValues!$D$3,"TODAY","")) ->  | OO10: =IF(DAY(OO18)=1,OO18,IF(OO9=HideValues!$D$3,"TODAY","")) ->  | OP10: =IF(DAY(OP18)=1,OP18,IF(OP9=HideValues!$D$3,"TODAY","")) ->  | OQ10: =IF(DAY(OQ18)=1,OQ18,IF(OQ9=HideValues!$D$3,"TODAY","")) ->  | OR10: =IF(DAY(OR18)=1,OR18,IF(OR9=HideValues!$D$3,"TODAY","")) ->  | OS10: =IF(DAY(OS18)=1,OS18,IF(OS9=HideValues!$D$3,"TODAY","")) ->  | OT10: =IF(DAY(OT18)=1,OT18,IF(OT9=HideValues!$D$3,"TODAY","")) ->  | OU10: =IF(DAY(OU18)=1,OU18,IF(OU9=HideValues!$D$3,"TODAY","")) ->  | OV10: =IF(DAY(OV18)=1,OV18,IF(OV9=HideValues!$D$3,"TODAY","")) ->  | OW10: =IF(DAY(OW18)=1,OW18,IF(OW9=HideValues!$D$3,"TODAY","")) ->  | OX10: =IF(DAY(OX18)=1,OX18,IF(OX9=HideValues!$D$3,"TODAY","")) ->  | OY10: =IF(DAY(OY18)=1,OY18,IF(OY9=HideValues!$D$3,"TODAY","")) ->  | OZ10: =IF(DAY(OZ18)=1,OZ18,IF(OZ9=HideValues!$D$3,"TODAY","")) ->  | PA10: =IF(DAY(PA18)=1,PA18,IF(PA9=HideValues!$D$3,"TODAY","")) ->  | PB10: =IF(DAY(PB18)=1,PB18,IF(PB9=HideValues!$D$3,"TODAY","")) ->  | PC10: =IF(DAY(PC18)=1,PC18,IF(PC9=HideValues!$D$3,"TODAY","")) ->  | PD10: =IF(DAY(PD18)=1,PD18,IF(PD9=HideValues!$D$3,"TODAY","")) ->  | PE10: =IF(DAY(PE18)=1,PE18,IF(PE9=HideValues!$D$3,"TODAY","")) -> 2017-12-01 | PF10: =IF(DAY(PF18)=1,PF18,IF(PF9=HideValues!$D$3,"TODAY","")) ->  | PG10: =IF(DAY(PG18)=1,PG18,IF(PG9=HideValues!$D$3,"TODAY","")) ->  | PH10: =IF(DAY(PH18)=1,PH18,IF(PH9=HideValues!$D$3,"TODAY","")) ->  | PI10: =IF(DAY(PI18)=1,PI18,IF(PI9=HideValues!$D$3,"TODAY","")) ->  | PJ10: =IF(DAY(PJ18)=1,PJ18,IF(PJ9=HideValues!$D$3,"TODAY","")) ->  | PK10: =IF(DAY(PK18)=1,PK18,IF(PK9=HideValues!$D$3,"TODAY","")) ->  | PL10: =IF(DAY(PL18)=1,PL18,IF(PL9=HideValues!$D$3,"TODAY","")) ->  | PM10: =IF(DAY(PM18)=1,PM18,IF(PM9=HideValues!$D$3,"TODAY","")) ->  | PN10: =IF(DAY(PN18)=1,PN18,IF(PN9=HideValues!$D$3,"TODAY","")) ->  | PO10: =IF(DAY(PO18)=1,PO18,IF(PO9=HideValues!$D$3,"TODAY","")) ->  | PP10: =IF(DAY(PP18)=1,PP18,IF(PP9=HideValues!$D$3,"TODAY","")) ->  | PQ10: =IF(DAY(PQ18)=1,PQ18,IF(PQ9=HideValues!$D$3,"TODAY","")) ->  | PR10: =IF(DAY(PR18)=1,PR18,IF(PR9=HideValues!$D$3,"TODAY","")) ->  | PS10: =IF(DAY(PS18)=1,PS18,IF(PS9=HideValues!$D$3,"TODAY","")) ->  | PT10: =IF(DAY(PT18)=1,PT18,IF(PT9=HideValues!$D$3,"TODAY","")) ->  | PU10: =IF(DAY(PU18)=1,PU18,IF(PU9=HideValues!$D$3,"TODAY","")) ->  | PV10: =IF(DAY(PV18)=1,PV18,IF(PV9=HideValues!$D$3,"TODAY","")) ->  | PW10: =IF(DAY(PW18)=1,PW18,IF(PW9=HideValues!$D$3,"TODAY","")) ->  | PX10: =IF(DAY(PX18)=1,PX18,IF(PX9=HideValues!$D$3,"TODAY","")) ->  | PY10: =IF(DAY(PY18)=1,PY18,IF(PY9=HideValues!$D$3,"TODAY","")) ->  | PZ10: =IF(DAY(PZ18)=1,PZ18,IF(PZ9=HideValues!$D$3,"TODAY","")) ->  | QA10: =IF(DAY(QA18)=1,QA18,IF(QA9=HideValues!$D$3,"TODAY","")) ->  | QB10: =IF(DAY(QB18)=1,QB18,IF(QB9=HideValues!$D$3,"TODAY","")) ->  | QC10: =IF(DAY(QC18)=1,QC18,IF(QC9=HideValues!$D$3,"TODAY","")) ->  | QD10: =IF(DAY(QD18)=1,QD18,IF(QD9=HideValues!$D$3,"TODAY","")) ->  | QE10: =IF(DAY(QE18)=1,QE18,IF(QE9=HideValues!$D$3,"TODAY","")) ->  | QF10: =IF(DAY(QF18)=1,QF18,IF(QF9=HideValues!$D$3,"TODAY","")) ->  | QG10: =IF(DAY(QG18)=1,QG18,IF(QG9=HideValues!$D$3,"TODAY","")) ->  | QH10: =IF(DAY(QH18)=1,QH18,IF(QH9=HideValues!$D$3,"TODAY","")) ->  | QI10: =IF(DAY(QI18)=1,QI18,IF(QI9=HideValues!$D$3,"TODAY","")) ->  | QJ10: =IF(DAY(QJ18)=1,QJ18,IF(QJ9=HideValues!$D$3,"TODAY","")) -> 2018-01-01 | QK10: =IF(DAY(QK18)=1,QK18,IF(QK9=HideValues!$D$3,"TODAY","")) ->  | QL10: =IF(DAY(QL18)=1,QL18,IF(QL9=HideValues!$D$3,"TODAY","")) ->  | QM10: =IF(DAY(QM18)=1,QM18,IF(QM9=HideValues!$D$3,"TODAY","")) ->  | QN10: =IF(DAY(QN18)=1,QN18,IF(QN9=HideValues!$D$3,"TODAY","")) ->  | QO10: =IF(DAY(QO18)=1,QO18,IF(QO9=HideValues!$D$3,"TODAY","")) ->  | QP10: =IF(DAY(QP18)=1,QP18,IF(QP9=HideValues!$D$3,"TODAY","")) ->  | QQ10: =IF(DAY(QQ18)=1,QQ18,IF(QQ9=HideValues!$D$3,"TODAY","")) ->  | QR10: =IF(DAY(QR18)=1,QR18,IF(QR9=HideValues!$D$3,"TODAY","")) ->  | QS10: =IF(DAY(QS18)=1,QS18,IF(QS9=HideValues!$D$3,"TODAY","")) ->  | QT10: =IF(DAY(QT18)=1,QT18,IF(QT9=HideValues!$D$3,"TODAY","")) ->  | QU10: =IF(DAY(QU18)=1,QU18,IF(QU9=HideValues!$D$3,"TODAY","")) ->  | QV10: =IF(DAY(QV18)=1,QV18,IF(QV9=HideValues!$D$3,"TODAY","")) ->  | QW10: =IF(DAY(QW18)=1,QW18,IF(QW9=HideValues!$D$3,"TODAY","")) ->  | QX10: =IF(DAY(QX18)=1,QX18,IF(QX9=HideValues!$D$3,"TODAY","")) ->  | QY10: =IF(DAY(QY18)=1,QY18,IF(QY9=HideValues!$D$3,"TODAY","")) ->  | QZ10: =IF(DAY(QZ18)=1,QZ18,IF(QZ9=HideValues!$D$3,"TODAY","")) ->  | RA10: =IF(DAY(RA18)=1,RA18,IF(RA9=HideValues!$D$3,"TODAY","")) ->  | RB10: =IF(DAY(RB18)=1,RB18,IF(RB9=HideValues!$D$3,"TODAY","")) ->  | RC10: =IF(DAY(RC18)=1,RC18,IF(RC9=HideValues!$D$3,"TODAY","")) ->  | RD10: =IF(DAY(RD18)=1,RD18,IF(RD9=HideValues!$D$3,"TODAY","")) ->  | RE10: =IF(DAY(RE18)=1,RE18,IF(RE9=HideValues!$D$3,"TODAY","")) ->  | RF10: =IF(DAY(RF18)=1,RF18,IF(RF9=HideValues!$D$3,"TODAY","")) ->  | RG10: =IF(DAY(RG18)=1,RG18,IF(RG9=HideValues!$D$3,"TODAY","")) ->  | RH10: =IF(DAY(RH18)=1,RH18,IF(RH9=HideValues!$D$3,"TODAY","")) ->  | RI10: =IF(DAY(RI18)=1,RI18,IF(RI9=HideValues!$D$3,"TODAY","")) ->  | RJ10: =IF(DAY(RJ18)=1,RJ18,IF(RJ9=HideValues!$D$3,"TODAY","")) ->  | RK10: =IF(DAY(RK18)=1,RK18,IF(RK9=HideValues!$D$3,"TODAY","")) ->  | RL10: =IF(DAY(RL18)=1,RL18,IF(RL9=HideValues!$D$3,"TODAY","")) ->  | RM10: =IF(DAY(RM18)=1,RM18,IF(RM9=HideValues!$D$3,"TODAY","")) ->  | RN10: =IF(DAY(RN18)=1,RN18,IF(RN9=HideValues!$D$3,"TODAY","")) ->  | RO10: =IF(DAY(RO18)=1,RO18,IF(RO9=HideValues!$D$3,"TODAY","")) -> 2018-02-01 | RP10: =IF(DAY(RP18)=1,RP18,IF(RP9=HideValues!$D$3,"TODAY","")) ->  | RQ10: =IF(DAY(RQ18)=1,RQ18,IF(RQ9=HideValues!$D$3,"TODAY","")) ->  | RR10: =IF(DAY(RR18)=1,RR18,IF(RR9=HideValues!$D$3,"TODAY","")) ->  | RS10: =IF(DAY(RS18)=1,RS18,IF(RS9=HideValues!$D$3,"TODAY","")) ->  | RT10: =IF(DAY(RT18)=1,RT18,IF(RT9=HideValues!$D$3,"TODAY","")) ->  | RU10: =IF(DAY(RU18)=1,RU18,IF(RU9=HideValues!$D$3,"TODAY","")) ->  | RV10: =IF(DAY(RV18)=1,RV18,IF(RV9=HideValues!$D$3,"TODAY","")) ->  | RW10: =IF(DAY(RW18)=1,RW18,IF(RW9=HideValues!$D$3,"TODAY","")) ->  | RX10: =IF(DAY(RX18)=1,RX18,IF(RX9=HideValues!$D$3,"TODAY","")) ->  | RY10: =IF(DAY(RY18)=1,RY18,IF(RY9=HideValues!$D$3,"TODAY","")) ->  | RZ10: =IF(DAY(RZ18)=1,RZ18,IF(RZ9=HideValues!$D$3,"TODAY","")) ->  | SA10: =IF(DAY(SA18)=1,SA18,IF(SA9=HideValues!$D$3,"TODAY","")) ->  | SB10: =IF(DAY(SB18)=1,SB18,IF(SB9=HideValues!$D$3,"TODAY","")) ->  | SC10: =IF(DAY(SC18)=1,SC18,IF(SC9=HideValues!$D$3,"TODAY","")) ->  | SD10: =IF(DAY(SD18)=1,SD18,IF(SD9=HideValues!$D$3,"TODAY","")) ->  | SE10: =IF(DAY(SE18)=1,SE18,IF(SE9=HideValues!$D$3,"TODAY","")) ->  | SF10: =IF(DAY(SF18)=1,SF18,IF(SF9=HideValues!$D$3,"TODAY","")) ->  | SG10: =IF(DAY(SG18)=1,SG18,IF(SG9=HideValues!$D$3,"TODAY","")) ->  | SH10: =IF(DAY(SH18)=1,SH18,IF(SH9=HideValues!$D$3,"TODAY","")) ->  | SI10: =IF(DAY(SI18)=1,SI18,IF(SI9=HideValues!$D$3,"TODAY","")) ->  | SJ10: =IF(DAY(SJ18)=1,SJ18,IF(SJ9=HideValues!$D$3,"TODAY","")) ->  | SK10: =IF(DAY(SK18)=1,SK18,IF(SK9=HideValues!$D$3,"TODAY","")) ->  | SL10: =IF(DAY(SL18)=1,SL18,IF(SL9=HideValues!$D$3,"TODAY","")) ->  | SM10: =IF(DAY(SM18)=1,SM18,IF(SM9=HideValues!$D$3,"TODAY","")) ->  | SN10: =IF(DAY(SN18)=1,SN18,IF(SN9=HideValues!$D$3,"TODAY","")) ->  | SO10: =IF(DAY(SO18)=1,SO18,IF(SO9=HideValues!$D$3,"TODAY","")) ->  | SP10: =IF(DAY(SP18)=1,SP18,IF(SP9=HideValues!$D$3,"TODAY","")) ->  | SQ10: =IF(DAY(SQ18)=1,SQ18,IF(SQ9=HideValues!$D$3,"TODAY","")) -> 2018-03-01 | SR10: =IF(DAY(SR18)=1,SR18,IF(SR9=HideValues!$D$3,"TODAY","")) ->  | SS10: =IF(DAY(SS18)=1,SS18,IF(SS9=HideValues!$D$3,"TODAY","")) ->  | ST10: =IF(DAY(ST18)=1,ST18,IF(ST9=HideValues!$D$3,"TODAY","")) ->  | SU10: =IF(DAY(SU18)=1,SU18,IF(SU9=HideValues!$D$3,"TODAY","")) ->  | SV10: =IF(DAY(SV18)=1,SV18,IF(SV9=HideValues!$D$3,"TODAY","")) ->  | SW10: =IF(DAY(SW18)=1,SW18,IF(SW9=HideValues!$D$3,"TODAY","")) ->  | SX10: =IF(DAY(SX18)=1,SX18,IF(SX9=HideValues!$D$3,"TODAY","")) ->  | SY10: =IF(DAY(SY18)=1,SY18,IF(SY9=HideValues!$D$3,"TODAY","")) ->  | SZ10: =IF(DAY(SZ18)=1,SZ18,IF(SZ9=HideValues!$D$3,"TODAY","")) ->  | TA10: =IF(DAY(TA18)=1,TA18,IF(TA9=HideValues!$D$3,"TODAY","")) ->  | TB10: =IF(DAY(TB18)=1,TB18,IF(TB9=HideValues!$D$3,"TODAY","")) ->  | TC10: =IF(DAY(TC18)=1,TC18,IF(TC9=HideValues!$D$3,"TODAY","")) ->  | TD10: =IF(DAY(TD18)=1,TD18,IF(TD9=HideValues!$D$3,"TODAY","")) ->  | TE10: =IF(DAY(TE18)=1,TE18,IF(TE9=HideValues!$D$3,"TODAY","")) ->  | TF10: =IF(DAY(TF18)=1,TF18,IF(TF9=HideValues!$D$3,"TODAY","")) ->  | TG10: =IF(DAY(TG18)=1,TG18,IF(TG9=HideValues!$D$3,"TODAY","")) ->  | TH10: =IF(DAY(TH18)=1,TH18,IF(TH9=HideValues!$D$3,"TODAY","")) ->  | TI10: =IF(DAY(TI18)=1,TI18,IF(TI9=HideValues!$D$3,"TODAY","")) ->  | TJ10: =IF(DAY(TJ18)=1,TJ18,IF(TJ9=HideValues!$D$3,"TODAY","")) ->  | TK10: =IF(DAY(TK18)=1,TK18,IF(TK9=HideValues!$D$3,"TODAY","")) ->  | TL10: =IF(DAY(TL18)=1,TL18,IF(TL9=HideValues!$D$3,"TODAY","")) ->  | TM10: =IF(DAY(TM18)=1,TM18,IF(TM9=HideValues!$D$3,"TODAY","")) ->  | TN10: =IF(DAY(TN18)=1,TN18,IF(TN9=HideValues!$D$3,"TODAY","")) ->  | TO10: =IF(DAY(TO18)=1,TO18,IF(TO9=HideValues!$D$3,"TODAY","")) ->  | TP10: =IF(DAY(TP18)=1,TP18,IF(TP9=HideValues!$D$3,"TODAY","")) ->  | TQ10: =IF(DAY(TQ18)=1,TQ18,IF(TQ9=HideValues!$D$3,"TODAY","")) ->  | TR10: =IF(DAY(TR18)=1,TR18,IF(TR9=HideValues!$D$3,"TODAY","")) ->  | TS10: =IF(DAY(TS18)=1,TS18,IF(TS9=HideValues!$D$3,"TODAY","")) ->  | TT10: =IF(DAY(TT18)=1,TT18,IF(TT9=HideValues!$D$3,"TODAY","")) ->  | TU10: =IF(DAY(TU18)=1,TU18,IF(TU9=HideValues!$D$3,"TODAY","")) ->  | TV10: =IF(DAY(TV18)=1,TV18,IF(TV9=HideValues!$D$3,"TODAY","")) -> 2018-04-01 | TW10: =IF(DAY(TW18)=1,TW18,IF(TW9=HideValues!$D$3,"TODAY","")) ->  | TX10: =IF(DAY(TX18)=1,TX18,IF(TX9=HideValues!$D$3,"TODAY","")) ->  | TY10: =IF(DAY(TY18)=1,TY18,IF(TY9=HideValues!$D$3,"TODAY","")) ->  | TZ10: =IF(DAY(TZ18)=1,TZ18,IF(TZ9=HideValues!$D$3,"TODAY","")) ->  | UA10: =IF(DAY(UA18)=1,UA18,IF(UA9=HideValues!$D$3,"TODAY","")) ->  | UB10: =IF(DAY(UB18)=1,UB18,IF(UB9=HideValues!$D$3,"TODAY","")) ->  | UC10: =IF(DAY(UC18)=1,UC18,IF(UC9=HideValues!$D$3,"TODAY","")) ->  | UD10: =IF(DAY(UD18)=1,UD18,IF(UD9=HideValues!$D$3,"TODAY","")) ->  | UE10: =IF(DAY(UE18)=1,UE18,IF(UE9=HideValues!$D$3,"TODAY","")) ->  | UF10: =IF(DAY(UF18)=1,UF18,IF(UF9=HideValues!$D$3,"TODAY","")) ->  | UG10: =IF(DAY(UG18)=1,UG18,IF(UG9=HideValues!$D$3,"TODAY","")) ->  | UH10: =IF(DAY(UH18)=1,UH18,IF(UH9=HideValues!$D$3,"TODAY","")) ->  | UI10: =IF(DAY(UI18)=1,UI18,IF(UI9=HideValues!$D$3,"TODAY","")) ->  | UJ10: =IF(DAY(UJ18)=1,UJ18,IF(UJ9=HideValues!$D$3,"TODAY","")) ->  | UK10: =IF(DAY(UK18)=1,UK18,IF(UK9=HideValues!$D$3,"TODAY","")) ->  | UL10: =IF(DAY(UL18)=1,UL18,IF(UL9=HideValues!$D$3,"TODAY","")) ->  | UM10: =IF(DAY(UM18)=1,UM18,IF(UM9=HideValues!$D$3,"TODAY","")) ->  | UN10: =IF(DAY(UN18)=1,UN18,IF(UN9=HideValues!$D$3,"TODAY","")) ->  | UO10: =IF(DAY(UO18)=1,UO18,IF(UO9=HideValues!$D$3,"TODAY","")) ->  | UP10: =IF(DAY(UP18)=1,UP18,IF(UP9=HideValues!$D$3,"TODAY","")) ->  | UQ10: =IF(DAY(UQ18)=1,UQ18,IF(UQ9=HideValues!$D$3,"TODAY","")) ->  | UR10: =IF(DAY(UR18)=1,UR18,IF(UR9=HideValues!$D$3,"TODAY","")) ->  | US10: =IF(DAY(US18)=1,US18,IF(US9=HideValues!$D$3,"TODAY","")) ->  | UT10: =IF(DAY(UT18)=1,UT18,IF(UT9=HideValues!$D$3,"TODAY","")) ->  | UU10: =IF(DAY(UU18)=1,UU18,IF(UU9=HideValues!$D$3,"TODAY","")) ->  | UV10: =IF(DAY(UV18)=1,UV18,IF(UV9=HideValues!$D$3,"TODAY","")) ->  | UW10: =IF(DAY(UW18)=1,UW18,IF(UW9=HideValues!$D$3,"TODAY","")) ->  | UX10: =IF(DAY(UX18)=1,UX18,IF(UX9=HideValues!$D$3,"TODAY","")) ->  | UY10: =IF(DAY(UY18)=1,UY18,IF(UY9=HideValues!$D$3,"TODAY","")) ->  | UZ10: =IF(DAY(UZ18)=1,UZ18,IF(UZ9=HideValues!$D$3,"TODAY","")) -> 2018-05-01 | VA10: =IF(DAY(VA18)=1,VA18,IF(VA9=HideValues!$D$3,"TODAY","")) ->  | VB10: =IF(DAY(VB18)=1,VB18,IF(VB9=HideValues!$D$3,"TODAY","")) ->  | VC10: =IF(DAY(VC18)=1,VC18,IF(VC9=HideValues!$D$3,"TODAY","")) ->  | VD10: =IF(DAY(VD18)=1,VD18,IF(VD9=HideValues!$D$3,"TODAY","")) ->  | VE10: =IF(DAY(VE18)=1,VE18,IF(VE9=HideValues!$D$3,"TODAY","")) ->  | VF10: =IF(DAY(VF18)=1,VF18,IF(VF9=HideValues!$D$3,"TODAY","")) -> 
Q14: =IF($AD$14="%",Q15,"") ->  | R14: =IF($AD$14="%",R15,"") ->  | S14: =IF($AD$14="%",S15,"") ->  | V14: =IF($AD$14="%",V15,"") ->  | Y14: =IF($AD$14="%",Y15,"") ->  | AB14: =IF($AD$14="%",AB15,"") ->  | AC14: =IF($AD$14="%",AC15,"") ->  | AF14: =IF($AD$14="%",AF15,"") ->  | BE14: 12-2016 | CJ14: 1-2017 | DO14: 2-2017 | EQ14: 3-2017 | FV14: 4-2017 | GZ14: 5-2017 | IE14: 6-2017 | JI14: 7-2017 | KN14: 8-2017 | LS14: 9-2017 | MW14: 10-2017 | OB14: 11-2017 | PF14: 12-2017 | QK14: 1-2018 | RP14: 2-2018 | SR14: 3-2018 | TW14: 4-2018 | VA14: 5-2018
Q15: Resp. | R15: Début | S15: Durée | T15: Jours ouvrés | U15: Normal | V15: Échéance | W15: Statut | X15: Budget | Y15: Statut | AB15: Estim. | AC15: Réel | AD15: % | AF15: Commentaires | AG15: =AG16 -> S46 | AN15: =AN16 -> S47 | AU15: =AU16 -> S48 | BB15: =BB16 -> S49 | BI15: =BI16 -> S50 | BP15: =BP16 -> S51 | BW15: =BW16 -> S52 | CD15: =CD16 -> S53 | CK15: =CK16 -> S2 | CR15: =CR16 -> S3 | CY15: =CY16 -> S4 | DF15: =DF16 -> S5 | DM15: =DM16 -> S6 | DT15: =DT16 -> S7 | EA15: =EA16 -> S8 | EH15: =EH16 -> S9 | EO15: =EO16 -> S10 | EV15: =EV16 -> S11 | FC15: =FC16 -> S12 | FJ15: =FJ16 -> S13 | FQ15: =FQ16 -> S14 | FX15: =FX16 -> S15 | GE15: =GE16 -> S16 | GL15: =GL16 -> S17 | GS15: =GS16 -> S18 | GZ15: =GZ16 -> S19 | HG15: =HG16 -> S20 | HN15: =HN16 -> S21 | HU15: =HU16 -> S22 | IB15: =IB16 -> S23 | II15: =II16 -> S24 | IP15: =IP16 -> S25 | IW15: =IW16 -> S26 | JD15: =JD16 -> S27 | JK15: =JK16 -> S28 | JR15: =JR16 -> S29 | JY15: =JY16 -> S30 | KF15: =KF16 -> S31 | KM15: =KM16 -> S32 | KT15: =KT16 -> S33 | LA15: =LA16 -> S34 | LH15: =LH16 -> S35 | LO15: =LO16 -> S36 | LV15: =LV16 -> S37 | MC15: =MC16 -> S38 | MJ15: =MJ16 -> S39 | MQ15: =MQ16 -> S40 | MX15: =MX16 -> S41 | NE15: =NE16 -> S42 | NL15: =NL16 -> S43 | NS15: =NS16 -> S44 | NZ15: =NZ16 -> S45 | OG15: =OG16 -> S46 | ON15: =ON16 -> S47 | OU15: =OU16 -> S48 | PB15: =PB16 -> S49 | PI15: =PI16 -> S50 | PP15: =PP16 -> S51 | PW15: =PW16 -> S52 | QD15: =QD16 -> S53 | QK15: =QK16 -> S1 | QR15: =QR16 -> S2 | QY15: =QY16 -> S3 | RF15: =RF16 -> S4 | RM15: =RM16 -> S5 | RT15: =RT16 -> S6 | SA15: =SA16 -> S7 | SH15: =SH16 -> S8 | SO15: =SO16 -> S9 | SV15: =SV16 -> S10 | TC15: =TC16 -> S11 | TJ15: =TJ16 -> S12 | TQ15: =TQ16 -> S13 | TX15: =TX16 -> S14 | UE15: =UE16 -> S15 | UL15: =UL16 -> S16 | US15: =US16 -> S17 | UZ15: =UZ16 -> S18
AG16: =HideValues!$B$55&WEEKNUM(AG9,2) -> S46 | AH16: =HideValues!$B$55&WEEKNUM(AH9,2) -> S46 | AI16: =HideValues!$B$55&WEEKNUM(AI9,2) -> S46 | AJ16: =HideValues!$B$55&WEEKNUM(AJ9,2) -> S46 | AK16: =HideValues!$B$55&WEEKNUM(AK9,2) -> S46 | AL16: =HideValues!$B$55&WEEKNUM(AL9,2) -> S46 | AM16: =HideValues!$B$55&WEEKNUM(AM9,2) -> S47 | AN16: =HideValues!$B$55&WEEKNUM(AN9,2) -> S47 | AO16: =HideValues!$B$55&WEEKNUM(AO9,2) -> S47 | AP16: =HideValues!$B$55&WEEKNUM(AP9,2) -> S47 | AQ16: =HideValues!$B$55&WEEKNUM(AQ9,2) -> S47 | AR16: =HideValues!$B$55&WEEKNUM(AR9,2) -> S47 | AS16: =HideValues!$B$55&WEEKNUM(AS9,2) -> S47 | AT16: =HideValues!$B$55&WEEKNUM(AT9,2) -> S48 | AU16: =HideValues!$B$55&WEEKNUM(AU9,2) -> S48 | AV16: =HideValues!$B$55&WEEKNUM(AV9,2) -> S48 | AW16: =HideValues!$B$55&WEEKNUM(AW9,2) -> S48 | AX16: =HideValues!$B$55&WEEKNUM(AX9,2) -> S48 | AY16: =HideValues!$B$55&WEEKNUM(AY9,2) -> S48 | AZ16: =HideValues!$B$55&WEEKNUM(AZ9,2) -> S48 | BA16: =HideValues!$B$55&WEEKNUM(BA9,2) -> S49 | BB16: =HideValues!$B$55&WEEKNUM(BB9,2) -> S49 | BC16: =HideValues!$B$55&WEEKNUM(BC9,2) -> S49 | BD16: =HideValues!$B$55&WEEKNUM(BD9,2) -> S49 | BE16: =HideValues!$B$55&WEEKNUM(BE9,2) -> S49 | BF16: =HideValues!$B$55&WEEKNUM(BF9,2) -> S49 | BG16: =HideValues!$B$55&WEEKNUM(BG9,2) -> S49 | BH16: =HideValues!$B$55&WEEKNUM(BH9,2) -> S50 | BI16: =HideValues!$B$55&WEEKNUM(BI9,2) -> S50 | BJ16: =HideValues!$B$55&WEEKNUM(BJ9,2) -> S50 | BK16: =HideValues!$B$55&WEEKNUM(BK9,2) -> S50 | BL16: =HideValues!$B$55&WEEKNUM(BL9,2) -> S50 | BM16: =HideValues!$B$55&WEEKNUM(BM9,2) -> S50 | BN16: =HideValues!$B$55&WEEKNUM(BN9,2) -> S50 | BO16: =HideValues!$B$55&WEEKNUM(BO9,2) -> S51 | BP16: =HideValues!$B$55&WEEKNUM(BP9,2) -> S51 | BQ16: =HideValues!$B$55&WEEKNUM(BQ9,2) -> S51 | BR16: =HideValues!$B$55&WEEKNUM(BR9,2) -> S51 | BS16: =HideValues!$B$55&WEEKNUM(BS9,2) -> S51 | BT16: =HideValues!$B$55&WEEKNUM(BT9,2) -> S51 | BU16: =HideValues!$B$55&WEEKNUM(BU9,2) -> S51 | BV16: =HideValues!$B$55&WEEKNUM(BV9,2) -> S52 | BW16: =HideValues!$B$55&WEEKNUM(BW9,2) -> S52 | BX16: =HideValues!$B$55&WEEKNUM(BX9,2) -> S52 | BY16: =HideValues!$B$55&WEEKNUM(BY9,2) -> S52 | BZ16: =HideValues!$B$55&WEEKNUM(BZ9,2) -> S52 | CA16: =HideValues!$B$55&WEEKNUM(CA9,2) -> S52 | CB16: =HideValues!$B$55&WEEKNUM(CB9,2) -> S52 | CC16: =HideValues!$B$55&WEEKNUM(CC9,2) -> S53 | CD16: =HideValues!$B$55&WEEKNUM(CD9,2) -> S53 | CE16: =HideValues!$B$55&WEEKNUM(CE9,2) -> S53 | CF16: =HideValues!$B$55&WEEKNUM(CF9,2) -> S53 | CG16: =HideValues!$B$55&WEEKNUM(CG9,2) -> S53 | CH16: =HideValues!$B$55&WEEKNUM(CH9,2) -> S53 | CI16: =HideValues!$B$55&WEEKNUM(CI9,2) -> S1 | CJ16: =HideValues!$B$55&WEEKNUM(CJ9,2) -> S2 | CK16: =HideValues!$B$55&WEEKNUM(CK9,2) -> S2 | CL16: =HideValues!$B$55&WEEKNUM(CL9,2) -> S2 | CM16: =HideValues!$B$55&WEEKNUM(CM9,2) -> S2 | CN16: =HideValues!$B$55&WEEKNUM(CN9,2) -> S2 | CO16: =HideValues!$B$55&WEEKNUM(CO9,2) -> S2 | CP16: =HideValues!$B$55&WEEKNUM(CP9,2) -> S2 | CQ16: =HideValues!$B$55&WEEKNUM(CQ9,2) -> S3 | CR16: =HideValues!$B$55&WEEKNUM(CR9,2) -> S3 | CS16: =HideValues!$B$55&WEEKNUM(CS9,2) -> S3 | CT16: =HideValues!$B$55&WEEKNUM(CT9,2) -> S3 | CU16: =HideValues!$B$55&WEEKNUM(CU9,2) -> S3 | CV16: =HideValues!$B$55&WEEKNUM(CV9,2) -> S3 | CW16: =HideValues!$B$55&WEEKNUM(CW9,2) -> S3 | CX16: =HideValues!$B$55&WEEKNUM(CX9,2) -> S4 | CY16: =HideValues!$B$55&WEEKNUM(CY9,2) -> S4 | CZ16: =HideValues!$B$55&WEEKNUM(CZ9,2) -> S4 | DA16: =HideValues!$B$55&WEEKNUM(DA9,2) -> S4 | DB16: =HideValues!$B$55&WEEKNUM(DB9,2) -> S4 | DC16: =HideValues!$B$55&WEEKNUM(DC9,2) -> S4 | DD16: =HideValues!$B$55&WEEKNUM(DD9,2) -> S4 | DE16: =HideValues!$B$55&WEEKNUM(DE9,2) -> S5 | DF16: =HideValues!$B$55&WEEKNUM(DF9,2) -> S5 | DG16: =HideValues!$B$55&WEEKNUM(DG9,2) -> S5 | DH16: =HideValues!$B$55&WEEKNUM(DH9,2) -> S5 | DI16: =HideValues!$B$55&WEEKNUM(DI9,2) -> S5 | DJ16: =HideValues!$B$55&WEEKNUM(DJ9,2) -> S5 | DK16: =HideValues!$B$55&WEEKNUM(DK9,2) -> S5 | DL16: =HideValues!$B$55&WEEKNUM(DL9,2) -> S6 | DM16: =HideValues!$B$55&WEEKNUM(DM9,2) -> S6 | DN16: =HideValues!$B$55&WEEKNUM(DN9,2) -> S6 | DO16: =HideValues!$B$55&WEEKNUM(DO9,2) -> S6 | DP16: =HideValues!$B$55&WEEKNUM(DP9,2) -> S6 | DQ16: =HideValues!$B$55&WEEKNUM(DQ9,2) -> S6 | DR16: =HideValues!$B$55&WEEKNUM(DR9,2) -> S6 | DS16: =HideValues!$B$55&WEEKNUM(DS9,2) -> S7 | DT16: =HideValues!$B$55&WEEKNUM(DT9,2) -> S7 | DU16: =HideValues!$B$55&WEEKNUM(DU9,2) -> S7 | DV16: =HideValues!$B$55&WEEKNUM(DV9,2) -> S7 | DW16: =HideValues!$B$55&WEEKNUM(DW9,2) -> S7 | DX16: =HideValues!$B$55&WEEKNUM(DX9,2) -> S7 | DY16: =HideValues!$B$55&WEEKNUM(DY9,2) -> S7 | DZ16: =HideValues!$B$55&WEEKNUM(DZ9,2) -> S8 | EA16: =HideValues!$B$55&WEEKNUM(EA9,2) -> S8 | EB16: =HideValues!$B$55&WEEKNUM(EB9,2) -> S8 | EC16: =HideValues!$B$55&WEEKNUM(EC9,2) -> S8 | ED16: =HideValues!$B$55&WEEKNUM(ED9,2) -> S8 | EE16: =HideValues!$B$55&WEEKNUM(EE9,2) -> S8 | EF16: =HideValues!$B$55&WEEKNUM(EF9,2) -> S8 | EG16: =HideValues!$B$55&WEEKNUM(EG9,2) -> S9 | EH16: =HideValues!$B$55&WEEKNUM(EH9,2) -> S9 | EI16: =HideValues!$B$55&WEEKNUM(EI9,2) -> S9 | EJ16: =HideValues!$B$55&WEEKNUM(EJ9,2) -> S9 | EK16: =HideValues!$B$55&WEEKNUM(EK9,2) -> S9 | EL16: =HideValues!$B$55&WEEKNUM(EL9,2) -> S9 | EM16: =HideValues!$B$55&WEEKNUM(EM9,2) -> S9 | EN16: =HideValues!$B$55&WEEKNUM(EN9,2) -> S10 | EO16: =HideValues!$B$55&WEEKNUM(EO9,2) -> S10 | EP16: =HideValues!$B$55&WEEKNUM(EP9,2) -> S10 | EQ16: =HideValues!$B$55&WEEKNUM(EQ9,2) -> S10 | ER16: =HideValues!$B$55&WEEKNUM(ER9,2) -> S10 | ES16: =HideValues!$B$55&WEEKNUM(ES9,2) -> S10 | ET16: =HideValues!$B$55&WEEKNUM(ET9,2) -> S10 | EU16: =HideValues!$B$55&WEEKNUM(EU9,2) -> S11 | EV16: =HideValues!$B$55&WEEKNUM(EV9,2) -> S11 | EW16: =HideValues!$B$55&WEEKNUM(EW9,2) -> S11 | EX16: =HideValues!$B$55&WEEKNUM(EX9,2) -> S11 | EY16: =HideValues!$B$55&WEEKNUM(EY9,2) -> S11 | EZ16: =HideValues!$B$55&WEEKNUM(EZ9,2) -> S11 | FA16: =HideValues!$B$55&WEEKNUM(FA9,2) -> S11 | FB16: =HideValues!$B$55&WEEKNUM(FB9,2) -> S12 | FC16: =HideValues!$B$55&WEEKNUM(FC9,2) -> S12 | FD16: =HideValues!$B$55&WEEKNUM(FD9,2) -> S12 | FE16: =HideValues!$B$55&WEEKNUM(FE9,2) -> S12 | FF16: =HideValues!$B$55&WEEKNUM(FF9,2) -> S12 | FG16: =HideValues!$B$55&WEEKNUM(FG9,2) -> S12 | FH16: =HideValues!$B$55&WEEKNUM(FH9,2) -> S12 | FI16: =HideValues!$B$55&WEEKNUM(FI9,2) -> S13 | FJ16: =HideValues!$B$55&WEEKNUM(FJ9,2) -> S13 | FK16: =HideValues!$B$55&WEEKNUM(FK9,2) -> S13 | FL16: =HideValues!$B$55&WEEKNUM(FL9,2) -> S13 | FM16: =HideValues!$B$55&WEEKNUM(FM9,2) -> S13 | FN16: =HideValues!$B$55&WEEKNUM(FN9,2) -> S13 | FO16: =HideValues!$B$55&WEEKNUM(FO9,2) -> S13 | FP16: =HideValues!$B$55&WEEKNUM(FP9,2) -> S14 | FQ16: =HideValues!$B$55&WEEKNUM(FQ9,2) -> S14 | FR16: =HideValues!$B$55&WEEKNUM(FR9,2) -> S14 | FS16: =HideValues!$B$55&WEEKNUM(FS9,2) -> S14 | FT16: =HideValues!$B$55&WEEKNUM(FT9,2) -> S14 | FU16: =HideValues!$B$55&WEEKNUM(FU9,2) -> S14 | FV16: =HideValues!$B$55&WEEKNUM(FV9,2) -> S14 | FW16: =HideValues!$B$55&WEEKNUM(FW9,2) -> S15 | FX16: =HideValues!$B$55&WEEKNUM(FX9,2) -> S15 | FY16: =HideValues!$B$55&WEEKNUM(FY9,2) -> S15 | FZ16: =HideValues!$B$55&WEEKNUM(FZ9,2) -> S15 | GA16: =HideValues!$B$55&WEEKNUM(GA9,2) -> S15 | GB16: =HideValues!$B$55&WEEKNUM(GB9,2) -> S15 | GC16: =HideValues!$B$55&WEEKNUM(GC9,2) -> S15 | GD16: =HideValues!$B$55&WEEKNUM(GD9,2) -> S16 | GE16: =HideValues!$B$55&WEEKNUM(GE9,2) -> S16 | GF16: =HideValues!$B$55&WEEKNUM(GF9,2) -> S16 | GG16: =HideValues!$B$55&WEEKNUM(GG9,2) -> S16 | GH16: =HideValues!$B$55&WEEKNUM(GH9,2) -> S16 | GI16: =HideValues!$B$55&WEEKNUM(GI9,2) -> S16 | GJ16: =HideValues!$B$55&WEEKNUM(GJ9,2) -> S16 | GK16: =HideValues!$B$55&WEEKNUM(GK9,2) -> S17 | GL16: =HideValues!$B$55&WEEKNUM(GL9,2) -> S17 | GM16: =HideValues!$B$55&WEEKNUM(GM9,2) -> S17 | GN16: =HideValues!$B$55&WEEKNUM(GN9,2) -> S17 | GO16: =HideValues!$B$55&WEEKNUM(GO9,2) -> S17 | GP16: =HideValues!$B$55&WEEKNUM(GP9,2) -> S17 | GQ16: =HideValues!$B$55&WEEKNUM(GQ9,2) -> S17 | GR16: =HideValues!$B$55&WEEKNUM(GR9,2) -> S18 | GS16: =HideValues!$B$55&WEEKNUM(GS9,2) -> S18 | GT16: =HideValues!$B$55&WEEKNUM(GT9,2) -> S18 | GU16: =HideValues!$B$55&WEEKNUM(GU9,2) -> S18 | GV16: =HideValues!$B$55&WEEKNUM(GV9,2) -> S18 | GW16: =HideValues!$B$55&WEEKNUM(GW9,2) -> S18 | GX16: =HideValues!$B$55&WEEKNUM(GX9,2) -> S18 | GY16: =HideValues!$B$55&WEEKNUM(GY9,2) -> S19 | GZ16: =HideValues!$B$55&WEEKNUM(GZ9,2) -> S19 | HA16: =HideValues!$B$55&WEEKNUM(HA9,2) -> S19 | HB16: =HideValues!$B$55&WEEKNUM(HB9,2) -> S19 | HC16: =HideValues!$B$55&WEEKNUM(HC9,2) -> S19 | HD16: =HideValues!$B$55&WEEKNUM(HD9,2) -> S19 | HE16: =HideValues!$B$55&WEEKNUM(HE9,2) -> S19 | HF16: =HideValues!$B$55&WEEKNUM(HF9,2) -> S20 | HG16: =HideValues!$B$55&WEEKNUM(HG9,2) -> S20 | HH16: =HideValues!$B$55&WEEKNUM(HH9,2) -> S20 | HI16: =HideValues!$B$55&WEEKNUM(HI9,2) -> S20 | HJ16: =HideValues!$B$55&WEEKNUM(HJ9,2) -> S20 | HK16: =HideValues!$B$55&WEEKNUM(HK9,2) -> S20 | HL16: =HideValues!$B$55&WEEKNUM(HL9,2) -> S20 | HM16: =HideValues!$B$55&WEEKNUM(HM9,2) -> S21 | HN16: =HideValues!$B$55&WEEKNUM(HN9,2) -> S21 | HO16: =HideValues!$B$55&WEEKNUM(HO9,2) -> S21 | HP16: =HideValues!$B$55&WEEKNUM(HP9,2) -> S21 | HQ16: =HideValues!$B$55&WEEKNUM(HQ9,2) -> S21 | HR16: =HideValues!$B$55&WEEKNUM(HR9,2) -> S21 | HS16: =HideValues!$B$55&WEEKNUM(HS9,2) -> S21 | HT16: =HideValues!$B$55&WEEKNUM(HT9,2) -> S22 | HU16: =HideValues!$B$55&WEEKNUM(HU9,2) -> S22 | HV16: =HideValues!$B$55&WEEKNUM(HV9,2) -> S22 | HW16: =HideValues!$B$55&WEEKNUM(HW9,2) -> S22 | HX16: =HideValues!$B$55&WEEKNUM(HX9,2) -> S22 | HY16: =HideValues!$B$55&WEEKNUM(HY9,2) -> S22 | HZ16: =HideValues!$B$55&WEEKNUM(HZ9,2) -> S22 | IA16: =HideValues!$B$55&WEEKNUM(IA9,2) -> S23 | IB16: =HideValues!$B$55&WEEKNUM(IB9,2) -> S23 | IC16: =HideValues!$B$55&WEEKNUM(IC9,2) -> S23 | ID16: =HideValues!$B$55&WEEKNUM(ID9,2) -> S23 | IE16: =HideValues!$B$55&WEEKNUM(IE9,2) -> S23 | IF16: =HideValues!$B$55&WEEKNUM(IF9,2) -> S23 | IG16: =HideValues!$B$55&WEEKNUM(IG9,2) -> S23 | IH16: =HideValues!$B$55&WEEKNUM(IH9,2) -> S24 | II16: =HideValues!$B$55&WEEKNUM(II9,2) -> S24 | IJ16: =HideValues!$B$55&WEEKNUM(IJ9,2) -> S24 | IK16: =HideValues!$B$55&WEEKNUM(IK9,2) -> S24 | IL16: =HideValues!$B$55&WEEKNUM(IL9,2) -> S24 | IM16: =HideValues!$B$55&WEEKNUM(IM9,2) -> S24 | IN16: =HideValues!$B$55&WEEKNUM(IN9,2) -> S24 | IO16: =HideValues!$B$55&WEEKNUM(IO9,2) -> S25 | IP16: =HideValues!$B$55&WEEKNUM(IP9,2) -> S25 | IQ16: =HideValues!$B$55&WEEKNUM(IQ9,2) -> S25 | IR16: =HideValues!$B$55&WEEKNUM(IR9,2) -> S25 | IS16: =HideValues!$B$55&WEEKNUM(IS9,2) -> S25 | IT16: =HideValues!$B$55&WEEKNUM(IT9,2) -> S25 | IU16: =HideValues!$B$55&WEEKNUM(IU9,2) -> S25 | IV16: =HideValues!$B$55&WEEKNUM(IV9,2) -> S26 | IW16: =HideValues!$B$55&WEEKNUM(IW9,2) -> S26 | IX16: =HideValues!$B$55&WEEKNUM(IX9,2) -> S26 | IY16: =HideValues!$B$55&WEEKNUM(IY9,2) -> S26 | IZ16: =HideValues!$B$55&WEEKNUM(IZ9,2) -> S26 | JA16: =HideValues!$B$55&WEEKNUM(JA9,2) -> S26 | JB16: =HideValues!$B$55&WEEKNUM(JB9,2) -> S26 | JC16: =HideValues!$B$55&WEEKNUM(JC9,2) -> S27 | JD16: =HideValues!$B$55&WEEKNUM(JD9,2) -> S27 | JE16: =HideValues!$B$55&WEEKNUM(JE9,2) -> S27 | JF16: =HideValues!$B$55&WEEKNUM(JF9,2) -> S27 | JG16: =HideValues!$B$55&WEEKNUM(JG9,2) -> S27 | JH16: =HideValues!$B$55&WEEKNUM(JH9,2) -> S27 | JI16: =HideValues!$B$55&WEEKNUM(JI9,2) -> S27 | JJ16: =HideValues!$B$55&WEEKNUM(JJ9,2) -> S28 | JK16: =HideValues!$B$55&WEEKNUM(JK9,2) -> S28 | JL16: =HideValues!$B$55&WEEKNUM(JL9,2) -> S28 | JM16: =HideValues!$B$55&WEEKNUM(JM9,2) -> S28 | JN16: =HideValues!$B$55&WEEKNUM(JN9,2) -> S28 | JO16: =HideValues!$B$55&WEEKNUM(JO9,2) -> S28 | JP16: =HideValues!$B$55&WEEKNUM(JP9,2) -> S28 | JQ16: =HideValues!$B$55&WEEKNUM(JQ9,2) -> S29 | JR16: =HideValues!$B$55&WEEKNUM(JR9,2) -> S29 | JS16: =HideValues!$B$55&WEEKNUM(JS9,2) -> S29 | JT16: =HideValues!$B$55&WEEKNUM(JT9,2) -> S29 | JU16: =HideValues!$B$55&WEEKNUM(JU9,2) -> S29 | JV16: =HideValues!$B$55&WEEKNUM(JV9,2) -> S29 | JW16: =HideValues!$B$55&WEEKNUM(JW9,2) -> S29 | JX16: =HideValues!$B$55&WEEKNUM(JX9,2) -> S30 | JY16: =HideValues!$B$55&WEEKNUM(JY9,2) -> S30 | JZ16: =HideValues!$B$55&WEEKNUM(JZ9,2) -> S30 | KA16: =HideValues!$B$55&WEEKNUM(KA9,2) -> S30 | KB16: =HideValues!$B$55&WEEKNUM(KB9,2) -> S30 | KC16: =HideValues!$B$55&WEEKNUM(KC9,2) -> S30 | KD16: =HideValues!$B$55&WEEKNUM(KD9,2) -> S30 | KE16: =HideValues!$B$55&WEEKNUM(KE9,2) -> S31 | KF16: =HideValues!$B$55&WEEKNUM(KF9,2) -> S31 | KG16: =HideValues!$B$55&WEEKNUM(KG9,2) -> S31 | KH16: =HideValues!$B$55&WEEKNUM(KH9,2) -> S31 | KI16: =HideValues!$B$55&WEEKNUM(KI9,2) -> S31 | KJ16: =HideValues!$B$55&WEEKNUM(KJ9,2) -> S31 | KK16: =HideValues!$B$55&WEEKNUM(KK9,2) -> S31 | KL16: =HideValues!$B$55&WEEKNUM(KL9,2) -> S32 | KM16: =HideValues!$B$55&WEEKNUM(KM9,2) -> S32 | KN16: =HideValues!$B$55&WEEKNUM(KN9,2) -> S32 | KO16: =HideValues!$B$55&WEEKNUM(KO9,2) -> S32 | KP16: =HideValues!$B$55&WEEKNUM(KP9,2) -> S32 | KQ16: =HideValues!$B$55&WEEKNUM(KQ9,2) -> S32 | KR16: =HideValues!$B$55&WEEKNUM(KR9,2) -> S32 | KS16: =HideValues!$B$55&WEEKNUM(KS9,2) -> S33 | KT16: =HideValues!$B$55&WEEKNUM(KT9,2) -> S33 | KU16: =HideValues!$B$55&WEEKNUM(KU9,2) -> S33 | KV16: =HideValues!$B$55&WEEKNUM(KV9,2) -> S33 | KW16: =HideValues!$B$55&WEEKNUM(KW9,2) -> S33 | KX16: =HideValues!$B$55&WEEKNUM(KX9,2) -> S33 | KY16: =HideValues!$B$55&WEEKNUM(KY9,2) -> S33 | KZ16: =HideValues!$B$55&WEEKNUM(KZ9,2) -> S34 | LA16: =HideValues!$B$55&WEEKNUM(LA9,2) -> S34 | LB16: =HideValues!$B$55&WEEKNUM(LB9,2) -> S34 | LC16: =HideValues!$B$55&WEEKNUM(LC9,2) -> S34 | LD16: =HideValues!$B$55&WEEKNUM(LD9,2) -> S34 | LE16: =HideValues!$B$55&WEEKNUM(LE9,2) -> S34 | LF16: =HideValues!$B$55&WEEKNUM(LF9,2) -> S34 | LG16: =HideValues!$B$55&WEEKNUM(LG9,2) -> S35 | LH16: =HideValues!$B$55&WEEKNUM(LH9,2) -> S35 | LI16: =HideValues!$B$55&WEEKNUM(LI9,2) -> S35 | LJ16: =HideValues!$B$55&WEEKNUM(LJ9,2) -> S35 | LK16: =HideValues!$B$55&WEEKNUM(LK9,2) -> S35 | LL16: =HideValues!$B$55&WEEKNUM(LL9,2) -> S35 | LM16: =HideValues!$B$55&WEEKNUM(LM9,2) -> S35 | LN16: =HideValues!$B$55&WEEKNUM(LN9,2) -> S36 | LO16: =HideValues!$B$55&WEEKNUM(LO9,2) -> S36 | LP16: =HideValues!$B$55&WEEKNUM(LP9,2) -> S36 | LQ16: =HideValues!$B$55&WEEKNUM(LQ9,2) -> S36 | LR16: =HideValues!$B$55&WEEKNUM(LR9,2) -> S36 | LS16: =HideValues!$B$55&WEEKNUM(LS9,2) -> S36 | LT16: =HideValues!$B$55&WEEKNUM(LT9,2) -> S36 | LU16: =HideValues!$B$55&WEEKNUM(LU9,2) -> S37 | LV16: =HideValues!$B$55&WEEKNUM(LV9,2) -> S37 | LW16: =HideValues!$B$55&WEEKNUM(LW9,2) -> S37 | LX16: =HideValues!$B$55&WEEKNUM(LX9,2) -> S37 | LY16: =HideValues!$B$55&WEEKNUM(LY9,2) -> S37 | LZ16: =HideValues!$B$55&WEEKNUM(LZ9,2) -> S37 | MA16: =HideValues!$B$55&WEEKNUM(MA9,2) -> S37 | MB16: =HideValues!$B$55&WEEKNUM(MB9,2) -> S38 | MC16: =HideValues!$B$55&WEEKNUM(MC9,2) -> S38 | MD16: =HideValues!$B$55&WEEKNUM(MD9,2) -> S38 | ME16: =HideValues!$B$55&WEEKNUM(ME9,2) -> S38 | MF16: =HideValues!$B$55&WEEKNUM(MF9,2) -> S38 | MG16: =HideValues!$B$55&WEEKNUM(MG9,2) -> S38 | MH16: =HideValues!$B$55&WEEKNUM(MH9,2) -> S38 | MI16: =HideValues!$B$55&WEEKNUM(MI9,2) -> S39 | MJ16: =HideValues!$B$55&WEEKNUM(MJ9,2) -> S39 | MK16: =HideValues!$B$55&WEEKNUM(MK9,2) -> S39 | ML16: =HideValues!$B$55&WEEKNUM(ML9,2) -> S39 | MM16: =HideValues!$B$55&WEEKNUM(MM9,2) -> S39 | MN16: =HideValues!$B$55&WEEKNUM(MN9,2) -> S39 | MO16: =HideValues!$B$55&WEEKNUM(MO9,2) -> S39 | MP16: =HideValues!$B$55&WEEKNUM(MP9,2) -> S40 | MQ16: =HideValues!$B$55&WEEKNUM(MQ9,2) -> S40 | MR16: =HideValues!$B$55&WEEKNUM(MR9,2) -> S40 | MS16: =HideValues!$B$55&WEEKNUM(MS9,2) -> S40 | MT16: =HideValues!$B$55&WEEKNUM(MT9,2) -> S40 | MU16: =HideValues!$B$55&WEEKNUM(MU9,2) -> S40 | MV16: =HideValues!$B$55&WEEKNUM(MV9,2) -> S40 | MW16: =HideValues!$B$55&WEEKNUM(MW9,2) -> S41 | MX16: =HideValues!$B$55&WEEKNUM(MX9,2) -> S41 | MY16: =HideValues!$B$55&WEEKNUM(MY9,2) -> S41 | MZ16: =HideValues!$B$55&WEEKNUM(MZ9,2) -> S41 | NA16: =HideValues!$B$55&WEEKNUM(NA9,2) -> S41 | NB16: =HideValues!$B$55&WEEKNUM(NB9,2) -> S41 | NC16: =HideValues!$B$55&WEEKNUM(NC9,2) -> S41 | ND16: =HideValues!$B$55&WEEKNUM(ND9,2) -> S42 | NE16: =HideValues!$B$55&WEEKNUM(NE9,2) -> S42 | NF16: =HideValues!$B$55&WEEKNUM(NF9,2) -> S42 | NG16: =HideValues!$B$55&WEEKNUM(NG9,2) -> S42 | NH16: =HideValues!$B$55&WEEKNUM(NH9,2) -> S42 | NI16: =HideValues!$B$55&WEEKNUM(NI9,2) -> S42 | NJ16: =HideValues!$B$55&WEEKNUM(NJ9,2) -> S42 | NK16: =HideValues!$B$55&WEEKNUM(NK9,2) -> S43 | NL16: =HideValues!$B$55&WEEKNUM(NL9,2) -> S43 | NM16: =HideValues!$B$55&WEEKNUM(NM9,2) -> S43 | NN16: =HideValues!$B$55&WEEKNUM(NN9,2) -> S43 | NO16: =HideValues!$B$55&WEEKNUM(NO9,2) -> S43 | NP16: =HideValues!$B$55&WEEKNUM(NP9,2) -> S43 | NQ16: =HideValues!$B$55&WEEKNUM(NQ9,2) -> S43 | NR16: =HideValues!$B$55&WEEKNUM(NR9,2) -> S44 | NS16: =HideValues!$B$55&WEEKNUM(NS9,2) -> S44 | NT16: =HideValues!$B$55&WEEKNUM(NT9,2) -> S44 | NU16: =HideValues!$B$55&WEEKNUM(NU9,2) -> S44 | NV16: =HideValues!$B$55&WEEKNUM(NV9,2) -> S44 | NW16: =HideValues!$B$55&WEEKNUM(NW9,2) -> S44 | NX16: =HideValues!$B$55&WEEKNUM(NX9,2) -> S44 | NY16: =HideValues!$B$55&WEEKNUM(NY9,2) -> S45 | NZ16: =HideValues!$B$55&WEEKNUM(NZ9,2) -> S45 | OA16: =HideValues!$B$55&WEEKNUM(OA9,2) -> S45 | OB16: =HideValues!$B$55&WEEKNUM(OB9,2) -> S45 | OC16: =HideValues!$B$55&WEEKNUM(OC9,2) -> S45 | OD16: =HideValues!$B$55&WEEKNUM(OD9,2) -> S45 | OE16: =HideValues!$B$55&WEEKNUM(OE9,2) -> S45 | OF16: =HideValues!$B$55&WEEKNUM(OF9,2) -> S46 | OG16: =HideValues!$B$55&WEEKNUM(OG9,2) -> S46 | OH16: =HideValues!$B$55&WEEKNUM(OH9,2) -> S46 | OI16: =HideValues!$B$55&WEEKNUM(OI9,2) -> S46 | OJ16: =HideValues!$B$55&WEEKNUM(OJ9,2) -> S46 | OK16: =HideValues!$B$55&WEEKNUM(OK9,2) -> S46 | OL16: =HideValues!$B$55&WEEKNUM(OL9,2) -> S46 | OM16: =HideValues!$B$55&WEEKNUM(OM9,2) -> S47 | ON16: =HideValues!$B$55&WEEKNUM(ON9,2) -> S47 | OO16: =HideValues!$B$55&WEEKNUM(OO9,2) -> S47 | OP16: =HideValues!$B$55&WEEKNUM(OP9,2) -> S47 | OQ16: =HideValues!$B$55&WEEKNUM(OQ9,2) -> S47 | OR16: =HideValues!$B$55&WEEKNUM(OR9,2) -> S47 | OS16: =HideValues!$B$55&WEEKNUM(OS9,2) -> S47 | OT16: =HideValues!$B$55&WEEKNUM(OT9,2) -> S48 | OU16: =HideValues!$B$55&WEEKNUM(OU9,2) -> S48 | OV16: =HideValues!$B$55&WEEKNUM(OV9,2) -> S48 | OW16: =HideValues!$B$55&WEEKNUM(OW9,2) -> S48 | OX16: =HideValues!$B$55&WEEKNUM(OX9,2) -> S48 | OY16: =HideValues!$B$55&WEEKNUM(OY9,2) -> S48 | OZ16: =HideValues!$B$55&WEEKNUM(OZ9,2) -> S48 | PA16: =HideValues!$B$55&WEEKNUM(PA9,2) -> S49 | PB16: =HideValues!$B$55&WEEKNUM(PB9,2) -> S49 | PC16: =HideValues!$B$55&WEEKNUM(PC9,2) -> S49 | PD16: =HideValues!$B$55&WEEKNUM(PD9,2) -> S49 | PE16: =HideValues!$B$55&WEEKNUM(PE9,2) -> S49 | PF16: =HideValues!$B$55&WEEKNUM(PF9,2) -> S49 | PG16: =HideValues!$B$55&WEEKNUM(PG9,2) -> S49 | PH16: =HideValues!$B$55&WEEKNUM(PH9,2) -> S50 | PI16: =HideValues!$B$55&WEEKNUM(PI9,2) -> S50 | PJ16: =HideValues!$B$55&WEEKNUM(PJ9,2) -> S50 | PK16: =HideValues!$B$55&WEEKNUM(PK9,2) -> S50 | PL16: =HideValues!$B$55&WEEKNUM(PL9,2) -> S50 | PM16: =HideValues!$B$55&WEEKNUM(PM9,2) -> S50 | PN16: =HideValues!$B$55&WEEKNUM(PN9,2) -> S50 | PO16: =HideValues!$B$55&WEEKNUM(PO9,2) -> S51 | PP16: =HideValues!$B$55&WEEKNUM(PP9,2) -> S51 | PQ16: =HideValues!$B$55&WEEKNUM(PQ9,2) -> S51 | PR16: =HideValues!$B$55&WEEKNUM(PR9,2) -> S51 | PS16: =HideValues!$B$55&WEEKNUM(PS9,2) -> S51 | PT16: =HideValues!$B$55&WEEKNUM(PT9,2) -> S51 | PU16: =HideValues!$B$55&WEEKNUM(PU9,2) -> S51 | PV16: =HideValues!$B$55&WEEKNUM(PV9,2) -> S52 | PW16: =HideValues!$B$55&WEEKNUM(PW9,2) -> S52 | PX16: =HideValues!$B$55&WEEKNUM(PX9,2) -> S52 | PY16: =HideValues!$B$55&WEEKNUM(PY9,2) -> S52 | PZ16: =HideValues!$B$55&WEEKNUM(PZ9,2) -> S52 | QA16: =HideValues!$B$55&WEEKNUM(QA9,2) -> S52 | QB16: =HideValues!$B$55&WEEKNUM(QB9,2) -> S52 | QC16: =HideValues!$B$55&WEEKNUM(QC9,2) -> S53 | QD16: =HideValues!$B$55&WEEKNUM(QD9,2) -> S53 | QE16: =HideValues!$B$55&WEEKNUM(QE9,2) -> S53 | QF16: =HideValues!$B$55&WEEKNUM(QF9,2) -> S53 | QG16: =HideValues!$B$55&WEEKNUM(QG9,2) -> S53 | QH16: =HideValues!$B$55&WEEKNUM(QH9,2) -> S53 | QI16: =HideValues!$B$55&WEEKNUM(QI9,2) -> S53 | QJ16: =HideValues!$B$55&WEEKNUM(QJ9,2) -> S1 | QK16: =HideValues!$B$55&WEEKNUM(QK9,2) -> S1 | QL16: =HideValues!$B$55&WEEKNUM(QL9,2) -> S1 | QM16: =HideValues!$B$55&WEEKNUM(QM9,2) -> S1 | QN16: =HideValues!$B$55&WEEKNUM(QN9,2) -> S1 | QO16: =HideValues!$B$55&WEEKNUM(QO9,2) -> S1 | QP16: =HideValues!$B$55&WEEKNUM(QP9,2) -> S1 | QQ16: =HideValues!$B$55&WEEKNUM(QQ9,2) -> S2 | QR16: =HideValues!$B$55&WEEKNUM(QR9,2) -> S2 | QS16: =HideValues!$B$55&WEEKNUM(QS9,2) -> S2 | QT16: =HideValues!$B$55&WEEKNUM(QT9,2) -> S2 | QU16: =HideValues!$B$55&WEEKNUM(QU9,2) -> S2 | QV16: =HideValues!$B$55&WEEKNUM(QV9,2) -> S2 | QW16: =HideValues!$B$55&WEEKNUM(QW9,2) -> S2 | QX16: =HideValues!$B$55&WEEKNUM(QX9,2) -> S3 | QY16: =HideValues!$B$55&WEEKNUM(QY9,2) -> S3 | QZ16: =HideValues!$B$55&WEEKNUM(QZ9,2) -> S3 | RA16: =HideValues!$B$55&WEEKNUM(RA9,2) -> S3 | RB16: =HideValues!$B$55&WEEKNUM(RB9,2) -> S3 | RC16: =HideValues!$B$55&WEEKNUM(RC9,2) -> S3 | RD16: =HideValues!$B$55&WEEKNUM(RD9,2) -> S3 | RE16: =HideValues!$B$55&WEEKNUM(RE9,2) -> S4 | RF16: =HideValues!$B$55&WEEKNUM(RF9,2) -> S4 | RG16: =HideValues!$B$55&WEEKNUM(RG9,2) -> S4 | RH16: =HideValues!$B$55&WEEKNUM(RH9,2) -> S4 | RI16: =HideValues!$B$55&WEEKNUM(RI9,2) -> S4 | RJ16: =HideValues!$B$55&WEEKNUM(RJ9,2) -> S4 | RK16: =HideValues!$B$55&WEEKNUM(RK9,2) -> S4 | RL16: =HideValues!$B$55&WEEKNUM(RL9,2) -> S5 | RM16: =HideValues!$B$55&WEEKNUM(RM9,2) -> S5 | RN16: =HideValues!$B$55&WEEKNUM(RN9,2) -> S5 | RO16: =HideValues!$B$55&WEEKNUM(RO9,2) -> S5 | RP16: =HideValues!$B$55&WEEKNUM(RP9,2) -> S5 | RQ16: =HideValues!$B$55&WEEKNUM(RQ9,2) -> S5 | RR16: =HideValues!$B$55&WEEKNUM(RR9,2) -> S5 | RS16: =HideValues!$B$55&WEEKNUM(RS9,2) -> S6 | RT16: =HideValues!$B$55&WEEKNUM(RT9,2) -> S6 | RU16: =HideValues!$B$55&WEEKNUM(RU9,2) -> S6 | RV16: =HideValues!$B$55&WEEKNUM(RV9,2) -> S6 | RW16: =HideValues!$B$55&WEEKNUM(RW9,2) -> S6 | RX16: =HideValues!$B$55&WEEKNUM(RX9,2) -> S6 | RY16: =HideValues!$B$55&WEEKNUM(RY9,2) -> S6 | RZ16: =HideValues!$B$55&WEEKNUM(RZ9,2) -> S7 | SA16: =HideValues!$B$55&WEEKNUM(SA9,2) -> S7 | SB16: =HideValues!$B$55&WEEKNUM(SB9,2) -> S7 | SC16: =HideValues!$B$55&WEEKNUM(SC9,2) -> S7 | SD16: =HideValues!$B$55&WEEKNUM(SD9,2) -> S7 | SE16: =HideValues!$B$55&WEEKNUM(SE9,2) -> S7 | SF16: =HideValues!$B$55&WEEKNUM(SF9,2) -> S7 | SG16: =HideValues!$B$55&WEEKNUM(SG9,2) -> S8 | SH16: =HideValues!$B$55&WEEKNUM(SH9,2) -> S8 | SI16: =HideValues!$B$55&WEEKNUM(SI9,2) -> S8 | SJ16: =HideValues!$B$55&WEEKNUM(SJ9,2) -> S8 | SK16: =HideValues!$B$55&WEEKNUM(SK9,2) -> S8 | SL16: =HideValues!$B$55&WEEKNUM(SL9,2) -> S8 | SM16: =HideValues!$B$55&WEEKNUM(SM9,2) -> S8 | SN16: =HideValues!$B$55&WEEKNUM(SN9,2) -> S9 | SO16: =HideValues!$B$55&WEEKNUM(SO9,2) -> S9 | SP16: =HideValues!$B$55&WEEKNUM(SP9,2) -> S9 | SQ16: =HideValues!$B$55&WEEKNUM(SQ9,2) -> S9 | SR16: =HideValues!$B$55&WEEKNUM(SR9,2) -> S9 | SS16: =HideValues!$B$55&WEEKNUM(SS9,2) -> S9 | ST16: =HideValues!$B$55&WEEKNUM(ST9,2) -> S9 | SU16: =HideValues!$B$55&WEEKNUM(SU9,2) -> S10 | SV16: =HideValues!$B$55&WEEKNUM(SV9,2) -> S10 | SW16: =HideValues!$B$55&WEEKNUM(SW9,2) -> S10 | SX16: =HideValues!$B$55&WEEKNUM(SX9,2) -> S10 | SY16: =HideValues!$B$55&WEEKNUM(SY9,2) -> S10 | SZ16: =HideValues!$B$55&WEEKNUM(SZ9,2) -> S10 | TA16: =HideValues!$B$55&WEEKNUM(TA9,2) -> S10 | TB16: =HideValues!$B$55&WEEKNUM(TB9,2) -> S11 | TC16: =HideValues!$B$55&WEEKNUM(TC9,2) -> S11 | TD16: =HideValues!$B$55&WEEKNUM(TD9,2) -> S11 | TE16: =HideValues!$B$55&WEEKNUM(TE9,2) -> S11 | TF16: =HideValues!$B$55&WEEKNUM(TF9,2) -> S11 | TG16: =HideValues!$B$55&WEEKNUM(TG9,2) -> S11 | TH16: =HideValues!$B$55&WEEKNUM(TH9,2) -> S11 | TI16: =HideValues!$B$55&WEEKNUM(TI9,2) -> S12 | TJ16: =HideValues!$B$55&WEEKNUM(TJ9,2) -> S12 | TK16: =HideValues!$B$55&WEEKNUM(TK9,2) -> S12 | TL16: =HideValues!$B$55&WEEKNUM(TL9,2) -> S12 | TM16: =HideValues!$B$55&WEEKNUM(TM9,2) -> S12 | TN16: =HideValues!$B$55&WEEKNUM(TN9,2) -> S12 | TO16: =HideValues!$B$55&WEEKNUM(TO9,2) -> S12 | TP16: =HideValues!$B$55&WEEKNUM(TP9,2) -> S13 | TQ16: =HideValues!$B$55&WEEKNUM(TQ9,2) -> S13 | TR16: =HideValues!$B$55&WEEKNUM(TR9,2) -> S13 | TS16: =HideValues!$B$55&WEEKNUM(TS9,2) -> S13 | TT16: =HideValues!$B$55&WEEKNUM(TT9,2) -> S13 | TU16: =HideValues!$B$55&WEEKNUM(TU9,2) -> S13 | TV16: =HideValues!$B$55&WEEKNUM(TV9,2) -> S13 | TW16: =HideValues!$B$55&WEEKNUM(TW9,2) -> S14 | TX16: =HideValues!$B$55&WEEKNUM(TX9,2) -> S14 | TY16: =HideValues!$B$55&WEEKNUM(TY9,2) -> S14 | TZ16: =HideValues!$B$55&WEEKNUM(TZ9,2) -> S14 | UA16: =HideValues!$B$55&WEEKNUM(UA9,2) -> S14 | UB16: =HideValues!$B$55&WEEKNUM(UB9,2) -> S14 | UC16: =HideValues!$B$55&WEEKNUM(UC9,2) -> S14 | UD16: =HideValues!$B$55&WEEKNUM(UD9,2) -> S15 | UE16: =HideValues!$B$55&WEEKNUM(UE9,2) -> S15 | UF16: =HideValues!$B$55&WEEKNUM(UF9,2) -> S15 | UG16: =HideValues!$B$55&WEEKNUM(UG9,2) -> S15 | UH16: =HideValues!$B$55&WEEKNUM(UH9,2) -> S15 | UI16: =HideValues!$B$55&WEEKNUM(UI9,2) -> S15 | UJ16: =HideValues!$B$55&WEEKNUM(UJ9,2) -> S15 | UK16: =HideValues!$B$55&WEEKNUM(UK9,2) -> S16 | UL16: =HideValues!$B$55&WEEKNUM(UL9,2) -> S16 | UM16: =HideValues!$B$55&WEEKNUM(UM9,2) -> S16 | UN16: =HideValues!$B$55&WEEKNUM(UN9,2) -> S16 | UO16: =HideValues!$B$55&WEEKNUM(UO9,2) -> S16 | UP16: =HideValues!$B$55&WEEKNUM(UP9,2) -> S16 | UQ16: =HideValues!$B$55&WEEKNUM(UQ9,2) -> S16 | UR16: =HideValues!$B$55&WEEKNUM(UR9,2) -> S17 | US16: =HideValues!$B$55&WEEKNUM(US9,2) -> S17 | UT16: =HideValues!$B$55&WEEKNUM(UT9,2) -> S17 | UU16: =HideValues!$B$55&WEEKNUM(UU9,2) -> S17 | UV16: =HideValues!$B$55&WEEKNUM(UV9,2) -> S17 | UW16: =HideValues!$B$55&WEEKNUM(UW9,2) -> S17 | UX16: =HideValues!$B$55&WEEKNUM(UX9,2) -> S17 | UY16: =HideValues!$B$55&WEEKNUM(UY9,2) -> S18 | UZ16: =HideValues!$B$55&WEEKNUM(UZ9,2) -> S18 | VA16: =HideValues!$B$55&WEEKNUM(VA9,2) -> S18 | VB16: =HideValues!$B$55&WEEKNUM(VB9,2) -> S18 | VC16: =HideValues!$B$55&WEEKNUM(VC9,2) -> S18 | VD16: =HideValues!$B$55&WEEKNUM(VD9,2) -> S18 | VE16: =HideValues!$B$55&WEEKNUM(VE9,2) -> S18 | VF16: =HideValues!$B$55&WEEKNUM(VF9,2) -> S19
Q17: Planning | AB17: Budget | AF17: Commentaires | AG17: =IF(TEXT(AG9,"ddd")="ddd",UPPER(LEFT(TEXT(AG9,"jjj"),1)),UPPER(LEFT(TEXT(AG9,"ddd"),1))) -> M | AH17: M | AI17: J | AJ17: V | AK17: S | AL17: D | AM17: L | AN17: M | AO17: M | AP17: J | AQ17: V | AR17: S | AS17: D | AT17: L | AU17: M | AV17: M | AW17: J | AX17: V | AY17: S | AZ17: D | BA17: L | BB17: M | BC17: M | BD17: J | BE17: V | BF17: S | BG17: D | BH17: L | BI17: M | BJ17: M | BK17: J | BL17: V | BM17: S | BN17: D | BO17: L | BP17: M | BQ17: M | BR17: J | BS17: V | BT17: S | BU17: D | BV17: L | BW17: M | BX17: M | BY17: J | BZ17: V | CA17: S | CB17: D | CC17: L | CD17: M | CE17: M | CF17: J | CG17: V | CH17: S | CI17: D | CJ17: L | CK17: M | CL17: M | CM17: J | CN17: V | CO17: S | CP17: D | CQ17: L | CR17: M | CS17: =IF(TEXT(CS9,"ddd")="ddd",UPPER(LEFT(TEXT(CS9,"jjj"),1)),UPPER(LEFT(TEXT(CS9,"ddd"),1))) -> M | CT17: J | CU17: V | CV17: S | CW17: D | CX17: L | CY17: M | CZ17: M | DA17: J | DB17: V | DC17: S | DD17: D | DE17: L | DF17: M | DG17: M | DH17: J | DI17: V | DJ17: S | DK17: D | DL17: L | DM17: M | DN17: M | DO17: J | DP17: V | DQ17: S | DR17: D | DS17: L | DT17: M | DU17: M | DV17: J | DW17: V | DX17: S | DY17: D | DZ17: L | EA17: M | EB17: M | EC17: J | ED17: V | EE17: S | EF17: D | EG17: L | EH17: M | EI17: M | EJ17: J | EK17: V | EL17: S | EM17: D | EN17: L | EO17: M | EP17: M | EQ17: J | ER17: V | ES17: S | ET17: D | EU17: L | EV17: M | EW17: M | EX17: J | EY17: V | EZ17: S | FA17: D | FB17: L | FC17: M | FD17: M | FE17: =IF(TEXT(FE9,"ddd")="ddd",UPPER(LEFT(TEXT(FE9,"jjj"),1)),UPPER(LEFT(TEXT(FE9,"ddd"),1))) -> J | FF17: V | FG17: S | FH17: D | FI17: L | FJ17: M | FK17: M | FL17: J | FM17: V | FN17: S | FO17: D | FP17: L | FQ17: M | FR17: M | FS17: J | FT17: V | FU17: S | FV17: D | FW17: L | FX17: M | FY17: M | FZ17: J | GA17: V | GB17: S | GC17: D | GD17: L | GE17: M | GF17: M | GG17: J | GH17: V | GI17: S | GJ17: D | GK17: L | GL17: M | GM17: M | GN17: J | GO17: V | GP17: S | GQ17: D | GR17: L | GS17: M | GT17: M | GU17: J | GV17: V | GW17: S | GX17: D | GY17: L | GZ17: M | HA17: M | HB17: J | HC17: V | HD17: S | HE17: D | HF17: L | HG17: M | HH17: M | HI17: J | HJ17: V | HK17: S | HL17: D | HM17: L | HN17: M | HO17: M | HP17: J | HQ17: =IF(TEXT(HQ9,"ddd")="ddd",UPPER(LEFT(TEXT(HQ9,"jjj"),1)),UPPER(LEFT(TEXT(HQ9,"ddd"),1))) -> V | HR17: S | HS17: D | HT17: L | HU17: M | HV17: M | HW17: J | HX17: V | HY17: S | HZ17: D | IA17: L | IB17: M | IC17: M | ID17: J | IE17: V | IF17: S | IG17: D | IH17: L | II17: M | IJ17: M | IK17: J | IL17: V | IM17: S | IN17: D | IO17: L | IP17: M | IQ17: M | IR17: J | IS17: V | IT17: S | IU17: D | IV17: L | IW17: M | IX17: M | IY17: J | IZ17: V | JA17: S | JB17: D | JC17: L | JD17: M | JE17: M | JF17: J | JG17: V | JH17: S | JI17: D | JJ17: L | JK17: M | JL17: M | JM17: J | JN17: V | JO17: S | JP17: D | JQ17: L | JR17: M | JS17: M | JT17: J | JU17: V | JV17: S | JW17: D | JX17: L | JY17: M | JZ17: M | KA17: J | KB17: V | KC17: =IF(TEXT(KC9,"ddd")="ddd",UPPER(LEFT(TEXT(KC9,"jjj"),1)),UPPER(LEFT(TEXT(KC9,"ddd"),1))) -> S | KD17: D | KE17: L | KF17: M | KG17: M | KH17: J | KI17: V | KJ17: S | KK17: D | KL17: L | KM17: M | KN17: M | KO17: J | KP17: V | KQ17: S | KR17: D | KS17: L | KT17: M | KU17: M | KV17: J | KW17: V | KX17: S | KY17: D | KZ17: L | LA17: M | LB17: M | LC17: J | LD17: V | LE17: S | LF17: D | LG17: L | LH17: M | LI17: M | LJ17: J | LK17: V | LL17: S | LM17: D | LN17: L | LO17: M | LP17: M | LQ17: J | LR17: V | LS17: S | LT17: D | LU17: L | LV17: M | LW17: M | LX17: J | LY17: V | LZ17: S | MA17: D | MB17: L | MC17: M | MD17: M | ME17: J | MF17: V | MG17: S | MH17: D | MI17: L | MJ17: M | MK17: M | ML17: J | MM17: V | MN17: S | MO17: =IF(TEXT(MO9,"ddd")="ddd",UPPER(LEFT(TEXT(MO9,"jjj"),1)),UPPER(LEFT(TEXT(MO9,"ddd"),1))) -> D | MP17: L | MQ17: M | MR17: M | MS17: J | MT17: V | MU17: S | MV17: D | MW17: L | MX17: M | MY17: M | MZ17: J | NA17: V | NB17: S | NC17: D | ND17: L | NE17: M | NF17: M | NG17: J | NH17: V | NI17: S | NJ17: D | NK17: L | NL17: M | NM17: M | NN17: J | NO17: V | NP17: S | NQ17: D | NR17: L | NS17: M | NT17: M | NU17: J | NV17: V | NW17: S | NX17: D | NY17: L | NZ17: M | OA17: M | OB17: J | OC17: V | OD17: S | OE17: D | OF17: L | OG17: M | OH17: M | OI17: J | OJ17: V | OK17: S | OL17: D | OM17: L | ON17: M | OO17: M | OP17: J | OQ17: V | OR17: S | OS17: D | OT17: L | OU17: M | OV17: M | OW17: J | OX17: V | OY17: S | OZ17: D | PA17: =IF(TEXT(PA9,"ddd")="ddd",UPPER(LEFT(TEXT(PA9,"jjj"),1)),UPPER(LEFT(TEXT(PA9,"ddd"),1))) -> L | PB17: M | PC17: M | PD17: J | PE17: V | PF17: S | PG17: D | PH17: L | PI17: M | PJ17: M | PK17: J | PL17: V | PM17: S | PN17: D | PO17: L | PP17: M | PQ17: M | PR17: J | PS17: V | PT17: S | PU17: D | PV17: L | PW17: M | PX17: M | PY17: J | PZ17: V | QA17: S | QB17: D | QC17: L | QD17: M | QE17: M | QF17: J | QG17: V | QH17: S | QI17: D | QJ17: L | QK17: M | QL17: M | QM17: J | QN17: V | QO17: S | QP17: D | QQ17: L | QR17: M | QS17: M | QT17: J | QU17: V | QV17: S | QW17: D | QX17: L | QY17: M | QZ17: M | RA17: J | RB17: V | RC17: S | RD17: D | RE17: L | RF17: M | RG17: M | RH17: J | RI17: V | RJ17: S | RK17: D | RL17: L | RM17: =IF(TEXT(RM9,"ddd")="ddd",UPPER(LEFT(TEXT(RM9,"jjj"),1)),UPPER(LEFT(TEXT(RM9,"ddd"),1))) -> M | RN17: M | RO17: J | RP17: V | RQ17: S | RR17: D | RS17: L | RT17: M | RU17: M | RV17: J | RW17: V | RX17: S | RY17: D | RZ17: L | SA17: M | SB17: M | SC17: J | SD17: V | SE17: S | SF17: D | SG17: L | SH17: M | SI17: M | SJ17: J | SK17: V | SL17: S | SM17: D | SN17: L | SO17: M | SP17: M | SQ17: J | SR17: V | SS17: S | ST17: D | SU17: L | SV17: M | SW17: M | SX17: J | SY17: V | SZ17: S | TA17: D | TB17: L | TC17: M | TD17: M | TE17: J | TF17: V | TG17: S | TH17: D | TI17: L | TJ17: M | TK17: M | TL17: J | TM17: V | TN17: S | TO17: D | TP17: L | TQ17: M | TR17: M | TS17: J | TT17: V | TU17: S | TV17: D | TW17: L | TX17: M | TY17: =IF(TEXT(TY9,"ddd")="ddd",UPPER(LEFT(TEXT(TY9,"jjj"),1)),UPPER(LEFT(TEXT(TY9,"ddd"),1))) -> M | TZ17: J | UA17: V | UB17: S | UC17: D | UD17: L | UE17: M | UF17: M | UG17: J | UH17: V | UI17: S | UJ17: D | UK17: L | UL17: M | UM17: M | UN17: J | UO17: V | UP17: S | UQ17: D | UR17: L | US17: M | UT17: M | UU17: J | UV17: V | UW17: S | UX17: D | UY17: L | UZ17: M | VA17: M | VB17: J | VC17: V | VD17: S | VE17: D | VF17: L
Q18: Resp. | R18: Début | S18: Durée | T18: Jours ouvrés | U18: Normal | V18: Échéance | W18: Début Recalculé | X18: Fin Recalculée | Y18: Statut | AB18: Estim. | AC18: Réel | AD18: % | AG18: =AG9 -> 2016-11-08 | AH18: 2016-11-09 | AI18: 2016-11-10 | AJ18: 2016-11-11 | AK18: 2016-11-12 | AL18: 2016-11-13 | AM18: 2016-11-14 | AN18: 2016-11-15 | AO18: 2016-11-16 | AP18: 2016-11-17 | AQ18: 2016-11-18 | AR18: 2016-11-19 | AS18: 2016-11-20 | AT18: 2016-11-21 | AU18: 2016-11-22 | AV18: 2016-11-23 | AW18: 2016-11-24 | AX18: 2016-11-25 | AY18: 2016-11-26 | AZ18: 2016-11-27 | BA18: 2016-11-28 | BB18: 2016-11-29 | BC18: 2016-11-30 | BD18: 2016-12-01 | BE18: 2016-12-02 | BF18: 2016-12-03 | BG18: 2016-12-04 | BH18: 2016-12-05 | BI18: 2016-12-06 | BJ18: 2016-12-07 | BK18: 2016-12-08 | BL18: 2016-12-09 | BM18: 2016-12-10 | BN18: 2016-12-11 | BO18: 2016-12-12 | BP18: 2016-12-13 | BQ18: 2016-12-14 | BR18: 2016-12-15 | BS18: 2016-12-16 | BT18: 2016-12-17 | BU18: 2016-12-18 | BV18: 2016-12-19 | BW18: 2016-12-20 | BX18: 2016-12-21 | BY18: 2016-12-22 | BZ18: 2016-12-23 | CA18: 2016-12-24 | CB18: 2016-12-25 | CC18: 2016-12-26 | CD18: 2016-12-27 | CE18: 2016-12-28 | CF18: 2016-12-29 | CG18: 2016-12-30 | CH18: 2016-12-31 | CI18: 2017-01-01 | CJ18: 2017-01-02 | CK18: 2017-01-03 | CL18: 2017-01-04 | CM18: 2017-01-05 | CN18: 2017-01-06 | CO18: 2017-01-07 | CP18: 2017-01-08 | CQ18: 2017-01-09 | CR18: 2017-01-10 | CS18: =CS9 -> 2017-01-11 | CT18: 2017-01-12 | CU18: 2017-01-13 | CV18: 2017-01-14 | CW18: 2017-01-15 | CX18: 2017-01-16 | CY18: 2017-01-17 | CZ18: 2017-01-18 | DA18: 2017-01-19 | DB18: 2017-01-20 | DC18: 2017-01-21 | DD18: 2017-01-22 | DE18: 2017-01-23 | DF18: 2017-01-24 | DG18: 2017-01-25 | DH18: 2017-01-26 | DI18: 2017-01-27 | DJ18: 2017-01-28 | DK18: 2017-01-29 | DL18: 2017-01-30 | DM18: 2017-01-31 | DN18: 2017-02-01 | DO18: 2017-02-02 | DP18: 2017-02-03 | DQ18: 2017-02-04 | DR18: 2017-02-05 | DS18: 2017-02-06 | DT18: 2017-02-07 | DU18: 2017-02-08 | DV18: 2017-02-09 | DW18: 2017-02-10 | DX18: 2017-02-11 | DY18: 2017-02-12 | DZ18: 2017-02-13 | EA18: 2017-02-14 | EB18: 2017-02-15 | EC18: 2017-02-16 | ED18: 2017-02-17 | EE18: 2017-02-18 | EF18: 2017-02-19 | EG18: 2017-02-20 | EH18: 2017-02-21 | EI18: 2017-02-22 | EJ18: 2017-02-23 | EK18: 2017-02-24 | EL18: 2017-02-25 | EM18: 2017-02-26 | EN18: 2017-02-27 | EO18: 2017-02-28 | EP18: 2017-03-01 | EQ18: 2017-03-02 | ER18: 2017-03-03 | ES18: 2017-03-04 | ET18: 2017-03-05 | EU18: 2017-03-06 | EV18: 2017-03-07 | EW18: 2017-03-08 | EX18: 2017-03-09 | EY18: 2017-03-10 | EZ18: 2017-03-11 | FA18: 2017-03-12 | FB18: 2017-03-13 | FC18: 2017-03-14 | FD18: 2017-03-15 | FE18: =FE9 -> 2017-03-16 | FF18: 2017-03-17 | FG18: 2017-03-18 | FH18: 2017-03-19 | FI18: 2017-03-20 | FJ18: 2017-03-21 | FK18: 2017-03-22 | FL18: 2017-03-23 | FM18: 2017-03-24 | FN18: 2017-03-25 | FO18: 2017-03-26 | FP18: 2017-03-27 | FQ18: 2017-03-28 | FR18: 2017-03-29 | FS18: 2017-03-30 | FT18: 2017-03-31 | FU18: 2017-04-01 | FV18: 2017-04-02 | FW18: 2017-04-03 | FX18: 2017-04-04 | FY18: 2017-04-05 | FZ18: 2017-04-06 | GA18: 2017-04-07 | GB18: 2017-04-08 | GC18: 2017-04-09 | GD18: 2017-04-10 | GE18: 2017-04-11 | GF18: 2017-04-12 | GG18: 2017-04-13 | GH18: 2017-04-14 | GI18: 2017-04-15 | GJ18: 2017-04-16 | GK18: 2017-04-17 | GL18: 2017-04-18 | GM18: 2017-04-19 | GN18: 2017-04-20 | GO18: 2017-04-21 | GP18: 2017-04-22 | GQ18: 2017-04-23 | GR18: 2017-04-24 | GS18: 2017-04-25 | GT18: 2017-04-26 | GU18: 2017-04-27 | GV18: 2017-04-28 | GW18: 2017-04-29 | GX18: 2017-04-30 | GY18: 2017-05-01 | GZ18: 2017-05-02 | HA18: 2017-05-03 | HB18: 2017-05-04 | HC18: 2017-05-05 | HD18: 2017-05-06 | HE18: 2017-05-07 | HF18: 2017-05-08 | HG18: 2017-05-09 | HH18: 2017-05-10 | HI18: 2017-05-11 | HJ18: 2017-05-12 | HK18: 2017-05-13 | HL18: 2017-05-14 | HM18: 2017-05-15 | HN18: 2017-05-16 | HO18: 2017-05-17 | HP18: 2017-05-18 | HQ18: =HQ9 -> 2017-05-19 | HR18: 2017-05-20 | HS18: 2017-05-21 | HT18: 2017-05-22 | HU18: 2017-05-23 | HV18: 2017-05-24 | HW18: 2017-05-25 | HX18: 2017-05-26 | HY18: 2017-05-27 | HZ18: 2017-05-28 | IA18: 2017-05-29 | IB18: 2017-05-30 | IC18: 2017-05-31 | ID18: 2017-06-01 | IE18: 2017-06-02 | IF18: 2017-06-03 | IG18: 2017-06-04 | IH18: 2017-06-05 | II18: 2017-06-06 | IJ18: 2017-06-07 | IK18: 2017-06-08 | IL18: 2017-06-09 | IM18: 2017-06-10 | IN18: 2017-06-11 | IO18: 2017-06-12 | IP18: 2017-06-13 | IQ18: 2017-06-14 | IR18: 2017-06-15 | IS18: 2017-06-16 | IT18: 2017-06-17 | IU18: 2017-06-18 | IV18: 2017-06-19 | IW18: 2017-06-20 | IX18: 2017-06-21 | IY18: 2017-06-22 | IZ18: 2017-06-23 | JA18: 2017-06-24 | JB18: 2017-06-25 | JC18: 2017-06-26 | JD18: 2017-06-27 | JE18: 2017-06-28 | JF18: 2017-06-29 | JG18: 2017-06-30 | JH18: 2017-07-01 | JI18: 2017-07-02 | JJ18: 2017-07-03 | JK18: 2017-07-04 | JL18: 2017-07-05 | JM18: 2017-07-06 | JN18: 2017-07-07 | JO18: 2017-07-08 | JP18: 2017-07-09 | JQ18: 2017-07-10 | JR18: 2017-07-11 | JS18: 2017-07-12 | JT18: 2017-07-13 | JU18: 2017-07-14 | JV18: 2017-07-15 | JW18: 2017-07-16 | JX18: 2017-07-17 | JY18: 2017-07-18 | JZ18: 2017-07-19 | KA18: 2017-07-20 | KB18: 2017-07-21 | KC18: =KC9 -> 2017-07-22 | KD18: 2017-07-23 | KE18: 2017-07-24 | KF18: 2017-07-25 | KG18: 2017-07-26 | KH18: 2017-07-27 | KI18: 2017-07-28 | KJ18: 2017-07-29 | KK18: 2017-07-30 | KL18: 2017-07-31 | KM18: 2017-08-01 | KN18: 2017-08-02 | KO18: 2017-08-03 | KP18: 2017-08-04 | KQ18: 2017-08-05 | KR18: 2017-08-06 | KS18: 2017-08-07 | KT18: 2017-08-08 | KU18: 2017-08-09 | KV18: 2017-08-10 | KW18: 2017-08-11 | KX18: 2017-08-12 | KY18: 2017-08-13 | KZ18: 2017-08-14 | LA18: 2017-08-15 | LB18: 2017-08-16 | LC18: 2017-08-17 | LD18: 2017-08-18 | LE18: 2017-08-19 | LF18: 2017-08-20 | LG18: 2017-08-21 | LH18: 2017-08-22 | LI18: 2017-08-23 | LJ18: 2017-08-24 | LK18: 2017-08-25 | LL18: 2017-08-26 | LM18: 2017-08-27 | LN18: 2017-08-28 | LO18: 2017-08-29 | LP18: 2017-08-30 | LQ18: 2017-08-31 | LR18: 2017-09-01 | LS18: 2017-09-02 | LT18: 2017-09-03 | LU18: 2017-09-04 | LV18: 2017-09-05 | LW18: 2017-09-06 | LX18: 2017-09-07 | LY18: 2017-09-08 | LZ18: 2017-09-09 | MA18: 2017-09-10 | MB18: 2017-09-11 | MC18: 2017-09-12 | MD18: 2017-09-13 | ME18: 2017-09-14 | MF18: 2017-09-15 | MG18: 2017-09-16 | MH18: 2017-09-17 | MI18: 2017-09-18 | MJ18: 2017-09-19 | MK18: 2017-09-20 | ML18: 2017-09-21 | MM18: 2017-09-22 | MN18: 2017-09-23 | MO18: =MO9 -> 2017-09-24 | MP18: 2017-09-25 | MQ18: 2017-09-26 | MR18: 2017-09-27 | MS18: 2017-09-28 | MT18: 2017-09-29 | MU18: 2017-09-30 | MV18: 2017-10-01 | MW18: 2017-10-02 | MX18: 2017-10-03 | MY18: 2017-10-04 | MZ18: 2017-10-05 | NA18: 2017-10-06 | NB18: 2017-10-07 | NC18: 2017-10-08 | ND18: 2017-10-09 | NE18: 2017-10-10 | NF18: 2017-10-11 | NG18: 2017-10-12 | NH18: 2017-10-13 | NI18: 2017-10-14 | NJ18: 2017-10-15 | NK18: 2017-10-16 | NL18: 2017-10-17 | NM18: 2017-10-18 | NN18: 2017-10-19 | NO18: 2017-10-20 | NP18: 2017-10-21 | NQ18: 2017-10-22 | NR18: 2017-10-23 | NS18: 2017-10-24 | NT18: 2017-10-25 | NU18: 2017-10-26 | NV18: 2017-10-27 | NW18: 2017-10-28 | NX18: 2017-10-29 | NY18: 2017-10-30 | NZ18: 2017-10-31 | OA18: 2017-11-01 | OB18: 2017-11-02 | OC18: 2017-11-03 | OD18: 2017-11-04 | OE18: 2017-11-05 | OF18: 2017-11-06 | OG18: 2017-11-07 | OH18: 2017-11-08 | OI18: 2017-11-09 | OJ18: 2017-11-10 | OK18: 2017-11-11 | OL18: 2017-11-12 | OM18: 2017-11-13 | ON18: 2017-11-14 | OO18: 2017-11-15 | OP18: 2017-11-16 | OQ18: 2017-11-17 | OR18: 2017-11-18 | OS18: 2017-11-19 | OT18: 2017-11-20 | OU18: 2017-11-21 | OV18: 2017-11-22 | OW18: 2017-11-23 | OX18: 2017-11-24 | OY18: 2017-11-25 | OZ18: 2017-11-26 | PA18: =PA9 -> 2017-11-27 | PB18: 2017-11-28 | PC18: 2017-11-29 | PD18: 2017-11-30 | PE18: 2017-12-01 | PF18: 2017-12-02 | PG18: 2017-12-03 | PH18: 2017-12-04 | PI18: 2017-12-05 | PJ18: 2017-12-06 | PK18: 2017-12-07 | PL18: 2017-12-08 | PM18: 2017-12-09 | PN18: 2017-12-10 | PO18: 2017-12-11 | PP18: 2017-12-12 | PQ18: 2017-12-13 | PR18: 2017-12-14 | PS18: 2017-12-15 | PT18: 2017-12-16 | PU18: 2017-12-17 | PV18: 2017-12-18 | PW18: 2017-12-19 | PX18: 2017-12-20 | PY18: 2017-12-21 | PZ18: 2017-12-22 | QA18: 2017-12-23 | QB18: 2017-12-24 | QC18: 2017-12-25 | QD18: 2017-12-26 | QE18: 2017-12-27 | QF18: 2017-12-28 | QG18: 2017-12-29 | QH18: 2017-12-30 | QI18: 2017-12-31 | QJ18: 2018-01-01 | QK18: 2018-01-02 | QL18: 2018-01-03 | QM18: 2018-01-04 | QN18: 2018-01-05 | QO18: 2018-01-06 | QP18: 2018-01-07 | QQ18: 2018-01-08 | QR18: 2018-01-09 | QS18: 2018-01-10 | QT18: 2018-01-11 | QU18: 2018-01-12 | QV18: 2018-01-13 | QW18: 2018-01-14 | QX18: 2018-01-15 | QY18: 2018-01-16 | QZ18: 2018-01-17 | RA18: 2018-01-18 | RB18: 2018-01-19 | RC18: 2018-01-20 | RD18: 2018-01-21 | RE18: 2018-01-22 | RF18: 2018-01-23 | RG18: 2018-01-24 | RH18: 2018-01-25 | RI18: 2018-01-26 | RJ18: 2018-01-27 | RK18: 2018-01-28 | RL18: 2018-01-29 | RM18: =RM9 -> 2018-01-30 | RN18: 2018-01-31 | RO18: 2018-02-01 | RP18: 2018-02-02 | RQ18: 2018-02-03 | RR18: 2018-02-04 | RS18: 2018-02-05 | RT18: 2018-02-06 | RU18: 2018-02-07 | RV18: 2018-02-08 | RW18: 2018-02-09 | RX18: 2018-02-10 | RY18: 2018-02-11 | RZ18: 2018-02-12 | SA18: 2018-02-13 | SB18: 2018-02-14 | SC18: 2018-02-15 | SD18: 2018-02-16 | SE18: 2018-02-17 | SF18: 2018-02-18 | SG18: 2018-02-19 | SH18: 2018-02-20 | SI18: 2018-02-21 | SJ18: 2018-02-22 | SK18: 2018-02-23 | SL18: 2018-02-24 | SM18: 2018-02-25 | SN18: 2018-02-26 | SO18: 2018-02-27 | SP18: 2018-02-28 | SQ18: 2018-03-01 | SR18: 2018-03-02 | SS18: 2018-03-03 | ST18: 2018-03-04 | SU18: 2018-03-05 | SV18: 2018-03-06 | SW18: 2018-03-07 | SX18: 2018-03-08 | SY18: 2018-03-09 | SZ18: 2018-03-10 | TA18: 2018-03-11 | TB18: 2018-03-12 | TC18: 2018-03-13 | TD18: 2018-03-14 | TE18: 2018-03-15 | TF18: 2018-03-16 | TG18: 2018-03-17 | TH18: 2018-03-18 | TI18: 2018-03-19 | TJ18: 2018-03-20 | TK18: 2018-03-21 | TL18: 2018-03-22 | TM18: 2018-03-23 | TN18: 2018-03-24 | TO18: 2018-03-25 | TP18: 2018-03-26 | TQ18: 2018-03-27 | TR18: 2018-03-28 | TS18: 2018-03-29 | TT18: 2018-03-30 | TU18: 2018-03-31 | TV18: 2018-04-01 | TW18: 2018-04-02 | TX18: 2018-04-03 | TY18: =TY9 -> 2018-04-04 | TZ18: 2018-04-05 | UA18: 2018-04-06 | UB18: 2018-04-07 | UC18: 2018-04-08 | UD18: 2018-04-09 | UE18: 2018-04-10 | UF18: 2018-04-11 | UG18: 2018-04-12 | UH18: 2018-04-13 | UI18: 2018-04-14 | UJ18: 2018-04-15 | UK18: 2018-04-16 | UL18: 2018-04-17 | UM18: 2018-04-18 | UN18: 2018-04-19 | UO18: 2018-04-20 | UP18: 2018-04-21 | UQ18: 2018-04-22 | UR18: 2018-04-23 | US18: 2018-04-24 | UT18: 2018-04-25 | UU18: 2018-04-26 | UV18: 2018-04-27 | UW18: 2018-04-28 | UX18: 2018-04-29 | UY18: 2018-04-30 | UZ18: 2018-05-01 | VA18: 2018-05-02 | VB18: 2018-05-03 | VC18: 2018-05-04 | VD18: 2018-05-05 | VE18: 2018-05-06 | VF18: 2018-05-07
K19: 0 | M19: Nouvelle tâche | R19: =MIN(W20:W21) -> 2016-11-09 | S19: =V19-R19+1 -> 8 | V19: =MAX(X20:X21) -> 2016-11-16 | Y19: =SUMPRODUCT(X20:X21,Y20:Y21)/SUM(X20:X21) -> 0.7499970719 | Z19: =R19-1+Y19*S19 -> 2016-11-13T23:59:57.976 | AA19: =IF(Y19<>"",IF(AND(Y19<1,Z19<HideValues!$D$3),0,1)) -> 0 | AB19: =SUM(AB20:AB21) -> 200 | AC19: =SUM(AC20:AC21) -> 10 | AD19: =IF(AND(AB19<>"",AC19<>"",AB19<>0),AC19/AB19,"") -> 0.05 | AE19: =AD19 -> 0.05
K20: 0.1 | M20: Nouvelle sous-tâche | Q20: Mary | R20: 2016-11-09 | S20: 5 | T20: =WORKDAY(R20,IF(S20>0,IF(OR(WEEKDAY(R20,2)>=6,COUNTIF(Tools!$B$10:$B$57,R20)>0),S20,S20-1),IF(OR(WEEKDAY(R20,2)>=6,COUNTIF(Tools!$B$10:$B$57,R20)>0),S20,S20+1)),Tools!$B$10:$B$57) -> 2016-11-15 | U20: =IF(S20>0,R20+S20-1,R20+S20+1) -> 2016-11-13 | V20: =IF(R20<>"",IF(HideValues!$B$48,T20,U20),"") -> 2016-11-15 | W20: =IF(S20>0,R20,V20) -> 2016-11-09 | X20: =IF(S20>0,V20,R20) -> 2016-11-15 | Y20: 1 | Z20: =INT(W20+Y20*(X20-W20)) -> 2016-11-15 | AA20: =IF(AND(Y20<1,Z20<HideValues!$D$3),0,1) -> 1 | AB20: 100 | AC20: 5 | AD20: =IF(AND(AB20<>"",AC20<>""),AC20/AB20,"") -> 0.05 | AE20: =AD20 -> 0.05
K21: 0.2 | M21: Nouvelle sous-tâche | Q21: Jade | R21: =$V20+1 -> 2016-11-16 | S21: -4 | T21: =WORKDAY(R21,IF(S21>0,IF(OR(WEEKDAY(R21,2)>=6,COUNTIF(Tools!$B$10:$B$57,R21)>0),S21,S21-1),IF(OR(WEEKDAY(R21,2)>=6,COUNTIF(Tools!$B$10:$B$57,R21)>0),S21,S21+1)),Tools!$B$10:$B$57) -> 2016-11-11 | U21: =IF(S21>0,R21+S21-1,R21+S21+1) -> 2016-11-13 | V21: =IF(R21<>"",IF(HideValues!$B$48,T21,U21),"") -> 2016-11-11 | W21: =IF(S21>0,R21,V21) -> 2016-11-11 | X21: =IF(S21>0,V21,R21) -> 2016-11-16 | Y21: 0.5 | Z21: =INT(W21+Y21*(X21-W21)) -> 2016-11-13 | AA21: =IF(AND(Y21<1,Z21<HideValues!$D$3),0,1) -> 0 | AB21: 100 | AC21: 5 | AD21: 0.05 | AE21: =AD21 -> 0.05
K22: 1 | M22: Tâche | R22: =MIN(W23:W34) -> 2016-11-09 | S22: =V22-R22+1 -> 22 | V22: =MAX(X23:X34) -> 2016-11-30 | Y22: =SUMPRODUCT(X23:X34,Y23:Y34)/SUM(X23:X34) -> 0.1249770666 | Z22: =R22-1+Y22*S22 -> 2016-11-10T17:59:16.408 | AA22: =IF(Y22<>"",IF(AND(Y22<1,Z22<HideValues!$D$3),0,1)) -> 0 | AB22: =SUM(AB23:AB34) -> 12742 | AC22: =SUM(AC23:AC34) -> 9756.74 | AD22: =IF(AND(AB22<>"",AC22<>"",AB22<>0),AC22/AB22,"") -> 0.7657149584 | AE22: =AD22 -> 0.7657149584
K23: 1.1 | L23: 1 | M23: Sous-tâche | Q23: Mary | R23: 2016-11-09 | S23: 4 | T23: =WORKDAY(R23,IF(S23>0,IF(OR(WEEKDAY(R23,2)>=6,COUNTIF(Tools!$B$10:$B$57,R23)>0),S23,S23-1),IF(OR(WEEKDAY(R23,2)>=6,COUNTIF(Tools!$B$10:$B$57,R23)>0),S23,S23+1)),Tools!$B$10:$B$57) -> 2016-11-14 | U23: =IF(S23>0,R23+S23-1,R23+S23+1) -> 2016-11-12 | V23: =IF(R23<>"",IF(HideValues!$B$48,T23,U23),"") -> 2016-11-14 | W23: =IF(S23>0,R23,V23) -> 2016-11-09 | X23: =IF(S23>0,V23,R23) -> 2016-11-14 | Y23: 1 | Z23: =INT(W23+Y23*(X23-W23)) -> 2016-11-14 | AA23: =IF(AND(Y23<1,Z23<HideValues!$D$3),0,1) -> 1 | AB23: 7536 | AC23: 7309.92 | AD23: =IF(AND(AB23<>"",AC23<>""),AC23/AB23,"") -> 0.97 | AE23: =AD23 -> 0.97
K24: 1.2 | L24: 3 | M24: Sous-tâche | Q24: Jade | R24: =$V23+1 -> 2016-11-15 | S24: -4 | T24: =WORKDAY(R24,IF(S24>0,IF(OR(WEEKDAY(R24,2)>=6,COUNTIF(Tools!$B$10:$B$57,R24)>0),S24,S24-1),IF(OR(WEEKDAY(R24,2)>=6,COUNTIF(Tools!$B$10:$B$57,R24)>0),S24,S24+1)),Tools!$B$10:$B$57) -> 2016-11-10 | U24: =IF(S24>0,R24+S24-1,R24+S24+1) -> 2016-11-12 | V24: =IF(R24<>"",IF(HideValues!$B$48,T24,U24),"") -> 2016-11-10 | W24: =IF(S24>0,R24,V24) -> 2016-11-10 | X24: =IF(S24>0,V24,R24) -> 2016-11-15 | Y24: 0.5 | Z24: =INT(W24+Y24*(X24-W24)) -> 2016-11-12 | AA24: =IF(AND(Y24<1,Z24<HideValues!$D$3),0,1) -> 0 | AB24: 5206 | AC24: 2446.82 | AD24: 0.47 | AE24: =AD24 -> 0.47
K25: 1.3 | L25: 2 | M25: Sous-tâche | Q25: Reda | R25: =$V24+1 -> 2016-11-11 | S25: 3 | T25: =WORKDAY(R25,IF(S25>0,IF(OR(WEEKDAY(R25,2)>=6,COUNTIF(Tools!$B$10:$B$57,R25)>0),S25,S25-1),IF(OR(WEEKDAY(R25,2)>=6,COUNTIF(Tools!$B$10:$B$57,R25)>0),S25,S25+1)),Tools!$B$10:$B$57) -> 2016-11-15 | U25: 2016-11-13 | V25: =IF(R25<>"",IF(HideValues!$B$48,T25,U25),"") -> 2016-11-15 | W25: 2016-11-11 | X25: 2016-11-15 | Z25: 2016-11-11 | AA25: =IF(AND(Y25<1,Z25<HideValues!$D$3),0,1) -> 0 | AE25: 0
K26: 1.4 | L26: 1 | M26: Sous-tâche | Q26: Reda | R26: =R25+7 -> 2016-11-18 | S26: 2 | T26: =WORKDAY(R26,IF(S26>0,IF(OR(WEEKDAY(R26,2)>=6,COUNTIF(Tools!$B$10:$B$57,R26)>0),S26,S26-1),IF(OR(WEEKDAY(R26,2)>=6,COUNTIF(Tools!$B$10:$B$57,R26)>0),S26,S26+1)),Tools!$B$10:$B$57) -> 2016-11-21 | U26: 2016-11-19 | V26: =IF(R26<>"",IF(HideValues!$B$48,T26,U26),"") -> 2016-11-21 | W26: 2016-11-18 | X26: 2016-11-21 | Z26: 2016-11-18 | AA26: =IF(AND(Y26<1,Z26<HideValues!$D$3),0,1) -> 1 | AE26: 0
K27: 1.5 | L27: 2 | M27: Sous-tâche | Q27: Reda | R27: =R26+7 -> 2016-11-25 | S27: 1 | T27: =WORKDAY(R27,IF(S27>0,IF(OR(WEEKDAY(R27,2)>=6,COUNTIF(Tools!$B$10:$B$57,R27)>0),S27,S27-1),IF(OR(WEEKDAY(R27,2)>=6,COUNTIF(Tools!$B$10:$B$57,R27)>0),S27,S27+1)),Tools!$B$10:$B$57) -> 2016-11-25 | U27: 2016-11-25 | V27: =IF(R27<>"",IF(HideValues!$B$48,T27,U27),"") -> 2016-11-25 | W27: 2016-11-25 | X27: 2016-11-25 | Z27: 2016-11-25 | AA27: =IF(AND(Y27<1,Z27<HideValues!$D$3),0,1) -> 1 | AE27: =AD27 -> 0
K28: 1.6 | M28: Sous-tâche | Q28: Mike | R28: =V24 -> 2016-11-10 | S28: 4 | T28: =WORKDAY(R28,IF(S28>0,IF(OR(WEEKDAY(R28,2)>=6,COUNTIF(Tools!$B$10:$B$57,R28)>0),S28,S28-1),IF(OR(WEEKDAY(R28,2)>=6,COUNTIF(Tools!$B$10:$B$57,R28)>0),S28,S28+1)),Tools!$B$10:$B$57) -> 2016-11-15 | U28: 2016-11-13 | V28: =IF(R28<>"",IF(HideValues!$B$48,T28,U28),"") -> 2016-11-15 | W28: 2016-11-10 | X28: 2016-11-15 | Z28: 2016-11-10 | AA28: =IF(AND(Y28<1,Z28<HideValues!$D$3),0,1) -> 0 | AE28: =AD28 -> 0
K29: 1.7 | M29: Sous-tâche | Q29: Sara | R29: 2016-11-20 | S29: 5 | T29: =WORKDAY(R29,IF(S29>0,IF(OR(WEEKDAY(R29,2)>=6,COUNTIF(Tools!$B$10:$B$57,R29)>0),S29,S29-1),IF(OR(WEEKDAY(R29,2)>=6,COUNTIF(Tools!$B$10:$B$57,R29)>0),S29,S29+1)),Tools!$B$10:$B$57) -> 2016-11-25 | U29: 2016-11-24 | V29: =IF(R29<>"",IF(HideValues!$B$48,T29,U29),"") -> 2016-11-25 | W29: 2016-11-20 | X29: 2016-11-25 | Z29: 2016-11-20 | AA29: =IF(AND(Y29<1,Z29<HideValues!$D$3),0,1) -> 1 | AE29: =AD29 -> 0
K30: 1.8 | L30: 1 | M30: Sous-tâche | Q30: Sara | R30: 2016-11-22 | S30: 5 | T30: =WORKDAY(R30,IF(S30>0,IF(OR(WEEKDAY(R30,2)>=6,COUNTIF(Tools!$B$10:$B$57,R30)>0),S30,S30-1),IF(OR(WEEKDAY(R30,2)>=6,COUNTIF(Tools!$B$10:$B$57,R30)>0),S30,S30+1)),Tools!$B$10:$B$57) -> 2016-11-28 | U30: 2016-11-26 | V30: =IF(R30<>"",IF(HideValues!$B$48,T30,U30),"") -> 2016-11-28 | W30: 2016-11-22 | X30: 2016-11-28 | Z30: 2016-11-22 | AA30: =IF(AND(Y30<1,Z30<HideValues!$D$3),0,1) -> 1 | AE30: 0
K31: 1.9 | M31: Sous-tâche | Q31: Sara | R31: 2016-11-20 | S31: 5 | T31: =WORKDAY(R31,IF(S31>0,IF(OR(WEEKDAY(R31,2)>=6,COUNTIF(Tools!$B$10:$B$57,R31)>0),S31,S31-1),IF(OR(WEEKDAY(R31,2)>=6,COUNTIF(Tools!$B$10:$B$57,R31)>0),S31,S31+1)),Tools!$B$10:$B$57) -> 2016-11-25 | U31: 2016-11-24 | V31: =IF(R31<>"",IF(HideValues!$B$48,T31,U31),"") -> 2016-11-25 | W31: 2016-11-20 | X31: 2016-11-25 | Z31: 2016-11-20 | AA31: =IF(AND(Y31<1,Z31<HideValues!$D$3),0,1) -> 1 | AE31: =AD31 -> 0
K32: 1.10 | M32: Sous-tâche | Q32: Mike | R32: 2016-11-23 | S32: 3 | T32: =WORKDAY(R32,IF(S32>0,IF(OR(WEEKDAY(R32,2)>=6,COUNTIF(Tools!$B$10:$B$57,R32)>0),S32,S32-1),IF(OR(WEEKDAY(R32,2)>=6,COUNTIF(Tools!$B$10:$B$57,R32)>0),S32,S32+1)),Tools!$B$10:$B$57) -> 2016-11-25 | U32: 2016-11-25 | V32: =IF(R32<>"",IF(HideValues!$B$48,T32,U32),"") -> 2016-11-25 | W32: 2016-11-23 | X32: 2016-11-25 | Z32: 2016-11-23 | AA32: =IF(AND(Y32<1,Z32<HideValues!$D$3),0,1) -> 1 | AE32: 0
K33: 1.11 | M33: Sous-tâche | Q33: Mike | R33: =V32+1 -> 2016-11-26 | S33: 1 | T33: =WORKDAY(R33,IF(S33>0,IF(OR(WEEKDAY(R33,2)>=6,COUNTIF(Tools!$B$10:$B$57,R33)>0),S33,S33-1),IF(OR(WEEKDAY(R33,2)>=6,COUNTIF(Tools!$B$10:$B$57,R33)>0),S33,S33+1)),Tools!$B$10:$B$57) -> 2016-11-28 | U33: 2016-11-26 | V33: =IF(R33<>"",IF(HideValues!$B$48,T33,U33),"") -> 2016-11-28 | W33: 2016-11-26 | X33: 2016-11-28 | Z33: 2016-11-26 | AA33: =IF(AND(Y33<1,Z33<HideValues!$D$3),0,1) -> 1 | AE33: =AD33 -> 0
K34: 1.12 | M34: Sous-tâche | Q34: Reda | R34: =V33+1 -> 2016-11-29 | S34: 2 | T34: =WORKDAY(R34,IF(S34>0,IF(OR(WEEKDAY(R34,2)>=6,COUNTIF(Tools!$B$10:$B$57,R34)>0),S34,S34-1),IF(OR(WEEKDAY(R34,2)>=6,COUNTIF(Tools!$B$10:$B$57,R34)>0),S34,S34+1)),Tools!$B$10:$B$57) -> 2016-11-30 | U34: 2016-11-30 | V34: =IF(R34<>"",IF(HideValues!$B$48,T34,U34),"") -> 2016-11-30 | W34: 2016-11-29 | X34: 2016-11-30 | Z34: 2016-11-29 | AA34: =IF(AND(Y34<1,Z34<HideValues!$D$3),0,1) -> 1 | AE34: =AD34 -> 0
K35: 2 | M35: Tâche | R35: =MIN(W36:W38) -> 2016-11-25 | S35: =V35-R35+1 -> 7 | V35: =MAX(X36:X38) -> 2016-12-01 | Y35: =SUMPRODUCT(X36:X38,Y36:Y38)/SUM(X36:X38) -> 0.6666354418 | Z35: =R35+Y35*(S35-1) -> 2016-11-28T23:59:43.813 | AA35: =IF(Y35<>"",IF(AND(Y35<1,Z35<HideValues!$D$3),0,1)) -> 1 | AB35: =SUM(AB36:AB38) -> 10412 | AC35: =SUM(AC36:AC38) -> 7446.82 | AD35: =IF(AND(AB35<>"",AC35<>"",AB35<>0),AC35/AB35,"") -> 0.7152151364 | AE35: =AD35 -> 0.7152151364
K36: 2.1 | M36: Sous-tâche | Q36: Leo | R36: 2016-11-25 | S36: 1 | T36: =WORKDAY(R36,IF(S36>0,IF(OR(WEEKDAY(R36,2)>=6,COUNTIF(Tools!$B$10:$B$57,R36)>0),S36,S36-1),IF(OR(WEEKDAY(R36,2)>=6,COUNTIF(Tools!$B$10:$B$57,R36)>0),S36,S36+1)),Tools!$B$10:$B$57) -> 2016-11-25 | U36: =IF(S36>0,R36+S36-1,R36+S36+1) -> 2016-11-25 | V36: =IF(R36<>"",IF(HideValues!$B$48,T36,U36),"") -> 2016-11-25 | W36: =IF(S36>0,R36,V36) -> 2016-11-25 | X36: =IF(S36>0,V36,R36) -> 2016-11-25 | Y36: 1 | Z36: =INT(R36+Y36*(V36-R36)) -> 2016-11-25 | AA36: =IF(AND(Y36<1,Z36<HideValues!$D$3),0,1) -> 1 | AB36: 5206 | AC36: 5000 | AD36: =IF(AND(AB36<>"",AC36<>""),AC36/AB36,"") -> 0.9604302728 | AE36: =AD36 -> 0.9604302728
K37: 2.2 | L37: 1 | M37: Sous-tâche | Q37: Jade | R37: 2016-11-25 | S37: 1 | T37: =WORKDAY(R37,IF(S37>0,IF(OR(WEEKDAY(R37,2)>=6,COUNTIF(Tools!$B$10:$B$57,R37)>0),S37,S37-1),IF(OR(WEEKDAY(R37,2)>=6,COUNTIF(Tools!$B$10:$B$57,R37)>0),S37,S37+1)),Tools!$B$10:$B$57) -> 2016-11-25 | U37: =IF(S37>0,R37+S37-1,R37+S37+1) -> 2016-11-25 | V37: =IF(R37<>"",IF(HideValues!$B$48,T37,U37),"") -> 2016-11-25 | W37: =IF(S37>0,R37,V37) -> 2016-11-25 | X37: =IF(S37>0,V37,R37) -> 2016-11-25 | Y37: 1 | Z37: =INT(W37+Y37*(X37-W37)) -> 2016-11-25 | AA37: =IF(AND(Y37<1,Z37<HideValues!$D$3),0,1) -> 1 | AB37: 5206 | AC37: 2446.82 | AD37: =IF(AND(AB37<>"",AC37<>""),AC37/AB37,"") -> 0.47 | AE37: =AD37 -> 0.47
K38: 2.3 | M38: Sous-tâche | Q38: Jade | R38: 2016-11-25 | S38: 5 | T38: =WORKDAY(R38,IF(S38>0,IF(OR(WEEKDAY(R38,2)>=6,COUNTIF(Tools!$B$10:$B$57,R38)>0),S38,S38-1),IF(OR(WEEKDAY(R38,2)>=6,COUNTIF(Tools!$B$10:$B$57,R38)>0),S38,S38+1)),Tools!$B$10:$B$57) -> 2016-12-01 | U38: 2016-11-29 | V38: =IF(R38<>"",IF(HideValues!$B$48,T38,U38),"") -> 2016-12-01 | W38: 2016-11-25 | X38: 2016-12-01 | Z38: =INT(R38+Y38*(V38-R38)) -> 2016-11-25 | AA38: =IF(AND(Y38<1,Z38<HideValues!$D$3),0,1) -> 1 | AE38: =AD38 -> 0
K39: 3 | M39: Tâche | R39: =MIN(W40:W41) -> 2016-11-09 | S39: =V39-R39+1 -> 7 | V39: =MAX(X40:X41) -> 2016-11-15 | Y39: =SUMPRODUCT(X40:X41,Y40:Y41)/SUM(X40:X41) -> 1 | Z39: =R39-1+Y39*S39 -> 2016-11-15 | AA39: =IF(Y39<>"",IF(AND(Y39<1,Z39<HideValues!$D$3),0,1)) -> 1 | AB39: =SUM(AB40:AB41) -> 200 | AC39: =SUM(AC40:AC41) -> 10 | AD39: =IF(AND(AB39<>"",AC39<>"",AB39<>0),AC39/AB39,"") -> 0.05 | AE39: 0.05
K40: 3.1 | M40: Sous-tâche | Q40: Mary | R40: 2016-11-09 | S40: 5 | T40: =WORKDAY(R40,IF(S40>0,IF(OR(WEEKDAY(R40,2)>=6,COUNTIF(Tools!$B$10:$B$57,R40)>0),S40,S40-1),IF(OR(WEEKDAY(R40,2)>=6,COUNTIF(Tools!$B$10:$B$57,R40)>0),S40,S40+1)),Tools!$B$10:$B$57) -> 2016-11-15 | U40: =IF(S40>0,R40+S40-1,R40+S40+1) -> 2016-11-13 | V40: =IF(R40<>"",IF(HideValues!$B$48,T40,U40),"") -> 2016-11-15 | W40: =IF(S40>0,R40,V40) -> 2016-11-09 | X40: =IF(S40>0,V40,R40) -> 2016-11-15 | Y40: 1 | Z40: =INT(W40+Y40*(X40-W40)) -> 2016-11-15 | AA40: =IF(AND(Y40<1,Z40<HideValues!$D$3),0,1) -> 1 | AB40: 100 | AC40: 5 | AD40: =IF(AND(AB40<>"",AC40<>""),AC40/AB40,"") -> 0.05 | AE40: 0.05
K41: 3.2 | M41: Sous-tâche | Q41: Mary | R41: 2016-11-09 | S41: 5 | T41: =WORKDAY(R41,IF(S41>0,IF(OR(WEEKDAY(R41,2)>=6,COUNTIF(Tools!$B$10:$B$57,R41)>0),S41,S41-1),IF(OR(WEEKDAY(R41,2)>=6,COUNTIF(Tools!$B$10:$B$57,R41)>0),S41,S41+1)),Tools!$B$10:$B$57) -> 2016-11-15 | U41: 2016-11-13 | V41: =IF(R41<>"",IF(HideValues!$B$48,T41,U41),"") -> 2016-11-15 | W41: 2016-11-09 | X41: 2016-11-15 | Y41: 1 | Z41: 2016-11-15 | AA41: =IF(AND(Y41<1,Z41<HideValues!$D$3),0,1) -> 1 | AB41: 100 | AC41: 5 | AD41: 0.05 | AE41: 0.05

Sheet Tools (hidden)
B9: Jours de congé | D9: Equipe projet
B10: 2014-01-01 | D10: Diminutif | E10: Nom complet | F10: Entreprise | G10: Division | H10: Email | I10: Téléphone
B11: 2014-05-01 | D11: Gibs | E11: Gibs Solar | F11: ABC Company | G11: Project Leader | H11: gibs.solar@abc.com | I11: 05-777-4556
B12: 2014-12-25 | D12: Sara | E12: Sara Donaldson | F12: ABC Company | G12: Purchasing | H12: sara.donaldson@abc.com | I12: 05-777-8904
D13: Mary | E13: Mary Nichols | F13: ABC Company | G13: PE | H13: mary.nichols@abc.com | I13: 05-777-4905
D14: Jade | E14: Jade Rendal | F14: ABC Company | G14: QC | H14: jade.rendal@abc.com | I14: 05-777-3489
D15: Reda | E15: Reda Achraf | F15: ABC Company | G15: Marketing | H15: reda.achraf@abc.com | I15: 05-777-3456
D16: Mike | E16: Mike Ibra | F16: ABC Company | G16: A&F | H16: mike.ibra@abc.com | I16: 05-777-2354
D17: Tony | E17: Tony Barlen | F17: ABC Company | G17: R&D | H17: tony.barlen@abc.com | I17: 05-777-3453
D18: Leo | E18: Leo Zadna | F18: Supplier XYZ | G18: Manufacturing | H18: leo.zadna@xyz.com | I18: 09-333-6533

Sheet TranslationTable (hidden)
A1: Translation Table
A3: Language Table
A4: English | B4: 9
A5: French | B5: 10
A6: Spanish | B6: 11
A7: German | B7: 12
A15: Current Language | B15: 10
A18: Translation Table | K18: Corrected
A19: Category | B19: Object Type | C19: Object Name | D19: Sheet | E19: Cell Row | F19: Cell Column | G19: Currently Displayed | H19: (Free for new language) | I19: English | J19: French | K19: Spanish | L19: German
A20: Left Panel | B20: Text Box | C20: left_panel_1 | D20: Gantt | I20: Starting Date | J20: Date de départ | K20: Fecha de inicio | L20: Starttag
A21: Left Panel | B21: Text Box | C21: left_panel_2 | D21: Gantt | I21: Select the starting date of the gantt chart | J21: Veuillez choisir la date à laquelle le diagramme doit démarrer | K21: Seleccione la fecha de inicio del diagrama de Gantt | L21: Wählen Sie die Startzeit der Gantt-Diagramm
A22: Left Panel | B22: Text Box | C22: left_panel_3 | D22: Gantt | I22: Today | J22: Aujourd'hui | K22: Hoy | L22: Heutzutage
A23: Left Panel | B23: Text Box | C23: left_panel_4 | D23: Gantt | I23: Auto | J23: Automatique | K23: Automático | L23: Automatisch
A24: Left Panel | B24: Text Box | C24: left_panel_5 | D24: Gantt | I24: Bookmark | J24: Marque-page | K24: Marcador | L24: Lesezeichen
A25: Left Panel | B25: Text Box | C25: left_panel_6 | D25: Gantt | I25: Select the date that will be shown with a red line in the gantt chart | J25: Veuillez choisir la date du marque-page | K25: Seleccione la fecha que se mostrará con una línea roja en el gráfico | L25: Wählen Sie das Datum das wird mit einer roten Linie angezeigt werden
A26: Left Panel | B26: Text Box | C26: left_panel_7 | D26: Gantt | I26: Working Days | J26: Jours ouvrés | K26: Días hábiles | L26: Arbeitstage
A27: Left Panel | B27: Text Box | C27: left_panel_8 | D27: Gantt | I27: Select the working days that apply for your project | J27: Veuillez choisir les jours ouvrés qui s'appliquent à votre projet | K27: Seleccione los días hábiles que aplican para su proyecto | L27: Wählen Sie die Arbeitstage, die für Ihr Projekt anwenden
A28: Left Panel | B28: Text Box | C28: left_panel_9 | D28: Gantt | I28: Week Symbol | J28: Préfixe des semaines | K28: Símbolo de semana | L28: Woche Symbol
A29: Left Panel | B29: Text Box | C29: left_panel_10 | D29: Gantt | I29: Select how to display week numbers | J29: Veuillez choisir le préfixe utilisé pour les numéros de semaines | K29: Seleccione la presentación de números de la semana | L29: Wählen Sie, wie Sie Wochennummern anzeigen
A30: Left Panel | B30: Text Box | C30: left_panel_11 | D30: Gantt | I30: Optional | J30: Optionnel | K30: Opcional | L30: Optional
A31: Left Panel | B31: Text Box | C31: left_panel_14 | D31: Gantt | I31: Show Flag | J31: Afficher les drapeaux | K31: Mostrar marcas | L31: Flagge anzeigen
A32: Left Panel | B32: Text Box | C32: left_panel_15 | D32: Gantt | I32: Show Comments | J32: Afficher les commentaires | K32: Mostrar comentarios | L32: Kommentare anzeigen
A33: Left Panel | B33: Text Box | C33: left_panel_16 | D33: Gantt | I33: Reminder to enable macros at start-up | J33: Rappel à l'ouverture pour activer les macros | K33: Recordatorio para habilitar las macros al comenzar | L33: Erinnerung für Makros aktivieren
A34: Left Panel | B34: Text Box | C34: left_panel_17 | D34: Gantt | I34: Weekend days: | J34: Jours de week-end: | K34: Días de fin de semana: | L34: Tage Wochenende:
A35: Left Panel | B35: Text Box | C35: left_panel_18 | D35: Gantt | I35: First day of the week: | J35: Premier jour de semaine: | K35: Primer día de la semana: | L35: Erster Tag der Woche:
A36: Left Panel | B36: Text Box | C36: popup-help-title | D36: Gantt | I36: How to fill the start date ? | J36: Saisir la date de début | K36: ¿Cómo llenar las fechas de inicio? | L36: =I36 -> How to fill the start date ?
A37: Left Panel | B37: Text Box | C37: popup-help-core | D37: Gantt | I37: From the drop-down menu, you can select "After Previous" to start your task just after the previous one or "With Previous" to start your task at the same date as the previous one. If you wish to input manually any specific date, just type it in the cell. | J37: A partir du menu déroulant, vous pouvez choisir "Après précédent" pour commencer la tâche dès que la tâche précédente est terminée ou "Avec précédent" pour la faire débuter en même temps. Si vous souhaitez introduire manuellement une autre date, il suffit de la saisir dans la cellule. | K37: En el menú desplegable, puede seleccionar "Después de la anterior" para iniciar su tarea justo después de la anterior o "Con la anterior" "para iniciar su tarea en el mismo momento de la anterior. Si desea introducir manualmente una fecha específica, ingrésela en la celda. | L37: =I37 -> From the drop-down menu, you can select "After Previous" to start your task just after the previous one or "With Previous" to start your task at the same date as the previous one. If you wish to input manually any specific date, just type it in the cell.
A38: Left Panel | B38: Text Box | C38: popup-help-link | D38: Gantt | I38: For more details, visit our online support page. | J38: Pour plus d'aide, visitez notre page de support. | K38: Para más detalles, visite nuestra página de soporte en línea. | L38: For more details, visit our online support page.
A39: Left Panel | B39: Hyperlink | C39: popup-help-link | D39: Gantt | I39: =I180 -> https://gestionprojetauto.wordpress.com/support-excel-gantt-chart-maker | J39: =$J$180 -> https://gestionprojetauto.wordpress.com/support-diagramme-de-gantt | K39: =I39 -> https://gestionprojetauto.wordpress.com/support-excel-gantt-chart-maker | L39: =I39 -> https://gestionprojetauto.wordpress.com/support-excel-gantt-chart-maker
A40: Gantt Chart Titles | B40: Cell | D40: Gantt | E40: =ROW(Gantt!$Q$17) -> 17 | F40: =COLUMN(Gantt!$Q$17) -> 17 | I40: Schedule | J40: Planning | K40: Horario | L40: Zeitplan
A41: Gantt Chart Titles | B41: Cell | D41: Gantt | E41: =ROW(Gantt!$Q$18) -> 18 | F41: =COLUMN(Gantt!$Q$18) -> 17 | I41: Leader | J41: Resp. | K41: Líder | L41: Betreuer
A42: Gantt Chart Titles | B42: Cell | D42: Gantt | E42: =ROW(Gantt!$R$18) -> 18 | F42: =COLUMN(Gantt!$R$18) -> 18 | I42: Start | J42: Début | K42: Comienzo | L42: Starttag
A43: Gantt Chart Titles | B43: Cell | D43: Gantt | E43: =ROW(Gantt!$S$18) -> 18 | F43: =COLUMN(Gantt!$S$18) -> 19 | I43: Duration | J43: Durée | K43: Duración | L43: Dauer
A44: Gantt Chart Titles | B44: Cell | D44: Gantt | E44: =ROW(Gantt!$T$18) -> 18 | F44: =COLUMN(Gantt!$T$18) -> 20 | I44: W.Day | J44: Jours ouvrés | K44: Los días hábiles | L44: W.Day
A45: Gantt Chart Titles | B45: Cell | D45: Gantt | E45: =ROW(Gantt!$U$18) -> 18 | F45: =COLUMN(Gantt!$U$18) -> 21 | I45: All.Days | J45: Normal | K45: Todos los Días | L45: All.Days
A46: Gantt Chart Titles | B46: Cell | D46: Gantt | E46: =ROW(Gantt!$V$18) -> 18 | F46: =COLUMN(Gantt!$V$18) -> 22 | I46: Due | J46: Échéance | K46: Terminación | L46: Fällig am
A47: Gantt Chart Titles | B47: Cell | D47: Gantt | E47: =ROW(Gantt!$Y$18) -> 18 | F47: =COLUMN(Gantt!$Y$18) -> 25 | I47: Progress | J47: Statut | K47: Estado | L47: Status
A48: Gantt Chart Titles | B48: Cell | D48: Gantt | E48: =ROW(Gantt!$AB$17) -> 17 | F48: =COLUMN(Gantt!$AB$17) -> 28 | I48: Budget | J48: Budget | K48: Presupuesto | L48: Budget
A49: Gantt Chart Titles | B49: Cell | D49: Gantt | E49: =ROW(Gantt!$AB$18) -> 18 | F49: =COLUMN(Gantt!$AB$18) -> 28 | I49: Plan | J49: Estim. | K49: Estimado | L49: Schätzung
A50: Gantt Chart Titles | B50: Cell | D50: Gantt | E50: =ROW(Gantt!$AC$18) -> 18 | F50: =COLUMN(Gantt!$AC$18) -> 29 | I50: Actual | J50: Réel | K50: Real | L50: Tatsächlichen
A51: Gantt Chart Titles | B51: Cell | D51: Gantt | E51: =ROW(Gantt!$AD$18) -> 18 | F51: =COLUMN(Gantt!$AD$18) -> 30 | I51: % | J51: % | K51: % | L51: %
A52: Gantt Chart Titles | B52: Cell | D52: Gantt | E52: =ROW(Gantt!$AF$17) -> 17 | F52: =COLUMN(Gantt!$AF$17) -> 32 | I52: Comments | J52: Commentaires | K52: Comentarios | L52: Kommentare
A53: Gantt Chart Titles | B53: Cell | D53: Gantt | E53: =ROW(Gantt!$WF$18) -> 18 | F53: =COLUMN(Gantt!$W$18) -> 23 | I53: Recalculated start | J53: Début Recalculé | K53: Recalculated start | L53: Recalculated start
A54: Gantt Chart Titles | B54: Cell | D54: Gantt | E54: =ROW(Gantt!$X$18) -> 18 | F54: =COLUMN(Gantt!$X$18) -> 24 | I54: Recalculated end | J54: Fin Recalculée | K54: Recalculated end | L54: Recalculated end
A55: Gantt Chart Titles (monthly view) | B55: Cell | D55: Gantt | E55: 15 | F55: =COLUMN(Gantt!$Q$18) -> 17 | I55: =I41 -> Leader | J55: =J41 -> Resp. | K55: =K41 -> Líder | L55: =L41 -> Betreuer
A56: Gantt Chart Titles (monthly view) | B56: Cell | D56: Gantt | E56: 15 | F56: =COLUMN(Gantt!$R$18) -> 18 | I56: =I42 -> Start | J56: =J42 -> Début | K56: =K42 -> Comienzo | L56: =L42 -> Starttag
A57: Gantt Chart Titles (monthly view) | B57: Cell | D57: Gantt | E57: 15 | F57: =COLUMN(Gantt!$S$18) -> 19 | I57: =I43 -> Duration | J57: =J43 -> Durée | K57: =K43 -> Duración | L57: =L43 -> Dauer
A58: Gantt Chart Titles (monthly view) | B58: Cell | D58: Gantt | E58: 15 | F58: =COLUMN(Gantt!$T$18) -> 20 | I58: =I44 -> W.Day | J58: =J44 -> Jours ouvrés | K58: =K44 -> Los días hábiles | L58: =L44 -> W.Day
A59: Gantt Chart Titles (monthly view) | B59: Cell | D59: Gantt | E59: 15 | F59: =COLUMN(Gantt!$U$18) -> 21 | I59: =I45 -> All.Days | J59: =J45 -> Normal | K59: =K45 -> Todos los Días | L59: =L45 -> All.Days
A60: Gantt Chart Titles (monthly view) | B60: Cell | D60: Gantt | E60: 15 | F60: =COLUMN(Gantt!$V$18) -> 22 | I60: =I46 -> Due | J60: =J46 -> Échéance | K60: =K46 -> Terminación | L60: =L46 -> Fällig am
A61: Gantt Chart Titles (monthly view) | B61: Cell | D61: Gantt | E61: 15 | F61: =COLUMN(Gantt!$Y$18) -> 25 | I61: =I47 -> Progress | J61: =J47 -> Statut | K61: =K47 -> Estado | L61: =L47 -> Status
A62: Gantt Chart Titles (monthly view) | B62: Cell | D62: Gantt | E62: 15 | F62: =COLUMN(Gantt!$AB$18) -> 28 | I62: =I49 -> Plan | J62: =J49 -> Estim. | K62: =K49 -> Estimado | L62: =L49 -> Schätzung
A63: Gantt Chart Titles (monthly view) | B63: Cell | D63: Gantt | E63: 15 | F63: =COLUMN(Gantt!$AC$18) -> 29 | I63: =I50 -> Actual | J63: =J50 -> Réel | K63: =K50 -> Real | L63: =L50 -> Tatsächlichen
A64: Gantt Chart Titles (monthly view) | B64: Cell | D64: Gantt | E64: 15 | F64: =COLUMN(Gantt!$AD$18) -> 30 | I64: =I51 -> % | J64: =J51 -> % | K64: =K51 -> % | L64: =L51 -> %
A65: Gantt Chart Titles (monthly view) | B65: Cell | D65: Gantt | E65: 15 | F65: =COLUMN(Gantt!$AF$17) -> 32 | I65: =I52 -> Comments | J65: =J52 -> Commentaires | K65: =K52 -> Comentarios | L65: =L52 -> Kommentare
A66: Gantt Chart (New Tasks) | B66: Cell | D66: Gantt | E66: =ROW(Gantt!$M$19) -> 19 | F66: =COLUMN(Gantt!$M$19) -> 13 | I66: New Task | J66: Nouvelle tâche | K66: Nueva tarea | L66: Neue Aufgabe
A67: Gantt Chart (New Tasks) | B67: Cell | D67: Gantt | E67: =ROW(Gantt!$M$20) -> 20 | F67: =COLUMN(Gantt!$M$20) -> 13 | I67: New Sub-Task | J67: Nouvelle sous-tâche | K67: Nueva sub-tarea | L67: Neue Unteraufgabe
A68: Gantt Chart (New Tasks) | B68: Cell | D68: Gantt | E68: =ROW(Gantt!$M$21) -> 21 | F68: =COLUMN(Gantt!$M$21) -> 13 | I68: =I67 -> New Sub-Task | J68: =J67 -> Nouvelle sous-tâche | K68: Nueva sub-tarea | L68: Neue Unteraufgabe
A69: Gantt Chart Titles | B69: Text Box | C69: Gantt_Title1 | D69: Gantt | I69: Project Title | J69: Nom du projet | K69: Nombre del proyecto | L69: Projektnamen
A70: Gantt Chart Titles | B70: Text Box | C70: Gantt_Title2 | D70: Gantt | I70: Subtitle for additional details | J70: Sous-titre pour plus de détails | K70: Subtítulos para detalles adicionales | L70: Untertitel für details
A71: Drop Down Menu | B71: Text Box | C71: menu_txt1 | D71: Gantt | I71: View | J71: Affichage | K71: Vista | L71: Ansicht
A72: Drop Down Menu | B72: Text Box | C72: menu_txt2 | D72: Gantt | I72: Tools | J72: Outils | K72: Herramientas | L72: Tools
A73: Drop Down Menu | B73: Text Box | C73: menu_txt3 | D73: Gantt | I73: Help | J73: Aide | K73: Ayuda | L73: Hilfe
A74: Drop Down Menu | B74: Text Box | C74: menu_txt4 | D74: Gantt | I74: About | J74: À propos | K74: Acerca de | L74: Über
A75: Drop Down Menu | B75: Text Box | C75: menu_txt5 | D75: Gantt | I75: Language | J75: Langue | K75: Idioma | L75: Sprache
A76: View Drop Down Menu | B76: Text Box | C76: expand1_txt | D76: Gantt | I76: Expand the view | J76: Plein écran simple | K76: Expandir | L76: Einfache vollbild
A77: View Drop Down Menu | B77: Text Box | C77: expand2_txt | D77: Gantt | I77: Expand view and lock side and top | J77: Plein écran verrouillé | K77: Expandir y bloquear pantalla | L77: Vollbild gesperrt
A78: View Drop Down Menu | B78: Text Box | C78: expand3_txt | D78: Gantt | I78: Full Screen Mode | J78: Mode plein écran | K78: Pantalla completa | L78: Vollbildmodus
A79: View Drop Down Menu | B79: Text Box | C79: expand4_txt | D79: Gantt | I79: Type of Gantt | J79: Type de Gantt | K79: Tipo de Gantt | L79: Diagrammtyp
A80: View Drop Down Menu | B80: Text Box | C80: expand5_txt | D80: Gantt | I80: Show Daily | J80: Quotidien | K80: Mostrar diario | L80: Tagesansicht
A81: View Drop Down Menu | B81: Text Box | C81: expand6_txt | D81: Gantt | I81: Show Weekly | J81: Hebdomadaire | K81: Mostrar semanal | L81: Wochensicht
A82: View Drop Down Menu | B82: Text Box | C82: expand7_txt | D82: Gantt | I82: Show Monthly | J82: Mensuel | K82: Mostrar mensual | L82: Monatlich
A83: View Drop Down Menu | B83: Text Box | C83: expand_cancel | D83: Gantt | I83: Close | J83: Fermer | K83: Cerrar | L83: Schließen
A84: View Drop Down Menu | B84: Text Box | C84: cancel_full_scr1 | D84: Gantt | I84: Exit Full Screen | J84: Quitter le plein écran | K84: Salir de pantalla completa | L84: Vollbildmodus verlassen
A85: Tool Drop Down Menu | B85: Text Box | C85: tool_txt1 | D85: Gantt | I85: =I72 -> Tools | J85: =J72 -> Outils | K85: =K72 -> Herramientas | L85: =L72 -> Tools
A86: Tool Drop Down Menu | B86: Text Box | C86: tool_txt2 | D86: Gantt | I86: Update Holidays | J86: Mettre à jour congés | K86: Actualizar vacaciones | L86: Urlaub aktualisieren
A87: Tool Drop Down Menu | B87: Text Box | C87: tool_txt4 | D87: Gantt | I87: Update Members List | J87: Mettre à jour membres | K87: Actualizar lista de miembros | L87: Benutzerliste aktualisieren
A88: Tool Drop Down Menu | B88: Text Box | C88: tool_txt5 | D88: Gantt | I88: Refresh Gantt View (CTRL+N) | J88: Rafraîchir le diagramme (CTRL+N) | K88: Actualizar la vista del diagrama (CTRL+N) | L88: Diagramm Aktualisieren (STRG+N)
A89: Tool Drop Down Menu | B89: Text Box | C89: tool_txt6 | D89: Gantt | I89: Adjust Print Margins | J89: Ajuster à l'impression | K89: Ajustar para la impresión | L89: Fit zu drucken
A90: Tool Drop Down Menu | B90: Text Box | C90: tool_txt7 | D90: Gantt | I90: Share by email | J90: Partager par email | K90: Compartir por correo electrónico | L90: Senden Sie per E-Mail
A91: Tool Drop Down Menu | B91: Text Box | C91: tool_cancel | D91: Gantt | I91: =I83 -> Close | J91: Fermer | K91: Cerrar | L91: =L83 -> Schließen
A92: Help Drop Down Menu | B92: Text Box | C92: help_txt1 | D92: Gantt | I92: =I$73 -> Help | J92: =J$73 -> Aide | K92: =K$73 -> Ayuda | L92: =L$73 -> Hilfe
A93: Help Drop Down Menu | B93: Text Box | C93: help_txt2 | D93: Gantt | I93: To keep this file as light as possible, we invite you to access the tutorial online. | J93: Afin de maintenir ce fichier aussi léger que possible, le tutorial peut être consulté en ligne. | K93: Para mantener este archivo lo más ligero posible, le invitamos a acceder al tutorial en línea. | L93: Um den Umfang dieser Datei minimal zu halten, tutorial sind im internet einsehbar.
A94: Help Drop Down Menu | B94: Text Box | C94: help_txt3 | D94: Gantt | I94: Support | J94: Support | K94: Apoyo | L94: Support
A95: Help Drop Down Menu | B95: Text Box | C95: help_txt6 | D95: Gantt | I95: Satisfaction Survey | J95: Enquête de satisfaction | K95: Encuesta de Satisfacción | L95: Zufriedenheitsumfrage
A96: Help Drop Down Menu | B96: Text Box | C96: help_txt7 | D96: Gantt | I96: Share with us your opinion about this tool. | J96: Partagez avec nous votre opinion sur cet outil. | K96: Comparta con nosotros su opinión sobre esta herramienta. | L96: Teilen Sie mit uns Ihre Meinung zu diesem Tool.
A97: Help Drop Down Menu | B97: Text Box | C97: help_cancel | D97: Gantt | I97: =I$83 -> Close | J97: =J$83 -> Fermer | K97: =K83 -> Cerrar | L97: =L$83 -> Schließen
A98: About Drop Down Menu | B98: Text Box | C98: about_txt1 | D98: Gantt | I98: =I74 -> About | J98: =J74 -> À propos | K98: =K74 -> Acerca de | L98: =L74 -> Über
A99: About Drop Down Menu | B99: Text Box | C99: about_txt2 | D99: Gantt | I99: Gestion de projet automobile gestionprojetauto.wordpress.com ammar.anass@yahoo.com | J99: Gestion de projet automobile gestionprojetauto.wordpress.com ammar.anass@yahoo.com | K99: Gestion de projet automobile gestionprojetauto.wordpress.com ammar.anass@yahoo.com | L99: Gestion de projet automobile gestionprojetauto.wordpress.com ammar.anass@yahoo.com
A100: About Drop Down Menu | B100: Text Box | C100: about_txt3 | D100: Gantt | I100: Copyright | J100: Copyright | K100: Copyright | L100: Copyright
A101: About Drop Down Menu | B101: Text Box | C101: about_txt10 | D101: Gantt | I101: If you received this file from a third party and would like to use it for your own projects, we invite you to purchase your personal copy. | J101: Si vous avez reçu ce fichier d'une tierce personne et souhaitez l'utiliser pour vos projets, nous vous invitons à acquérir votre copie personnelle. | K101: Si ha recibido este archivo de alguien y quiere usarlo para sus propios proyectos, puede comprar su copia personal. | L101: =I101 -> If you received this file from a third party and would like to use it for your own projects, we invite you to purchase your personal copy.
A102: About Drop Down Menu | B102: Text Box | C102: about_txt8 | D102: Gantt | I102: ="You have the version " & HideValues!M114 -> You have the version 7.9.9 PRO (2007) | J102: ="Vous avez la version " & HideValues!M114 -> Vous avez la version 7.9.9 PRO (2007) | K102: ="Usted tiene la versión " & HideValues!M114 -> Usted tiene la versión 7.9.9 PRO (2007) | L102: ="Sie über Version " & HideValues!M114 & " verfügen" -> Sie über Version 7.9.9 PRO (2007) verfügen
A103: About Drop Down Menu | B103: Text Box | C103: about_txt9 | D103: Gantt | I103: Upgrade to PRO today ! | J103: Téléchargez la version PRO ! | K103: Actualice a la versión PRO hoy | L103: Upgrade to PRO today !
A104: About Drop Down Menu | B104: Text Box | C104: about_txt5 | D104: Gantt | I104: More | J104: Plus | K104: Más | L104: Mehr
A105: About Drop Down Menu | B105: Text Box | C105: about_txt6 | D105: Gantt | I105: Credits: Fat Cow (fatcow.com/free-icons), Aha-soft (aha-soft.com/free-icons, Icon8 (icons8.com/). Microsoft Excel® is registered trademarks of Microsoft Corporation. | J105: Crédits: Fat Cow (fatcow.com/free-icons), Aha-soft (aha-soft.com/free-icons, Icon8 (icons8.com/). Microsoft Excel® is registered trademarks of Microsoft Corporation. | K105: =I105 -> Credits: Fat Cow (fatcow.com/free-icons), Aha-soft (aha-soft.com/free-icons, Icon8 (icons8.com/). Microsoft Excel® is registered trademarks of Microsoft Corporation. | L105: =I105 -> Credits: Fat Cow (fatcow.com/free-icons), Aha-soft (aha-soft.com/free-icons, Icon8 (icons8.com/). Microsoft Excel® is registered trademarks of Microsoft Corporation.
A106: About Drop Down Menu | B106: Text Box | C106: about_cancel | D106: Gantt | I106: =I$83 -> Close | J106: =J$83 -> Fermer | K106: =K83 -> Cerrar | L106: =L$83 -> Schließen
A107: Tools Sheet : Top Menu | B107: Text Box | C107: back_txt | D107: Tools | I107: Back to Gantt Chart | J107: Retour au diagramme de Gantt | K107: Volver al Gantt | L107: Zurück zur Gantt-Diagramm
A108: Tools Sheet : Holidays | B108: Cell | D108: Tools | E108: =ROW(Tools!$B$9) -> 9 | F108: =COLUMN(Tools!$B$9) -> 2 | I108: Bank Holidays & Vacations | J108: Jours de congé | K108: Días feriados y vacaciones | L108: Urlaubszeitraum
A109: Tools Sheet : Members | B109: Cell | D109: Tools | E109: =ROW(Tools!$D$9) -> 9 | F109: =COLUMN(Tools!$D$9) -> 4 | I109: Team Members | J109: Equipe projet | K109: Equipo del proyecto | L109: Projektteam
A110: Tools Sheet : Members | B110: Cell | D110: Tools | E110: =ROW(Tools!$D$10) -> 10 | F110: =COLUMN(Tools!$D$10) -> 4 | I110: Short Name | J110: Diminutif | K110: Nombre corto | L110: Kurznamen
A111: Tools Sheet : Members | B111: Cell | D111: Tools | E111: =ROW(Tools!$E$10) -> 10 | F111: =COLUMN(Tools!$E$10) -> 5 | I111: Full Name | J111: Nom complet | K111: Nombre completo | L111: Vollständiger Name
A112: Tools Sheet : Members | B112: Cell | D112: Tools | E112: =ROW(Tools!$F$10) -> 10 | F112: =COLUMN(Tools!$F$10) -> 6 | I112: Company | J112: Entreprise | K112: Empresa | L112: Unternehmen
A113: Tools Sheet : Members | B113: Cell | D113: Tools | E113: =ROW(Tools!$G$10) -> 10 | F113: =COLUMN(Tools!$G$10) -> 7 | I113: Division | J113: Division | K113: División | L113: Abteilung
A114: Tools Sheet : Members | B114: Cell | D114: Tools | E114: =ROW(Tools!$I$10) -> 10 | F114: =COLUMN(Tools!$I$10) -> 9 | I114: Phone | J114: Téléphone | K114: Teléfono | L114: Telefon
A115: HideValues : First Gantt Date | B115: Cell | D115: HideValues | E115: =ROW(HideValues!$B8) -> 8 | F115: =COLUMN(HideValues!$B8) -> 2 | I115: January | J115: Janvier | K115: Enero | L115: Januar
A116: HideValues : First Gantt Date | B116: Cell | D116: HideValues | E116: =ROW(HideValues!$B9) -> 9 | F116: =COLUMN(HideValues!$B9) -> 2 | I116: February | J116: Février | K116: Febrero | L116: Februar
A117: HideValues : First Gantt Date | B117: Cell | D117: HideValues | E117: =ROW(HideValues!$B10) -> 10 | F117: =COLUMN(HideValues!$B10) -> 2 | I117: March | J117: Mars | K117: Marzo | L117: März
A118: HideValues : First Gantt Date | B118: Cell | D118: HideValues | E118: =ROW(HideValues!$B11) -> 11 | F118: =COLUMN(HideValues!$B11) -> 2 | I118: April | J118: Avril | K118: Abril | L118: April
A119: HideValues : First Gantt Date | B119: Cell | D119: HideValues | E119: =ROW(HideValues!$B12) -> 12 | F119: =COLUMN(HideValues!$B12) -> 2 | I119: May | J119: Mai | K119: Mayo | L119: Mai
A120: HideValues : First Gantt Date | B120: Cell | D120: HideValues | E120: =ROW(HideValues!$B13) -> 13 | F120: =COLUMN(HideValues!$B13) -> 2 | I120: June | J120: Juin | K120: Junio | L120: Juni
A121: HideValues : First Gantt Date | B121: Cell | D121: HideValues | E121: =ROW(HideValues!$B14) -> 14 | F121: =COLUMN(HideValues!$B14) -> 2 | I121: July | J121: Juillet | K121: Julio | L121: Juli
A122: HideValues : First Gantt Date | B122: Cell | D122: HideValues | E122: =ROW(HideValues!$B15) -> 15 | F122: =COLUMN(HideValues!$B15) -> 2 | I122: August | J122: Août | K122: Agosto | L122: August
A123: HideValues : First Gantt Date | B123: Cell | D123: HideValues | E123: =ROW(HideValues!$B16) -> 16 | F123: =COLUMN(HideValues!$B16) -> 2 | I123: September | J123: Septembre | K123: Septiembre | L123: September
A124: HideValues : First Gantt Date | B124: Cell | D124: HideValues | E124: =ROW(HideValues!$B17) -> 17 | F124: =COLUMN(HideValues!$B17) -> 2 | I124: October | J124: Octobre | K124: Octubre | L124: Oktober
A125: HideValues : First Gantt Date | B125: Cell | D125: HideValues | E125: =ROW(HideValues!$B18) -> 18 | F125: =COLUMN(HideValues!$B18) -> 2 | I125: November | J125: Novembre | K125: Noviembre | L125: November
A126: HideValues : First Gantt Date | B126: Cell | D126: HideValues | E126: =ROW(HideValues!$B19) -> 19 | F126: =COLUMN(HideValues!$B19) -> 2 | I126: December | J126: Décembre | K126: Diciembre | L126: Dezember
A127: HideValues : Working Days | B127: Cell | D127: HideValues | E127: =ROW(HideValues!$B45) -> 45 | F127: =COLUMN(HideValues!$B45) -> 2 | I127: Working Days Only | J127: Jours ouvrés uniquement | K127: Sólo días hábiles | L127: Arbeitstage Nur
A128: HideValues : Working Days | B128: Cell | D128: HideValues | E128: =ROW(HideValues!$D46) -> 46 | F128: =COLUMN(HideValues!$B46) -> 2 | I128: All Days | J128: Weekend travaillé | K128: todos los días | L128: Alle Tage
A129: HideValues : Working Days | B129: Cell | D129: HideValues | E129: =ROW(HideValues!$D45) -> 45 | F129: =COLUMN(HideValues!$D45) -> 4 | I129: Saturday, Sunday | J129: Samedi, dimanche | K129: Sábado, Domingo | L129: Samstag, Sonntag
A130: HideValues : Working Days | B130: Cell | D130: HideValues | E130: =ROW(HideValues!$D46) -> 46 | F130: =COLUMN(HideValues!$D46) -> 4 | I130: Sunday, Monday | J130: Dimanche, lundi | K130: Domingo, Lunes | L130: Sonntag, Montag
A131: HideValues : Working Days | B131: Cell | D131: HideValues | E131: =ROW(HideValues!$D47) -> 47 | F131: =COLUMN(HideValues!$D47) -> 4 | I131: Monday, Tuesday | J131: Lundi, mardi | K131: Lunes, Martes | L131: Montag, Dienstag
A132: HideValues : Working Days | B132: Cell | D132: HideValues | E132: =ROW(HideValues!$D48) -> 48 | F132: =COLUMN(HideValues!$D48) -> 4 | I132: Tuesday, Wednesday | J132: Mardi, mercredi | K132: Martes, Miércoles | L132: Dienstag, Mittwoch
A133: HideValues : Working Days | B133: Cell | D133: HideValues | E133: =ROW(HideValues!$D49) -> 49 | F133: =COLUMN(HideValues!$D49) -> 4 | I133: Wednesday, Thursday | J133: Mercredi, jeudi | K133: Miércoles, Jueves | L133: Mittwoch, Donnerstag
A134: HideValues : Working Days | B134: Cell | D134: HideValues | E134: =ROW(HideValues!$D50) -> 50 | F134: =COLUMN(HideValues!$D50) -> 4 | I134: Thursday, Friday | J134: Jeudi, vendredi | K134: Jueves, Viernes | L134: Donnerstag, Freitag
A135: HideValues : Working Days | B135: Cell | D135: HideValues | E135: =ROW(HideValues!$D51) -> 51 | F135: =COLUMN(HideValues!$D51) -> 4 | I135: Friday, Saturday | J135: Vendredi, samedi | K135: Viernes, Sábado | L135: Freitag, Samstag
A136: HideValues : Working Days | B136: Cell | D136: HideValues | E136: =ROW(HideValues!$D52) -> 52 | F136: =COLUMN(HideValues!$D52) -> 4 | I136: Sunday only | J136: Dimanche uniquement | K136: Sólo el Domingo | L136: Sonntag nur
A137: HideValues : Working Days | B137: Cell | D137: HideValues | E137: =ROW(HideValues!$D53) -> 53 | F137: =COLUMN(HideValues!$D53) -> 4 | I137: Monday only | J137: Lundi uniquement | K137: sólo de Lunes | L137: Montag nur
A138: HideValues : Working Days | B138: Cell | D138: HideValues | E138: =ROW(HideValues!$D54) -> 54 | F138: =COLUMN(HideValues!$D54) -> 4 | I138: Tuesday only | J138: Mardi uniquement | K138: Sólo el Martes | L138: Dienstag nur
A139: HideValues : Working Days | B139: Cell | D139: HideValues | E139: =ROW(HideValues!$D55) -> 55 | F139: =COLUMN(HideValues!$D55) -> 4 | I139: Wednesday only | J139: Mercredi uniquement | K139: Sólo el Miércoles | L139: Mittwoch nur
A140: HideValues : Working Days | B140: Cell | D140: HideValues | E140: =ROW(HideValues!$D56) -> 56 | F140: =COLUMN(HideValues!$D56) -> 4 | I140: Thursday only | J140: Jeudi uniquement | K140: Sólo el Jueves | L140: Donnerstag nur
A141: HideValues : Working Days | B141: Cell | D141: HideValues | E141: =ROW(HideValues!$D57) -> 57 | F141: =COLUMN(HideValues!$D57) -> 4 | I141: Friday only | J141: Vendredi uniquement | K141: Sólo el Viernes | L141: Freitag nur
A142: HideValues : Working Days | B142: Cell | D142: HideValues | E142: =ROW(HideValues!$D58) -> 58 | F142: =COLUMN(HideValues!$D58) -> 4 | I142: Saturday only | J142: Samedi uniquement | K142: Sólo el Sábado | L142: Samstag nur
A143: HideValues : Working Days | B143: Cell | D143: HideValues | E143: =ROW(HideValues!$H45) -> 45 | F143: =COLUMN(HideValues!$H45) -> 8 | I143: Monday (ISO 8601) | J143: Lundi (ISO 8601) | K143: Lunes (ISO 8601) | L143: Montag (ISO 8601)
A144: HideValues : Working Days | B144: Cell | D144: HideValues | E144: =ROW(HideValues!$H46) -> 46 | F144: =COLUMN(HideValues!$H46) -> 8 | I144: Monday | J144: Lundi | K144: Lunes | L144: Montag
A145: HideValues : Working Days | B145: Cell | D145: HideValues | E145: =ROW(HideValues!$H47) -> 47 | F145: =COLUMN(HideValues!$H47) -> 8 | I145: Tuesday | J145: Mardi | K145: Martes | L145: Dienstag
A146: HideValues : Working Days | B146: Cell | D146: HideValues | E146: =ROW(HideValues!$H48) -> 48 | F146: =COLUMN(HideValues!$H48) -> 8 | I146: Wednesday | J146: Mercredi | K146: Miércoles | L146: Mittwoch
A147: HideValues : Working Days | B147: Cell | D147: HideValues | E147: =ROW(HideValues!$H49) -> 49 | F147: =COLUMN(HideValues!$H49) -> 8 | I147: Thursday | J147: Jeudi | K147: Jueves | L147: Donnerstag
A148: HideValues : Working Days | B148: Cell | D148: HideValues | E148: =ROW(HideValues!$H50) -> 50 | F148: =COLUMN(HideValues!$H50) -> 8 | I148: Friday | J148: Vendredi | K148: Viernes | L148: Freitag
A149: HideValues : Working Days | B149: Cell | D149: HideValues | E149: =ROW(HideValues!$H51) -> 51 | F149: =COLUMN(HideValues!$H51) -> 8 | I149: Saturday | J149: Samedi | K149: Sábado | L149: Samstag
A150: HideValues : Working Days | B150: Cell | D150: HideValues | E150: =ROW(HideValues!$H52) -> 52 | F150: =COLUMN(HideValues!$H52) -> 8 | I150: Sunday | J150: Dimanche | K150: Domingo | L150: Sonntag
A151: HideValues : VBA Budget Warning | B151: Cell | D151: HideValues | E151: =ROW(HideValues!$B77) -> 77 | F151: =COLUMN(HideValues!$B77) -> 2 | I151: This operation will only hides the budget columns. | J151: Cette opération ne fera que masquer les colonnes liées au budget. | K151: Esta operación sólo oculta las columnas relacionadas con el presupuesto. | L151: Dies wird nur Spalten in den Haushalt im Zusammenhang verstecken.
A152: HideValues : VBA Budget Warning | B152: Cell | D152: HideValues | E152: =ROW(HideValues!$B78) -> 78 | F152: =COLUMN(HideValues!$B78) -> 2 | I152: Please clear all related fields according to your confidentiality policy. | J152: Veuillez supprimer toutes les informations sensibles afin de respecter votre politique de confidentialité interne. | K152: Por favor, elimine toda la información sensible para cumplir con su política de privacidad interna. | L152: Bitte entfernen Sie alle sensiblen Informationen, um Ihre internen Datenschutzbestimmungen zu erfüllen.
A153: HideValues : VBA Budget Warning | B153: Cell | D153: HideValues | E153: =ROW(HideValues!$B79) -> 79 | F153: =COLUMN(HideValues!$B79) -> 2 | I153: Confidentiality Warning | J153: Message de confidentialité | K153: Advertencia de privacidad | L153: Datenschutz Nachricht
A154: HideValues : VBA Send by email | B154: Cell | D154: HideValues | E154: =ROW(HideValues!$B64) -> 64 | F154: =COLUMN(HideValues!$B80) -> 2 | I154: Pre-fill the recipients | J154: Pré-remplir les destinataires | K154: Completar automaticamente los destinatarios | L154: Pre- füllen die Empfänger
A155: HideValues : VBA Send by email | B155: Cell | D155: HideValues | E155: =ROW(HideValues!$B65) -> 65 | F155: =COLUMN(HideValues!$B81) -> 2 | I155: Would you like to pre-fill the recipients from the Project Members List ? | J155: Souhaiteriez-vous pré-remplir les destinataires depuis la liste des membres du projet ? | K155: ¿Quiere completar automaticamente los destinatarios de la lista de los miembros del proyecto ? | L155: Möchten Sie vor, füllen Sie die Empfänger aus dem Projekt- Benutzerliste ?
A156: HideValues : VBA Send by email | B156: Cell | D156: HideValues | E156: =ROW(HideValues!$B66) -> 66 | F156: =COLUMN(HideValues!$B82) -> 2 | I156: [Confidential] Latest update of project schedule | J156: [Confidentiel ] Dernière mise à jour du planning projet | K156: [ Confidencial ] Última actualización del cronograma del proyecto | L156: [ Vertraulich] Letzte Aktualisierung des Projektzeitplan
A157: Language Drop Down Menu | B157: Text Box | C157: lang_txt1 | D157: Gantt | I157: =I$75 -> Language | J157: =J$75 -> Langue | K157: =K$75 -> Idioma | L157: =L$75 -> Sprache
A158: Language Drop Down Menu | B158: Text Box | C158: lang_cancel | D158: Gantt | I158: =I$83 -> Close | J158: =J$83 -> Fermer | K158: =K83 -> Cerrar | L158: =L$83 -> Schließen
A159: Starting Date : dropdown list | B159: Cell | D159: HideValues | E159: =ROW(HideValues!$A83) -> 83 | F159: =COLUMN(HideValues!$A83) -> 1 | I159: 1- After Previous | J159: 1- Après précédente | K159: 1- Después de la anterior | L159: 1- Nach vorheriger
A160: Starting Date : dropdown list | B160: Cell | D160: HideValues | E160: =ROW(HideValues!$B83) -> 83 | F160: =COLUMN(HideValues!$B83) -> 2 | I160: 2- With Previous | J160: 2- Avec précédente | K160: 2- Con la anterior | L160: 2- Bei früheren
A161: Starting Date : dropdown list | B161: Cell | D161: HideValues | E161: =ROW(HideValues!$C83) -> 83 | F161: =COLUMN(HideValues!$C83) -> 3 | I161: 2- Manual Input | J161: 3- Saisie manuelle | K161: 3- Ingreso manual | L161: 3- Manuell
A162: Starting Date : dropdown list | B162: Cell | D162: HideValues | E162: =ROW(HideValues!$E83) -> 83 | F162: =COLUMN(HideValues!$E83) -> 5 | I162: Help | J162: Aide | K162: Ayuda | L162: Hilfe
A163: Gantt : Get Pro | B163: Text Box | C163: get_pro_txt1 | D163: Gantt | I163: Free Version | J163: Version Gratuite | K163: Versión gratuita | L163: Kostenlos Version
A164: Gantt : Get Pro | B164: Text Box | C164: get_pro_txt2 | D164: Gantt | I164: This feature is not available in the free version of the Excel Gantt Chart Maker. | J164: Cette fonctionnalité n'est pas disponible dans la version gratuite du Excel Gantt Chart Maker. | K164: Esta característica no se ofrece en la versión gratuita del Excel Gantt Chart Maker. | L164: Diese Funktion ist nicht verfügbar in der kostenlosen Version des Excel Gantt Chart Maker.
A165: Gantt : Get Pro | B165: Text Box | C165: get_pro_txt3 | D165: Gantt | I165: Download the PRO version and discover exclusive features. | J165: Téléchargez la version PRO et découvrez une multitudes de fonctions exclusives. | K165: Descargue la versión PRO y descubra las características exclusivas. | L165: Holen das PRO-Version und entdecken Sie eine vielzahl exklusiver funktionen.
A166: Gantt : Get Pro | B166: Text Box | C166: get_pro_txt4 | D166: Gantt | I166: =I103 -> Upgrade to PRO today ! | J166: =J103 -> Téléchargez la version PRO ! | K166: =K103 -> Actualice a la versión PRO hoy | L166: =L103 -> Upgrade to PRO today !
A167: Gantt : Get Pro | B167: Text Box | C167: get_pro_txt5 | D167: Gantt | I167: Later | J167: Plus tard | K167: Más tarde | L167: Später
A168: Gantt : Rows Limit | B168: Text Box | C168: get_pro_txt6 | D168: Gantt | I168: With the STARTER version, you cannot exceed 100 rows. | J168: Avec la version STARTER, vous ne pouvez pas dépasser 100 lignes. | K168: Con la versión beta gratuita, no puede exceder las 100 filas. | L168: Mit der kostenlosen beta Version können Sie nicht 100 Zeilen nicht überschreiten.
A169: Gantt : Rows Limit | B169: Text Box | C169: get_pro_txt7 | D169: Gantt | I169: Download the PRO version in order to remove this limitation and discover other exclusive features. | J169: Téléchargez la version PRO pour lever cette limitation et découvrir une multitudes d'autres fonctions exclusives. | K169: Descargar la versión PRO con el fin de eliminar esta limitación y descubrir otras características exclusivas. | L169: Laden Sie die PRO-Version, um diese Einschränkung zu entfernen, und andere exklusive Features entdecken.
A170: Gantt : Rows Limit | B170: Text Box | C170: get_pro_txt8 | D170: Gantt | I170: Later | J170: Plus tard | K170: Más tarde | L170: Später
A171: Gantt : Survey | B171: Text Box | C171: survey_txt2 | D171: Gantt | I171: Thank you for using the "Excel Gantt Chart Maker". As you may appreciate, we value your opinion as it help us to better understand your expectations. | J171: Merci d'avoir opté pour "Excel Gantt Chart Maker". Votre avis nous est précieux car il nous permet de mieux saisir vos attentes. | K171: Gracias por utilizar el "Excel Gantt Chart Maker". Como usted opuede apreciar, nos interesa su opinión, ya que nos ayudan a entender mejor sus expectativas. | L171: =I171 -> Thank you for using the "Excel Gantt Chart Maker". As you may appreciate, we value your opinion as it help us to better understand your expectations.
A172: Gantt : Survey | B172: Text Box | C172: survey_txt3 | D172: Gantt | I172: Please let us know what you think about this tool and how we can further improve your experience. | J172: Dans ce but, nous espérons que vous prendrez le temps de compléter notre questionnaire en ligne. | K172: Por favor, háganos saber lo que piensa acerca de esta herramienta y cómo podemos mejorar su experiencia. | L172: Please let us know what you think about this tool and how we can further improve your experience.
A173: Gantt : Survey | B173: Text Box | C173: survey_txt40 | D173: Gantt | I173: Start the Survey | J173: Questionnaire en ligne | K173: Iniciar la Encuesta | L173: Start the Survey
A174: Gantt : Survey | B174: Text Box | C174: survey_txt5 | D174: Gantt | I174: Remind me later | J174: Plus tard | K174: Recordar más tarde | L174: Remind me later
A175: Gantt : Survey | B175: Text Box | C175: survey_txt6 | D175: Gantt | I175: Never remind me again | J175: Ne plus me demander | K175: No me recuerden de nuevo | L175: Never remind me again
A176: Hyper Link: About - Blog | B176: Hyperlink | C176: about_txt5 | D176: Gantt | I176: https://gestionprojetauto.wordpress.com/2010/12/09/download-free-excel-gantt-chart/ | J176: https://gestionprojetauto.wordpress.com/2010/05/28/diagramme-de-gantt-sous-excel-gratuit/ | K176: =I176 -> https://gestionprojetauto.wordpress.com/2010/12/09/download-free-excel-gantt-chart/ | L176: https://gestionprojetauto.wordpress.com/2010/12/09/download-free-excel-gantt-chart/
A177: Link to survey (from popup) | B177: Cell | C177: survey_txt40 | D177: HideValues | E177: =ROW(HideValues!$M106) -> 106 | F177: =COLUMN(HideValues!$M106) -> 13 | I177: http://ammaranass.polldaddy.com/s/satisfactionsurvey | J177: http://ammaranass.polldaddy.com/s/enquete-de-satisfaction | K177: http://ammaranass.polldaddy.com/s/satisfactionsurvey | L177: http://ammaranass.polldaddy.com/s/satisfactionsurvey
A178: Hyper Link: Link to survey (from menu) | B178: Hyperlink | C178: help_txt7 | D178: Gantt | I178: http://ammaranass.polldaddy.com/s/satisfactionsurvey | J178: http://ammaranass.polldaddy.com/s/enquete-de-satisfaction | K178: http://ammaranass.polldaddy.com/s/satisfactionsurvey | L178: http://ammaranass.polldaddy.com/s/satisfactionsurvey
A179: Hyper Link: About - Get your copy | B179: Hyperlink | C179: about_txt10 | D179: Gantt | I179: =$I$176 -> https://gestionprojetauto.wordpress.com/2010/12/09/download-free-excel-gantt-chart/ | J179: =$J$176 -> https://gestionprojetauto.wordpress.com/2010/05/28/diagramme-de-gantt-sous-excel-gratuit/ | K179: =I179 -> https://gestionprojetauto.wordpress.com/2010/12/09/download-free-excel-gantt-chart/ | L179: =I179 -> https://gestionprojetauto.wordpress.com/2010/12/09/download-free-excel-gantt-chart/
A180: Hyper Link: Help - Support | B180: Hyperlink | C180: help_txt3 | D180: Gantt | I180: https://gestionprojetauto.wordpress.com/support-excel-gantt-chart-maker | J180: https://gestionprojetauto.wordpress.com/support-diagramme-de-gantt | K180: =I180 -> https://gestionprojetauto.wordpress.com/support-excel-gantt-chart-maker | L180: =I180 -> https://gestionprojetauto.wordpress.com/support-excel-gantt-chart-maker
A181: Hyper Link: Upgrade to pro pop up - Upgrade | B181: Hyperlink | C181: get_pro_txt4 | D181: Gantt | I181: =$I$176 -> https://gestionprojetauto.wordpress.com/2010/12/09/download-free-excel-gantt-chart/ | J181: =$J$176 -> https://gestionprojetauto.wordpress.com/2010/05/28/diagramme-de-gantt-sous-excel-gratuit/ | K181: =I181 -> https://gestionprojetauto.wordpress.com/2010/12/09/download-free-excel-gantt-chart/ | L181: =I181 -> https://gestionprojetauto.wordpress.com/2010/12/09/download-free-excel-gantt-chart/
A182: Hyper Link: About - Upgrade to pro | B182: Hyperlink | C182: about_txt9 | D182: Gantt | I182: =$I$176 -> https://gestionprojetauto.wordpress.com/2010/12/09/download-free-excel-gantt-chart/ | J182: =$J$176 -> https://gestionprojetauto.wordpress.com/2010/05/28/diagramme-de-gantt-sous-excel-gratuit/ | K182: =I182 -> https://gestionprojetauto.wordpress.com/2010/12/09/download-free-excel-gantt-chart/ | L182: =I182 -> https://gestionprojetauto.wordpress.com/2010/12/09/download-free-excel-gantt-chart/
A183: Gantt : Add Tasks | B183: Text Box | C183: addtasks_button | D183: Gantt | I183: ADD SUB-TASKS | J183: AJOUTER DES TACHES | K183: Añadir tareas | L183: ADD AUFGABEN
A184: Gantt : Add Tasks | B184: Text Box | C184: addtasks5 | D184: Gantt | I184: Number of Rows: | J184: Nombre de lignes: | K184: Número de líneas: | L184: Anzahl der Zeilen:
A185: Gantt : Add Tasks | B185: Text Box | C185: addtasks6 | D185: Gantt | I185: Location: | J185: Position: | K185: Posición: | L185: Position:
A186: Gantt : Add Tasks | B186: Text Box | C186: addtasks4 | D186: Gantt | I186: Options: | J186: Options: | K186: Opciones: | L186: Optionen:
A187: Gantt : Add Tasks | B187: Text Box | C187: addtasks2 | D187: Gantt | I187: CANCEL | J187: ANNULER | K187: CANCELAR | L187: ZURÜCK
A188: Gantt : Add Tasks | B188: Text Box | C188: addtasks1 | D188: Gantt | I188: ADD | J188: AJOUTER | K188: ADD | L188: ADD
A189: Gantt : Add Tasks | B189: Text Box | C189: addtasks12 | D189: Gantt | I189: Below the last row | J189: Après la dernière ligne | K189: Después de la última línea | L189: Nach der letzten Zeile
A190: Gantt : Add Tasks | B190: Text Box | C190: addtasks13 | D190: Gantt | I190: Below the selected row | J190: En-dessous de la sélection | K190: Por debajo de la selección | L190: Unterhalb der Auswahl
A191: Gantt : Add Tasks | B191: Text Box | C191: addtasks14 | D191: Gantt | I191: Above the selected row | J191: Au-dessus de la sélection | K191: Por encima de la selección | L191: Oberhalb der Auswahl
A192: Gantt : Add Tasks | B192: Text Box | C192: addtasks15 | D192: Gantt | I192: Include task header | J192: Inclure l'en-tête | K192: Incluir un encabezado | L192: Include-Header
A193: Gantt : Add Tasks | B193: Text Box | C193: addtasks16 | D193: Gantt | I193: Number the sub-tasks | J193: Numéroter la série | K193: Numerar las sub-tareas | L193: Anzahl der Teilaufgaben

Sheet HideValues (hidden)
A1: Start Date And Bookmark | R1: USERS 1 | S1: USERS 2
H2: Days to use for "first day of Gantt"
A3: Final Value For Gantt | B3: Red Boomark Position | C3: =DATE(F6,D6,C6) -> 2016-11-15 | D3: =C3*1 -> 2016-11-15
B4: Gantt First day position | C4: =DATE(F7,D7,C7) -> 2016-11-08 | D4: =IF(B61="Weekly",B60*1,C4*1) -> 2016-11-08 | H4: Today | I4: Lowest Date
H5: =TODAY() -> 2016-05-22 | I5: 2016-11-08
A6: linkcell | B6: Red Boomark Position | C6: 15 | D6: 11 | E6: 7 | F6: =E6+2009 -> 2016 | H6: =DAY(H5) -> 22 | I6: =DAY(I5) -> 8
A7: linkcell | B7: Gantt First day position | C7: 8 | D7: 11 | E7: 7 | F7: 2016 | H7: =MONTH(H5) -> 5 | I7: =MONTH(I5) -> 11
A8: 1 | B8: Janvier | C8: 2001-01-01 | D8: 2010 | H8: =YEAR(H5) -> 2016 | I8: =YEAR(I5) -> 2016
A9: 2 | B9: Février | C9: 2001-02-01 | D9: 2011
A10: 3 | B10: Mars | C10: 2001-03-01 | D10: 2012
A11: 4 | B11: Avril | C11: 2001-04-01 | D11: 2013
A12: 5 | B12: Mai | C12: 2001-05-01 | D12: 2014 | H12: Options for adding tasks
A13: 6 | B13: Juin | C13: 2001-06-01 | D13: 2015
A14: 7 | B14: Juillet | C14: 2001-07-01 | D14: 2016 | H14: Location add tasks | J14: Last
A15: 8 | B15: Août | C15: 2001-08-01 | D15: 2017 | H15: Header | J15: TRUE
A16: 9 | B16: Septembre | C16: 2001-09-01 | D16: 2018 | H16: Quantity | J16: 1
A17: 10 | B17: Octobre | C17: 2001-10-01 | D17: 2019 | H17: Number tasks | J17: TRUE
A18: 11 | B18: Novembre | C18: 2001-11-01 | D18: 2020
A19: 12 | B19: Décembre | C19: 2001-12-01 | D19: 2021
A20: 13 | D20: 2022
A21: 14 | D21: 2023
A22: 15 | D22: 2024
A23: 16 | D23: 2025
A24: 17 | D24: 2026
A25: 18
A26: 19
A27: 20
A28: 21
A29: 22
A30: 23
A31: 24
A32: 25
A33: 26
A34: 27
A35: 28
A36: 29
A37: 30
A38: 31
A44: Working Days | D44: Week-End Days | H44: First Day of the Week
A45: Option 1 | B45: Jours ouvrés uniquement | D45: Samedi, dimanche | F45: 1 | H45: Lundi (ISO 8601) | J45: 21
A46: Option 2 | B46: Weekend travaillé | D46: Dimanche, lundi | F46: 2 | H46: Lundi | J46: 11
A47: LinkCell | B47: 1 | D47: Lundi, mardi | F47: 3 | H47: Mardi | J47: 12
A48: Boolean for week days or not | B48: =IF(B47=1,1,0) -> 1 | D48: Mardi, mercredi | F48: 4 | H48: Mercredi | J48: 13
D49: Mercredi, jeudi | F49: 5 | H49: Jeudi | J49: 14
A50: Weeks Name | D50: Jeudi, vendredi | F50: 6 | H50: Vendredi | J50: 15
A51: Option 1 | B51: CW | D51: Vendredi, samedi | F51: 7 | H51: Samedi | J51: 16
A52: Option 2 | B52: W | D52: Dimanche uniquement | F52: 11 | H52: Dimanche | J52: 17
A53: Option 3 | B53: S | D53: Lundi uniquement | F53: 12 | H53: LinkCell | J53: 1
A54: LinkCell | B54: 3 | D54: Mardi uniquement | F54: 13 | H54: Value | J54: =OFFSET(J45,J53-1,0) -> 21
A55: Actual Prefix | B55: =INDIRECT("B"&B54+50) -> S | D55: Mercredi uniquement | F55: 14
D56: Jeudi uniquement | F56: 15
A57: Set-up weekly | D57: Vendredi uniquement | F57: 16
A58: Date originale | B58: =C4 -> 2016-11-08 | D58: Samedi uniquement | F58: 17
A59: Jour | B59: =WEEKDAY(B58,2) -> 2 | D59: LinkCell | F59: 1
A60: Debut de semaine | B60: =B58-B59+1 -> 2016-11-07 | D60: Value | F60: =OFFSET(F45,F59-1,0) -> 1
A61: Show Weekly | B61: Daily
A63: Send By Email Warning Message (VBA)
A64: Tile | B64: Pré-remplir les destinataires
A65: Warning | B65: Souhaiteriez-vous pré-remplir les destinataires depuis la liste des membres du projet ?
A66: Email Subject | B66: [Confidentiel ] Dernière mise à jour du planning projet
A70: Optional Columns
A71: TRUE | B71: Show Budget
A72: Empty
A73: TRUE | B73: Show Comments
A74: TRUE | B74: Reminder for macros
A76: Budget Warning Message (VBA)
A77: Line 1 | B77: Cette opération ne fera que masquer les colonnes liées au budget.
A78: Line 2 | B78: Veuillez supprimer toutes les informations sensibles afin de respecter votre politique de confidentialité interne.
A79: Title | B79: Message de confidentialité
A82: Support Pick A Date
A83: 1- Après précédente | B83: 2- Avec précédente | C83: 3- Saisie manuelle | E83: Aide
M85: Fields for Survey
A86: Pictures to adapt between PC and MAC
A87: Sheet | B87: PC | C87: MAC | M87: First Time Tag
A88: Gantt | B88: PC-start | C88: mac-start
A89: Gantt | B89: PC-bookmark | C89: mac-bookmark | M89: 1
A90: Gantt | B90: PC-today | C90: mac-today
A91: Gantt | B91: PC-auto | C91: mac-auto | M91: First Time Used
A92: Gantt | B92: PC-workingdays | C92: mac-workingdays
A93: Gantt | B93: PC-weeksymbol | C93: mac-weeksymbol
A94: Gantt | B94: PC-optional | C94: mac-optional
A95: Gantt | B95: PC-title | C95: mac-title | M95: Counter
A96: Gantt | B96: PC-view | C96: mac-view
A97: Gantt | B97: PC-tools | C97: mac-tools
A98: Gantt | B98: PC-languages | C98: mac-languages
A99: Gantt | B99: PC-help | C99: mac-help | M99: Prompt Survey
A100: Gantt | B100: PC-about | C100: mac-about
A101: Tools | B101: PC-back | C101: mac-back | L101: Target date
A102: Tools | B102: PC-vacations | C102: mac-vacations | L102: Status
A103: Tools | B103: PC-team | C103: mac-team
A104: Start | B104: PC-macro | C104: mac-macro | M104: Lien vers survey
A105: Start | B105: PC-start | C105: mac-start
M106: http://ammaranass.polldaddy.com/s/enquete-de-satisfaction
M110: Version | P110: Note interne
M112: Version | P112: Build
M114: 7.9.9 PRO (2007) | P114: 7.9.9 (v.2007)
M116: Simulate MAC | P116: Date
M118: MAC = 1 PC or AUTO = 0 | P118: 2016-05-22
M120: 0

Sheet Start

Sheet Introduction (hidden)
